Workbook

Sheet FQfarms
A1: FARM | B1: FC condition factor | C1: C.sclerosus | D1: Temperature-C.sclerosus | E1: Ammonium (mg/l) | F1: Nitrates (mg/l) | G1: Salinity (ppt) | H1: Dissolved oxygen (mg/l) | I1: Nitrites (mg/l) | J1: Temperature (T °C) | K1: Conductivity (μS/cm) | L1: C.sclerosus*NH4 | M1: C.sclerosus*NO3 | N1: Mortality
A2: MU1 | B2: 0.9234 | C2: 171 | D2: 14 | E2: 0.016875 | F2: 0.109157681 | G2: 0.5 | H2: 3.5 | I2: 0.00516373 | J2: 27.8 | K2: 2345 | L2: =E2*C2 -> 2.885625 | M2: =F2*C2 -> 18.66596345 | N2: 6.66
A3: MU2 | B3: 0.928285076 | C3: 97 | D3: 18 | E3: 0.016875 | F3: 0.109157681 | G3: 0.5 | H3: 3.5 | I3: 0.00516373 | J3: 27.8 | K3: 2345 | L3: =E3*C3 -> 1.636875 | M3: =F3*C3 -> 10.58829506 | N3: 6.66
A4: MU3 | B4: 0.868880927 | C4: 198 | D4: 26 | E4: 0.016875 | F4: 0.109157681 | G4: 0.5 | H4: 3.5 | I4: 0.00516373 | J4: 27.8 | K4: 2345 | L4: 3.34125 | M4: 21.61322084 | N4: 6.66
A5: MU4 | B5: 0.944552412 | C5: 75 | D5: 24 | E5: 0.016875 | F5: 0.109157681 | G5: 0.5 | H5: 3.5 | I5: 0.00516373 | J5: 27.8 | K5: 2345 | L5: 1.265625 | M5: 8.186826075 | N5: 6.66
A6: MU5 | B6: 0.955088411 | C6: 45 | D6: 12 | E6: 0.016875 | F6: 0.109157681 | G6: 0.5 | H6: 3.5 | I6: 0.00516373 | J6: 27.8 | K6: 2345 | L6: 0.759375 | M6: 4.912095645 | N6: 6.66
A7: MU6 | B7: 1.311930264 | C7: 389 | D7: 54 | E7: 0.016875 | F7: 0.109157681 | G7: 0.5 | H7: 3.5 | I7: 0.00516373 | J7: 27.8 | K7: 2345 | L7: 6.564375 | M7: 42.46233791 | N7: 6.66
A8: MU7 | B8: 0.904083666 | C8: 25 | D8: 30 | E8: 0.016875 | F8: 0.109157681 | G8: 0.5 | H8: 3.5 | I8: 0.00516373 | J8: 27.8 | K8: 2345 | L8: 0.421875 | M8: 2.728942025 | N8: 6.66
A9: MU8 | B9: 0.336078212 | C9: 385 | D9: 394 | E9: 0.016875 | F9: 0.109157681 | G9: 0.5 | H9: 3.5 | I9: 0.00516373 | J9: 27.8 | K9: 2345 | L9: 6.496875 | M9: 42.02570719 | N9: 6.66
A10: MU9 | B10: 0.233412353 | C10: 598 | D10: 145 | E10: 0.016875 | F10: 0.109157681 | G10: 0.5 | H10: 3.5 | I10: 0.00516373 | J10: 27.8 | K10: 2345 | L10: 10.09125 | M10: 65.27629324 | N10: 6.66
A11: MU10 | B11: 0.656702294 | C11: 401 | D11: 64 | E11: 0.016875 | F11: 0.109157681 | G11: 0.5 | H11: 3.5 | I11: 0.00516373 | J11: 27.8 | K11: 2345 | L11: 6.766875 | M11: 43.77223008 | N11: 6.66
A12: MU11 | B12: 1.262556265 | C12: 266 | D12: 65 | E12: 0.016875 | F12: 0.109157681 | G12: 0.5 | H12: 3.5 | I12: 0.00516373 | J12: 27.8 | K12: 2345 | L12: 4.48875 | M12: 29.03594315 | N12: 6.66
A13: MU12 | B13: 0.643470483 | C13: 137 | D13: 19 | E13: 0.016875 | F13: 0.109157681 | G13: 0.5 | H13: 3.5 | I13: 0.00516373 | J13: 27.8 | K13: 2345 | L13: 2.311875 | M13: 14.9546023 | N13: 6.66
A14: MU13 | B14: 1.129726924 | C14: 101 | D14: 28 | E14: 0.016875 | F14: 0.109157681 | G14: 0.5 | H14: 3.5 | I14: 0.00516373 | J14: 27.8 | K14: 2345 | L14: 1.704375 | M14: 11.02492578 | N14: 6.66
A15: MU14 | B15: 0.903409389 | C15: 154 | D15: 30 | E15: 0.016875 | F15: 0.109157681 | G15: 0.5 | H15: 3.5 | I15: 0.00516373 | J15: 27.8 | K15: 2345 | L15: 2.59875 | M15: 16.81028287 | N15: 6.66
A16: MU15 | B16: 1.646473626 | C16: 98 | D16: 12 | E16: 0.016875 | F16: 0.109157681 | G16: 0.5 | H16: 3.5 | I16: 0.00516373 | J16: 27.8 | K16: 2345 | L16: 1.65375 | M16: 10.69745274 | N16: 6.66
A17: MU16 | B17: 0.941764206 | C17: 298 | D17: 202 | E17: 0.016875 | F17: 0.109157681 | G17: 0.5 | H17: 3.5 | I17: 0.00516373 | J17: 27.8 | K17: 2345 | L17: 5.02875 | M17: 32.52898894 | N17: 6.66
A18: MU17 | B18: 1.095854111 | C18: 87 | D18: 62 | E18: 0.016875 | F18: 0.109157681 | G18: 0.5 | H18: 3.5 | I18: 0.00516373 | J18: 27.8 | K18: 2345 | L18: 1.468125 | M18: 9.496718247 | N18: 6.66
A19: MU18 | B19: 0.503673697 | C19: 930 | D19: 30 | E19: 0.016875 | F19: 0.109157681 | G19: 0.5 | H19: 3.5 | I19: 0.00516373 | J19: 27.8 | K19: 2345 | L19: 15.69375 | M19: 101.5166433 | N19: 6.66
A20: MU19 | B20: 0.358585779 | C20: 431 | D20: 202 | E20: 0.016875 | F20: 0.109157681 | G20: 0.5 | H20: 3.5 | I20: 0.00516373 | J20: 27.8 | K20: 2345 | L20: 7.273125 | M20: 47.04696051 | N20: 6.66
A21: MU20 | B21: 0.417935816 | C21: 415 | D21: 68 | E21: 0.016875 | F21: 0.109157681 | G21: 0.5 | H21: 3.5 | I21: 0.00516373 | J21: 27.8 | K21: 2345 | L21: 7.003125 | M21: 45.30043761 | N21: 6.66
A22: LM1 | B22: 0.658897904 | C22: 687 | D22: 48 | E22: 0.20475 | F22: 10.69145653 | G22: 1.2 | H22: 4 | I22: 0.09811087 | J22: 24.7 | K22: 1356 | L22: 140.66325 | M22: 7345.030636 | N22: 100
A23: LM2 | B23: 0.511067634 | C23: 236 | D23: 12 | E23: 0.20475 | F23: 10.69145653 | G23: 1.2 | H23: 4 | I23: 0.09811087 | J23: 24.7 | K23: 1356 | L23: 48.321 | M23: 2523.183741 | N23: 100
A24: LM3 | B24: 0.48155459 | C24: 299 | D24: 26 | E24: 0.20475 | F24: 10.69145653 | G24: 1.2 | H24: 4 | I24: 0.09811087 | J24: 24.7 | K24: 1356 | L24: 61.22025 | M24: 3196.745502 | N24: 100
A25: LM4 | B25: 0.673885641 | C25: 295 | D25: 6 | E25: 0.20475 | F25: 10.69145653 | G25: 1.2 | H25: 4 | I25: 0.09811087 | J25: 24.7 | K25: 1356 | L25: 60.40125 | M25: 3153.979676 | N25: 100
A26: LM5 | B26: 0.500035664 | C26: 399 | D26: 16 | E26: 0.20475 | F26: 10.69145653 | G26: 1.2 | H26: 4 | I26: 0.09811087 | J26: 24.7 | K26: 1356 | L26: 81.69525 | M26: 4265.891155 | N26: 100
A27: LM6 | B27: 0.060199136 | C27: 709 | D27: 32 | E27: 0.20475 | F27: 10.69145653 | G27: 1.2 | H27: 4 | I27: 0.09811087 | J27: 24.7 | K27: 1356 | L27: 145.16775 | M27: 7580.24268 | N27: 100
A28: LM7 | B28: 0.895810634 | C28: 119 | D28: 10 | E28: 0.20475 | F28: 10.69145653 | G28: 1.2 | H28: 4 | I28: 0.09811087 | J28: 24.7 | K28: 1356 | L28: 24.36525 | M28: 1272.283327 | N28: 100
A29: LM8 | B29: 0.486048846 | C29: 315 | D29: 12 | E29: 0.20475 | F29: 10.69145653 | G29: 1.2 | H29: 4 | I29: 0.09811087 | J29: 24.7 | K29: 1356 | L29: 64.49625 | M29: 3367.808807 | N29: 100
A30: LM9 | B30: 0.385992189 | C30: 467 | D30: 48 | E30: 0.20475 | F30: 10.69145653 | G30: 1.2 | H30: 4 | I30: 0.09811087 | J30: 24.7 | K30: 1356 | L30: 95.61825 | M30: 4992.9102 | N30: 100
A31: LM10 | B31: 1.059686159 | C31: 99 | D31: 0 | E31: 0.20475 | F31: 10.69145653 | G31: 1.2 | H31: 4 | I31: 0.09811087 | J31: 24.7 | K31: 1356 | L31: 20.27025 | M31: 1058.454196 | N31: 100
A32: LM11 | B32: 1.19314911 | C32: 161 | D32: 16 | E32: 0.20475 | F32: 10.69145653 | G32: 1.2 | H32: 4 | I32: 0.09811087 | J32: 24.7 | K32: 1356 | L32: 32.96475 | M32: 1721.324501 | N32: 100
A33: LM12 | B33: 1.725250754 | C33: 356 | D33: 40 | E33: 0.20475 | F33: 10.69145653 | G33: 1.2 | H33: 4 | I33: 0.09811087 | J33: 24.7 | K33: 1356 | L33: 72.891 | M33: 3806.158525 | N33: 100
A34: LM13 | B34: 1.284595402 | C34: 97 | D34: 6 | E34: 0.20475 | F34: 10.69145653 | G34: 1.2 | H34: 4 | I34: 0.09811087 | J34: 24.7 | K34: 1356 | L34: 19.86075 | M34: 1037.071283 | N34: 100
A35: LM14 | B35: 0.837924334 | C35: 45 | D35: 14 | E35: 0.20475 | F35: 10.69145653 | G35: 1.2 | H35: 4 | I35: 0.09811087 | J35: 24.7 | K35: 1356 | L35: 9.21375 | M35: 481.1155438 | N35: 100
A36: LM15 | B36: 0.826363095 | C36: 95 | D36: 6 | E36: 0.20475 | F36: 10.69145653 | G36: 1.2 | H36: 4 | I36: 0.09811087 | J36: 24.7 | K36: 1356 | L36: 19.45125 | M36: 1015.68837 | N36: 100
A37: LM16 | B37: 0.77975486 | C37: 65 | D37: 0 | E37: 0.20475 | F37: 10.69145653 | G37: 1.2 | H37: 4 | I37: 0.09811087 | J37: 24.7 | K37: 1356 | L37: 13.30875 | M37: 694.9446744 | N37: 100
A38: LM17 | B38: 0.70618366 | C38: 99 | D38: 4 | E38: 0.20475 | F38: 10.69145653 | G38: 1.2 | H38: 4 | I38: 0.09811087 | J38: 24.7 | K38: 1356 | L38: 20.27025 | M38: 1058.454196 | N38: 100
A39: LM18 | B39: 0.706628106 | C39: 590 | D39: 14 | E39: 0.20475 | F39: 10.69145653 | G39: 1.2 | H39: 4 | I39: 0.09811087 | J39: 24.7 | K39: 1356 | L39: 120.8025 | M39: 6307.959353 | N39: 100
A40: LM19 | B40: 0.354309429 | C40: 402 | D40: 162 | E40: 0.20475 | F40: 10.69145653 | G40: 1.2 | H40: 4 | I40: 0.09811087 | J40: 24.7 | K40: 1356 | L40: 82.3095 | M40: 4297.965525 | N40: 100
A41: LM20 | B41: 3.391963013 | C41: 45 | D41: 780 | E41: 0.20475 | F41: 10.69145653 | G41: 1.2 | H41: 4 | I41: 0.09811087 | J41: 24.7 | K41: 1356 | L41: 9.21375 | M41: 481.1155438 | N41: 100
A42: PA1 | B42: 1.07572989 | C42: 100 | D42: 114 | E42: 0.3853125 | F42: 1.863023337 | G42: 0.8 | H42: 4.88 | I42: 0.26945282 | J42: 27.7 | K42: 1698 | L42: 38.53125 | M42: 186.3023337 | N42: 13.63
A43: PA1 | B43: 0.48155459 | C43: 326 | D43: 48 | E43: 0.3853125 | F43: 1.863023337 | G43: 0.8 | H43: 4.88 | I43: 0.26945282 | J43: 27.7 | K43: 1698 | L43: 125.611875 | M43: 607.3456079 | N43: 13.63
A44: PA2 | B44: 0.97266039 | C44: 432 | D44: 88 | E44: 0.3853125 | F44: 1.863023337 | G44: 0.8 | H44: 4.88 | I44: 0.26945282 | J44: 27.7 | K44: 1698 | L44: 166.455 | M44: 804.8260816 | N44: 13.63
A45: PA3 | B45: 1.145945248 | C45: 106 | D45: 12 | E45: 0.3853125 | F45: 1.863023337 | G45: 0.8 | H45: 4.88 | I45: 0.26945282 | J45: 27.7 | K45: 1698 | L45: 40.843125 | M45: 197.4804737 | N45: 13.63
A46: PA4 | B46: 0.869120794 | C46: 131 | D46: 0 | E46: 0.3853125 | F46: 1.863023337 | G46: 0.8 | H46: 4.88 | I46: 0.26945282 | J46: 27.7 | K46: 1698 | L46: 50.4759375 | M46: 244.0560571 | N46: 13.63
A47: PA5 | B47: 1.208221711 | C47: 390 | D47: 183 | E47: 0.3853125 | F47: 1.863023337 | G47: 0.8 | H47: 4.88 | I47: 0.26945282 | J47: 27.7 | K47: 1698 | L47: 150.271875 | M47: 726.5791014 | N47: 13.63
A48: PA6 | B48: 0.704146289 | C48: 331 | D48: 21 | E48: 0.3853125 | F48: 1.863023337 | G48: 0.8 | H48: 4.88 | I48: 0.26945282 | J48: 27.7 | K48: 1698 | L48: 127.5384375 | M48: 616.6607245 | N48: 13.63
A49: PA7 | B49: 1.085272786 | C49: 98 | D49: 39 | E49: 0.3853125 | F49: 1.863023337 | G49: 0.8 | H49: 4.88 | I49: 0.26945282 | J49: 27.7 | K49: 1698 | L49: 37.760625 | M49: 182.576287 | N49: 13.63
A50: PA8 | B50: 0.988044415 | C50: 252 | D50: 1 | E50: 0.3853125 | F50: 1.863023337 | G50: 0.8 | H50: 4.88 | I50: 0.26945282 | J50: 27.7 | K50: 1698 | L50: 97.09875 | M50: 469.4818809 | N50: 13.63
A51: PA9 | B51: 0.872671118 | C51: 99 | D51: 2 | E51: 0.3853125 | F51: 1.863023337 | G51: 0.8 | H51: 4.88 | I51: 0.26945282 | J51: 27.7 | K51: 1698 | L51: 38.1459375 | M51: 184.4393104 | N51: 13.63
A52: PA10 | B52: 0.887797022 | C52: 406 | D52: 150 | E52: 0.3853125 | F52: 1.863023337 | G52: 0.8 | H52: 4.88 | I52: 0.26945282 | J52: 27.7 | K52: 1698 | L52: 156.436875 | M52: 756.3874748 | N52: 13.63
A53: PA11 | B53: 1.313827035 | C53: 108 | D53: 92 | E53: 0.3853125 | F53: 1.863023337 | G53: 0.8 | H53: 4.88 | I53: 0.26945282 | J53: 27.7 | K53: 1698 | L53: 41.61375 | M53: 201.2065204 | N53: 13.63
A54: PA12 | B54: 1.17148442 | C54: 82 | D54: 86 | E54: 0.3853125 | F54: 1.863023337 | G54: 0.8 | H54: 4.88 | I54: 0.26945282 | J54: 27.7 | K54: 1698 | L54: 31.595625 | M54: 152.7679136 | N54: 13.63
A55: PA13 | B55: 0.883792783 | C55: 308 | D55: 267 | E55: 0.3853125 | F55: 1.863023337 | G55: 0.8 | H55: 4.88 | I55: 0.26945282 | J55: 27.7 | K55: 1698 | L55: 118.67625 | M55: 573.8111878 | N55: 13.63
A56: PA14 | B56: 0.724909607 | C56: 348 | D56: 291 | E56: 0.3853125 | F56: 1.863023337 | G56: 0.8 | H56: 4.88 | I56: 0.26945282 | J56: 27.7 | K56: 1698 | L56: 134.08875 | M56: 648.3321213 | N56: 13.63
A57: PA15 | B57: 1.560351923 | C57: 85 | D57: 12 | E57: 0.3853125 | F57: 1.863023337 | G57: 0.8 | H57: 4.88 | I57: 0.26945282 | J57: 27.7 | K57: 1698 | L57: 32.7515625 | M57: 158.3569836 | N57: 13.63
A58: PA16 | B58: 0.871078363 | C58: 92 | D58: 10 | E58: 0.3853125 | F58: 1.863023337 | G58: 0.8 | H58: 4.88 | I58: 0.26945282 | J58: 27.7 | K58: 1698 | L58: 35.44875 | M58: 171.398147 | N58: 13.63
A59: PA17 | B59: 0.823047706 | C59: 94 | D59: 174 | E59: 0.3853125 | F59: 1.863023337 | G59: 0.8 | H59: 4.88 | I59: 0.26945282 | J59: 27.7 | K59: 1698 | L59: 36.219375 | M59: 175.1241937 | N59: 13.63
A60: PA18 | B60: 0.100529327 | C60: 291 | D60: 6 | E60: 0.3853125 | F60: 1.863023337 | G60: 0.8 | H60: 4.88 | I60: 0.26945282 | J60: 27.7 | K60: 1698 | L60: 112.1259375 | M60: 542.1397911 | N60: 13.63
A61: PA19 | B61: 1.144990437 | C61: 106 | D61: 52 | E61: 0.3853125 | F61: 1.863023337 | G61: 0.8 | H61: 4.88 | I61: 0.26945282 | J61: 27.7 | K61: 1698 | L61: 40.843125 | M61: 197.4804737 | N61: 13.63
A62: YAX1 | B62: 0.793155403 | C62: 278 | D62: 360 | E62: 1.274625 | F62: 0.943588819 | G62: 0.9 | H62: 3.72 | I62: 2.97524734 | J62: 28.2 | K62: 1896 | L62: 354.34575 | M62: 262.3176917
A63: YAX2 | B63: 0.910783238 | C63: 234 | D63: 30 | E63: 1.274625 | F63: 0.943588819 | G63: 0.9 | H63: 3.72 | I63: 2.97524734 | J63: 28.2 | K63: 1896 | L63: 298.26225 | M63: 220.7997836
A64: YAX3 | B64: 1.108528082 | C64: 0 | D64: 10 | E64: 1.274625 | F64: 0.943588819 | G64: 0.9 | H64: 3.72 | I64: 2.97524734 | J64: 28.2 | K64: 1896 | L64: 0 | M64: 0
A65: YAX4 | B65: 0.833922829 | C65: 296 | D65: 34 | E65: 1.274625 | F65: 0.943588819 | G65: 0.9 | H65: 3.72 | I65: 2.97524734 | J65: 28.2 | K65: 1896 | L65: 377.289 | M65: 279.3022904
A66: YAX5 | B66: 0.711522244 | C66: 301 | D66: 98 | E66: 1.274625 | F66: 0.943588819 | G66: 0.9 | H66: 3.72 | I66: 2.97524734 | J66: 28.2 | K66: 1896 | L66: 383.662125 | M66: 284.0202345
A67: YAX6 | B67: 0.840121254 | C67: 159 | D67: 25 | E67: 1.274625 | F67: 0.943588819 | G67: 0.9 | H67: 3.72 | I67: 2.97524734 | J67: 28.2 | K67: 1896 | L67: =E67*C67 -> 202.665375 | M67: =F67*C67 -> 150.0306222
A68: YAX7 | B68: 0.747530638 | C68: 440 | D68: 78 | E68: 1.274625 | F68: 0.943588819 | G68: 0.9 | H68: 3.72 | I68: 2.97524734 | J68: 28.2 | K68: 1896 | L68: 560.835 | M68: 415.1790804
A69: YAX8 | B69: 1.209353791 | C69: 87 | D69: 40 | E69: 1.274625 | F69: 0.943588819 | G69: 0.9 | H69: 3.72 | I69: 2.97524734 | J69: 28.2 | K69: 1896 | L69: 110.892375 | M69: 82.09222725
A70: YAX9 | B70: 0.703851212 | C70: 197 | D70: 57 | E70: 1.274625 | F70: 0.943588819 | G70: 0.9 | H70: 3.72 | I70: 2.97524734 | J70: 28.2 | K70: 1896 | L70: 251.101125 | M70: 185.8869973
A71: YAX10 | B71: 0.683099375 | C71: 256 | D71: 50 | E71: 1.274625 | F71: 0.943588819 | G71: 0.9 | H71: 3.72 | I71: 2.97524734 | J71: 28.2 | K71: 1896 | L71: 326.304 | M71: 241.5587377
A72: YAX11 | B72: 1.024679307 | C72: 65 | D72: 0 | E72: 1.274625 | F72: 0.943588819 | G72: 0.9 | H72: 3.72 | I72: 2.97524734 | J72: 28.2 | K72: 1896 | L72: 82.850625 | M72: 61.33327324
A73: YAX12 | B73: 0.985764693 | C73: 0 | D73: 6 | E73: 1.274625 | F73: 0.943588819 | G73: 0.9 | H73: 3.72 | I73: 2.97524734 | J73: 28.2 | K73: 1896 | L73: 0 | M73: 0
A74: YAX13 | B74: 0.857069076 | C74: 96 | D74: 0 | E74: 1.274625 | F74: 0.943588819 | G74: 0.9 | H74: 3.72 | I74: 2.97524734 | J74: 28.2 | K74: 1896 | L74: 122.364 | M74: 90.58452662
A75: YAX14 | B75: 1.01980684 | C75: 10 | D75: 40 | E75: 1.274625 | F75: 0.943588819 | G75: 0.9 | H75: 3.72 | I75: 2.97524734 | J75: 28.2 | K75: 1896 | L75: 12.74625 | M75: 9.43588819
A76: YAX15 | B76: 1.314184973 | C76: 0 | D76: 0 | E76: 1.274625 | F76: 0.943588819 | G76: 0.9 | H76: 3.72 | I76: 2.97524734 | J76: 28.2 | K76: 1896 | L76: 0 | M76: 0
A77: YAX16 | B77: 1.04620189 | C77: 134 | D77: 0 | E77: 1.274625 | F77: 0.943588819 | G77: 0.9 | H77: 3.72 | I77: 2.97524734 | J77: 28.2 | K77: 1896 | L77: 170.79975 | M77: 126.4409017
A78: YAX17 | B78: 0.815560132 | C78: 193 | D78: 12 | E78: 1.274625 | F78: 0.943588819 | G78: 0.9 | H78: 3.72 | I78: 2.97524734 | J78: 28.2 | K78: 1896 | L78: 246.002625 | M78: 182.1126421
A79: YAX18 | B79: 1.138631559 | C79: 79 | D79: 4 | E79: 1.274625 | F79: 0.943588819 | G79: 0.9 | H79: 3.72 | I79: 2.97524734 | J79: 28.2 | K79: 1896 | L79: 100.695375 | M79: 74.5435167
A80: YAX19 | B80: 0.805181975 | C80: 289 | D80: 98 | E80: 1.274625 | F80: 0.943588819 | G80: 0.9 | H80: 3.72 | I80: 2.97524734 | J80: 28.2 | K80: 1896 | L80: 368.366625 | M80: 272.6971687
A81: YAX20 | B81: 1.412192656 | C81: 193 | D81: 34 | E81: 1.274625 | F81: 0.943588819 | G81: 0.9 | H81: 3.72 | I81: 2.97524734 | J81: 28.2 | K81: 1896 | L81: 246.002625 | M81: 182.1126421
A82: IX1 | B82: 1.618335613 | C82: 92 | D82: 0 | E82: 2.19825 | F82: 3.746663658 | G82: 1.8 | H82: 1.98 | I82: 0.89942788 | J82: 26.9 | K82: 3567 | L82: 202.239 | M82: 344.6930565
A83: IX2 | B83: 1.052172694 | C83: 21 | D83: 0 | E83: 2.19825 | F83: 3.746663658 | G83: 1.8 | H83: 1.98 | I83: 0.89942788 | J83: 26.9 | K83: 3567 | L83: 46.16325 | M83: 78.67993682
A84: IX3 | B84: 1.810026905 | C84: 12 | D84: 30 | E84: 2.19825 | F84: 3.746663658 | G84: 1.8 | H84: 1.98 | I84: 0.89942788 | J84: 26.9 | K84: 3567 | L84: 26.379 | M84: 44.9599639
A85: IX4 | B85: 1.057872996 | C85: 0 | D85: 26 | E85: 2.19825 | F85: 3.746663658 | G85: 1.8 | H85: 1.98 | I85: 0.89942788 | J85: 26.9 | K85: 3567 | L85: 0 | M85: 0
A86: IX5 | B86: 1.296377414 | C86: 0 | D86: 8 | E86: 2.19825 | F86: 3.746663658 | G86: 1.8 | H86: 1.98 | I86: 0.89942788 | J86: 26.9 | K86: 3567 | L86: 0 | M86: 0
A87: IX6 | B87: 1.438869939 | C87: 89 | D87: 20 | E87: 2.19825 | F87: 3.746663658 | G87: 1.8 | H87: 1.98 | I87: 0.89942788 | J87: 26.9 | K87: 3567 | L87: 195.64425 | M87: 333.4530656
A88: IX7 | B88: 1.372599708 | C88: 241 | D88: 122 | E88: 2.19825 | F88: 3.746663658 | G88: 1.8 | H88: 1.98 | I88: 0.89942788 | J88: 26.9 | K88: 3567 | L88: 529.77825 | M88: 902.9459416
A89: IX8 | B89: 1.391435107 | C89: 52 | D89: 26 | E89: 2.19825 | F89: 3.746663658 | G89: 1.8 | H89: 1.98 | I89: 0.89942788 | J89: 26.9 | K89: 3567 | L89: 114.309 | M89: 194.8265102
A90: IX9 | B90: 1.676431613 | C90: 126 | D90: 44 | E90: 2.19825 | F90: 3.746663658 | G90: 1.8 | H90: 1.98 | I90: 0.89942788 | J90: 26.9 | K90: 3567 | L90: 276.9795 | M90: 472.0796209
A91: IX10 | B91: 1.624661514 | C91: 7 | D91: 12 | E91: 2.19825 | F91: 3.746663658 | G91: 1.8 | H91: 1.98 | I91: 0.89942788 | J91: 26.9 | K91: 3567 | L91: 15.38775 | M91: 26.22664561
A92: IX11 | B92: 2.045614854 | C92: 57 | D92: 124 | E92: 2.19825 | F92: 3.746663658 | G92: 1.8 | H92: 1.98 | I92: 0.89942788 | J92: 26.9 | K92: 3567 | L92: 125.30025 | M92: 213.5598285
A93: IX12 | B93: 1.446232663 | C93: 0 | D93: 2 | E93: 2.19825 | F93: 3.746663658 | G93: 1.8 | H93: 1.98 | I93: 0.89942788 | J93: 26.9 | K93: 3567 | L93: 0 | M93: 0
A94: IX13 | B94: 1.540354728 | C94: 78 | D94: 54 | E94: 2.19825 | F94: 3.746663658 | G94: 1.8 | H94: 1.98 | I94: 0.89942788 | J94: 26.9 | K94: 3567 | L94: 171.4635 | M94: 292.2397653
A95: IX14 | B95: 1.818483875 | C95: 115 | D95: 75 | E95: 2.19825 | F95: 3.746663658 | G95: 1.8 | H95: 1.98 | I95: 0.89942788 | J95: 26.9 | K95: 3567 | L95: 252.79875 | M95: 430.8663207
A96: IX15 | B96: 2.022668079 | C96: 0 | D96: 80 | E96: 2.19825 | F96: 3.746663658 | G96: 1.8 | H96: 1.98 | I96: 0.89942788 | J96: 26.9 | K96: 3567 | L96: 0 | M96: 0
A97: IX16 | B97: 1.985780969 | C97: 76 | D97: 202 | E97: 2.19825 | F97: 3.746663658 | G97: 1.8 | H97: 1.98 | I97: 0.89942788 | J97: 26.9 | K97: 3567 | L97: 167.067 | M97: 284.746438
A98: IX17 | B98: 1.614046031 | C98: 98 | D98: 354 | E98: 2.19825 | F98: 3.746663658 | G98: 1.8 | H98: 1.98 | I98: 0.89942788 | J98: 26.9 | K98: 3567 | L98: 215.4285 | M98: 367.1730385
A99: IX18 | B99: 0.756067606 | C99: 232 | D99: 543 | E99: 2.19825 | F99: 3.746663658 | G99: 1.8 | H99: 1.98 | I99: 0.89942788 | J99: 26.9 | K99: 3567 | L99: 509.994 | M99: 869.2259687
A100: IX19 | B100: 1.820691377 | C100: 24 | D100: 44 | E100: 2.19825 | F100: 3.746663658 | G100: 1.8 | H100: 1.98 | I100: 0.89942788 | J100: 26.9 | K100: 3567 | L100: 52.758 | M100: 89.91992779
A101: IX20 | B101: 1.286643113 | C101: 35 | D101: 22 | E101: 2.19825 | F101: 3.746663658 | G101: 1.8 | H101: 1.98 | I101: 0.89942788 | J101: 26.9 | K101: 3567 | L101: 76.93875 | M101: 131.133228
A102: PE1 | B102: 1.60262225 | C102: 60 | D102: 0 | E102: 0.423 | F102: 1.005730458 | G102: 0.8 | H102: 7.78 | I102: 2.96491988 | J102: 28.7 | K102: 1689 | L102: 25.38 | M102: 60.34382748
A103: PE2 | B103: 1.611956688 | C103: 26 | D103: 4 | E103: 0.423 | F103: 1.005730458 | G103: 0.8 | H103: 7.78 | I103: 2.96491988 | J103: 28.7 | K103: 1689 | L103: 10.998 | M103: 26.14899191
A104: PE3 | B104: 1.060454227 | C104: 84 | D104: 21 | E104: 0.423 | F104: 1.005730458 | G104: 0.8 | H104: 7.78 | I104: 2.96491988 | J104: 28.7 | K104: 1689 | L104: 35.532 | M104: 84.48135847
A105: PE4 | B105: 1.788422976 | C105: 31 | D105: 32 | E105: 0.423 | F105: 1.005730458 | G105: 0.8 | H105: 7.78 | I105: 2.96491988 | J105: 28.7 | K105: 1689 | L105: 13.113 | M105: 31.1776442
A106: PE5 | B106: 1.567090398 | C106: 23 | D106: 0 | E106: 0.423 | F106: 1.005730458 | G106: 0.8 | H106: 7.78 | I106: 2.96491988 | J106: 28.7 | K106: 1689 | L106: 9.729 | M106: 23.13180053
A107: PE6 | B107: 1.609970395 | C107: 36 | D107: 20 | E107: 0.423 | F107: 1.005730458 | G107: 0.8 | H107: 7.78 | I107: 2.96491988 | J107: 28.7 | K107: 1689 | L107: 15.228 | M107: 36.20629649
A108: PE7 | B108: 1.309598221 | C108: 94 | D108: 0 | E108: 0.423 | F108: 1.005730458 | G108: 0.8 | H108: 7.78 | I108: 2.96491988 | J108: 28.7 | K108: 1689 | L108: 39.762 | M108: 94.53866305
A109: PE8 | B109: 1.057841893 | C109: 166 | D109: 136 | E109: 0.423 | F109: 1.005730458 | G109: 0.8 | H109: 7.78 | I109: 2.96491988 | J109: 28.7 | K109: 1689 | L109: 70.218 | M109: 166.951256
A110: PE9 | B110: 1.417686947 | C110: 23 | D110: 26 | E110: 0.423 | F110: 1.005730458 | G110: 0.8 | H110: 7.78 | I110: 2.96491988 | J110: 28.7 | K110: 1689 | L110: 9.729 | M110: 23.13180053
A111: PE10 | B111: 1.159459581 | C111: 16 | D111: 0 | E111: 0.423 | F111: 1.005730458 | G111: 0.8 | H111: 7.78 | I111: 2.96491988 | J111: 28.7 | K111: 1689 | L111: 6.768 | M111: 16.09168733
A112: PE11 | B112: 1.192630241 | C112: 29 | D112: 4 | E112: 0.423 | F112: 1.005730458 | G112: 0.8 | H112: 7.78 | I112: 2.96491988 | J112: 28.7 | K112: 1689 | L112: 12.267 | M112: 29.16618328
A113: PE12 | B113: 1.424624844 | C113: 0 | D113: 24 | E113: 0.423 | F113: 1.005730458 | G113: 0.8 | H113: 7.78 | I113: 2.96491988 | J113: 28.7 | K113: 1689 | L113: 0 | M113: 0
A114: PE13 | B114: 1.386593831 | C114: 82 | D114: 14 | E114: 0.423 | F114: 1.005730458 | G114: 0.8 | H114: 7.78 | I114: 2.96491988 | J114: 28.7 | K114: 1689 | L114: 34.686 | M114: 82.46989756
A115: PE14 | B115: 1.27530932 | C115: 10 | D115: 8 | E115: 0.423 | F115: 1.005730458 | G115: 0.8 | H115: 7.78 | I115: 2.96491988 | J115: 28.7 | K115: 1689 | L115: 4.23 | M115: 10.05730458
A116: PE15 | B116: 1.168459208 | C116: 99 | D116: 73 | E116: 0.423 | F116: 1.005730458 | G116: 0.8 | H116: 7.78 | I116: 2.96491988 | J116: 28.7 | K116: 1689 | L116: 41.877 | M116: 99.56731534
A117: PE16 | B117: 1.297024191 | C117: 105 | D117: 46 | E117: 0.423 | F117: 1.005730458 | G117: 0.8 | H117: 7.78 | I117: 2.96491988 | J117: 28.7 | K117: 1689 | L117: 44.415 | M117: 105.6016981
A118: PE17 | B118: 1.416703486 | C118: 69 | D118: 61 | E118: 0.423 | F118: 1.005730458 | G118: 0.8 | H118: 7.78 | I118: 2.96491988 | J118: 28.7 | K118: 1689 | L118: 29.187 | M118: 69.3954016
A119: PE18 | B119: 1.576184889 | C119: 0 | D119: 28 | E119: 0.423 | F119: 1.005730458 | G119: 0.8 | H119: 7.78 | I119: 2.96491988 | J119: 28.7 | K119: 1689 | L119: 0 | M119: 0
A120: PE19 | B120: 1.071369379 | C120: 68 | D120: 38 | E120: 0.423 | F120: 1.005730458 | G120: 0.8 | H120: 7.78 | I120: 2.96491988 | J120: 28.7 | K120: 1689 | L120: 28.764 | M120: 68.38967114
A121: PE20 | B121: 1.149677978 | C121: 38 | D121: 377 | E121: 0.423 | F121: 1.005730458 | G121: 0.8 | H121: 7.78 | I121: 2.96491988 | J121: 28.7 | K121: 1689 | L121: 16.074 | M121: 38.2177574
A122: BO1 | B122: 0.951313042 | C122: 358 | D122: 12 | E122: 0.05873508 | F122: 0.3980896 | G122: 2 | H122: 13.61 | I122: 2.8336 | J122: 28.4 | K122: 3868 | L122: 21.02715864 | M122: 142.5160768
A123: BO2 | B123: 1.60716864 | C123: 98 | D123: 9 | E123: 0.05873508 | F123: 0.3980896 | G123: 2 | H123: 13.61 | I123: 2.8336 | J123: 28.4 | K123: 3868 | L123: 5.75603784 | M123: 39.0127808
A124: BO3 | B124: 0.389127689 | C124: 365 | D124: 93 | E124: 0.05873508 | F124: 0.3980896 | G124: 2 | H124: 13.61 | I124: 2.8336 | J124: 28.4 | K124: 3868 | L124: 21.4383042 | M124: 145.302704
A125: BO4 | B125: 1.13530297 | C125: 120 | D125: 30 | E125: 0.05873508 | F125: 0.3980896 | G125: 2 | H125: 13.61 | I125: 2.8336 | J125: 28.4 | K125: 3868 | L125: 7.0482096 | M125: 47.770752
A126: BO5 | B126: 0.893605427 | C126: 95 | D126: 10 | E126: 0.05873508 | F126: 0.3980896 | G126: 2 | H126: 13.61 | I126: 2.8336 | J126: 28.4 | K126: 3868 | L126: 5.5798326 | M126: 37.818512
A127: BO6 | B127: 1.049905308 | C127: 84 | D127: 20 | E127: 0.05873508 | F127: 0.3980896 | G127: 2 | H127: 13.61 | I127: 2.8336 | J127: 28.4 | K127: 3868 | L127: 4.93374672 | M127: 33.4395264
A128: BO7 | B128: 1.019773183 | C128: 294 | D128: 14 | E128: 0.05873508 | F128: 0.3980896 | G128: 2 | H128: 13.61 | I128: 2.8336 | J128: 28.4 | K128: 3868 | L128: 17.26811352 | M128: 117.0383424
A129: BO8 | B129: 1.182409022 | C129: 81 | D129: 0 | E129: 0.05873508 | F129: 0.3980896 | G129: 2 | H129: 13.61 | I129: 2.8336 | J129: 28.4 | K129: 3868 | L129: 4.75754148 | M129: 32.2452576
A130: BO9 | B130: 0.742480265 | C130: 180 | D130: 32 | E130: 0.05873508 | F130: 0.3980896 | G130: 2 | H130: 13.61 | I130: 2.8336 | J130: 28.4 | K130: 3868 | L130: 10.5723144 | M130: 71.656128
A131: BO10 | B131: 0.239116284 | C131: 287 | D131: 88 | E131: 0.05873508 | F131: 0.3980896 | G131: 2 | H131: 13.61 | I131: 2.8336 | J131: 28.4 | K131: 3868 | L131: =E131*C131 -> 16.85696796 | M131: =F131*C131 -> 114.2517152
A132: BO11 | B132: 1.017631782 | C132: 68 | D132: 12 | E132: 0.05873508 | F132: 0.3980896 | G132: 2 | H132: 13.61 | I132: 2.8336 | J132: 28.4 | K132: 3868 | L132: 3.99398544 | M132: 27.0700928
A133: BO12 | B133: 0.961130191 | C133: 0 | D133: 4 | E133: 0.05873508 | F133: 0.3980896 | G133: 2 | H133: 13.61 | I133: 2.8336 | J133: 28.4 | K133: 3868 | L133: 0 | M133: 0
A134: BO13 | B134: 0.495564751 | C134: 106 | D134: 28 | E134: 0.05873508 | F134: 0.3980896 | G134: 2 | H134: 13.61 | I134: 2.8336 | J134: 28.4 | K134: 3868 | L134: 6.22591848 | M134: 42.1974976
A135: BO14 | B135: 0.813919696 | C135: 195 | D135: 12 | E135: 0.05873508 | F135: 0.3980896 | G135: 2 | H135: 13.61 | I135: 2.8336 | J135: 28.4 | K135: 3868 | L135: 11.4533406 | M135: 77.627472
A136: BO15 | B136: 0.684125548 | C136: 177 | D136: 21 | E136: 0.05873508 | F136: 0.3980896 | G136: 2 | H136: 13.61 | I136: 2.8336 | J136: 28.4 | K136: 3868 | L136: 10.39610916 | M136: 70.4618592
A137: BO16 | B137: 2.055580593 | C137: 249 | D137: 48 | E137: 0.05873508 | F137: 0.3980896 | G137: 2 | H137: 13.61 | I137: 2.8336 | J137: 28.4 | K137: 3868 | L137: 14.62503492 | M137: 99.1243104
A138: BO17 | B138: 1.438285802 | C138: 214 | D138: 0 | E138: 0.05873508 | F138: 0.3980896 | G138: 2 | H138: 13.61 | I138: 2.8336 | J138: 28.4 | K138: 3868 | L138: 12.56930712 | M138: 85.1911744
A139: BO18 | B139: 2.252373114 | C139: 200 | D139: 0 | E139: 0.05873508 | F139: 0.3980896 | G139: 2 | H139: 13.61 | I139: 2.8336 | J139: 28.4 | K139: 3868 | L139: 11.747016 | M139: 79.61792
A140: BO19 | B140: 1.984131064 | C140: 100 | D140: 102 | E140: 0.05873508 | F140: 0.3980896 | G140: 2 | H140: 13.61 | I140: 2.8336 | J140: 28.4 | K140: 3868 | L140: 5.873508 | M140: 39.80896
A141: BO20 | B141: 2.204808016 | C141: 289 | D141: 76 | E141: 0.05873508 | F141: 0.3980896 | G141: 2 | H141: 13.61 | I141: 2.8336 | J141: 28.4 | K141: 3868 | L141: 16.97443812 | M141: 115.0478944
A142: HO1 | B142: 1.431171168 | C142: 89 | D142: 39 | E142: 0.077845 | F142: 0.454341 | G142: 2.1 | H142: 5.34 | I142: 2.945312 | J142: 28.9 | K142: 4364 | L142: 6.928205 | M142: 40.436349
A143: HO2 | B143: 1.306005125 | C143: 387 | D143: 70 | E143: 0.077845 | F143: 0.454341 | G143: 2.1 | H143: 5.34 | I143: 2.945312 | J143: 28.9 | K143: 4364 | L143: 30.126015 | M143: 175.829967
A144: HO3 | B144: 1.097465088 | C144: 304 | D144: 8 | E144: 0.077845 | F144: 0.454341 | G144: 2.1 | H144: 5.34 | I144: 2.945312 | J144: 28.9 | K144: 4364 | L144: 23.66488 | M144: 138.119664
A145: HO4 | B145: 1.0805973 | C145: 51 | D145: 35 | E145: 0.077845 | F145: 0.454341 | G145: 2.1 | H145: 5.34 | I145: 2.945312 | J145: 28.9 | K145: 4364 | L145: 3.970095 | M145: 23.171391
A146: HO5 | B146: 0.749195575 | C146: 430 | D146: 149 | E146: 0.077845 | F146: 0.454341 | G146: 2.1 | H146: 5.34 | I146: 2.945312 | J146: 28.9 | K146: 4364 | L146: 33.47335 | M146: 195.36663
A147: HO6 | B147: 1.015840603 | C147: 356 | D147: 72 | E147: 0.077845 | F147: 0.454341 | G147: 2.1 | H147: 5.34 | I147: 2.945312 | J147: 28.9 | K147: 4364 | L147: 27.71282 | M147: 161.745396
A148: HO7 | B148: 0.713566772 | C148: 350 | D148: 0 | E148: 0.077845 | F148: 0.454341 | G148: 2.1 | H148: 5.34 | I148: 2.945312 | J148: 28.9 | K148: 4364 | L148: 27.24575 | M148: 159.01935
A149: HO8 | B149: 0.970563409 | C149: 197 | D149: 4 | E149: 0.077845 | F149: 0.454341 | G149: 2.1 | H149: 5.34 | I149: 2.945312 | J149: 28.9 | K149: 4364 | L149: 15.335465 | M149: 89.505177
A150: HO9 | B150: 0.787804114 | C150: 299 | D150: 18 | E150: 0.077845 | F150: 0.454341 | G150: 2.1 | H150: 5.34 | I150: 2.945312 | J150: 28.9 | K150: 4364 | L150: 23.275655 | M150: 135.847959
A151: HO10 | B151: 0.75236496 | C151: 401 | D151: 127 | E151: 0.077845 | F151: 0.454341 | G151: 2.1 | H151: 5.34 | I151: 2.945312 | J151: 28.9 | K151: 4364 | L151: 31.215845 | M151: 182.190741
A152: HO11 | B152: 0.271619056 | C152: 423 | D152: 142 | E152: 0.077845 | F152: 0.454341 | G152: 2.1 | H152: 5.34 | I152: 2.945312 | J152: 28.9 | K152: 4364 | L152: 32.928435 | M152: 192.186243
A153: HO12 | B153: 0.821734834 | C153: 199 | D153: 65 | E153: 0.077845 | F153: 0.454341 | G153: 2.1 | H153: 5.34 | I153: 2.945312 | J153: 28.9 | K153: 4364 | L153: 15.491155 | M153: 90.413859
A154: HO13 | B154: 1.079259748 | C154: 14 | D154: 80 | E154: 0.077845 | F154: 0.454341 | G154: 2.1 | H154: 5.34 | I154: 2.945312 | J154: 28.9 | K154: 4364 | L154: 1.08983 | M154: 6.360774
A155: HO14 | B155: 1.484476988 | C155: 79 | D155: 6 | E155: 0.077845 | F155: 0.454341 | G155: 2.1 | H155: 5.34 | I155: 2.945312 | J155: 28.9 | K155: 4364 | L155: 6.149755 | M155: 35.892939
A156: HO15 | B156: 1.463187348 | C156: 970 | D156: 111 | E156: 0.077845 | F156: 0.454341 | G156: 2.1 | H156: 5.34 | I156: 2.945312 | J156: 28.9 | K156: 4364 | L156: 75.50965 | M156: 440.71077
A157: HO16 | B157: 2.14698424 | C157: 387 | D157: 2 | E157: 0.077845 | F157: 0.454341 | G157: 2.1 | H157: 5.34 | I157: 2.945312 | J157: 28.9 | K157: 4364 | L157: 30.126015 | M157: 175.829967
A158: HO17 | B158: 1.816059608 | C158: 399 | D158: 83 | E158: 0.077845 | F158: 0.454341 | G158: 2.1 | H158: 5.34 | I158: 2.945312 | J158: 28.9 | K158: 4364 | L158: 31.060155 | M158: 181.282059
A159: HO18 | B159: 1.018692881 | C159: 118 | D159: 13 | E159: 0.077845 | F159: 0.454341 | G159: 2.1 | H159: 5.34 | I159: 2.945312 | J159: 28.9 | K159: 4364 | L159: 9.18571 | M159: 53.612238
A160: HO19 | B160: 1.423885074 | C160: 0 | D160: 0 | E160: 0.077845 | F160: 0.454341 | G160: 2.1 | H160: 5.34 | I160: 2.945312 | J160: 28.9 | K160: 4364 | L160: 0 | M160: 0
A161: HO20 | B161: 1.368512653 | C161: 18 | D161: 16 | E161: 0.077845 | F161: 0.454341 | G161: 2.1 | H161: 5.34 | I161: 2.945312 | J161: 28.9 | K161: 4364 | L161: 1.40121 | M161: 8.178138
A162: RAM1 | B162: 1.896842051 | C162: 8 | D162: 4 | E162: 1.91211 | F162: 2.345 | G162: 0.6 | H162: 5.8 | I162: 0.291221 | J162: 27.7 | K162: 1362 | L162: 15.29688 | M162: 18.76
A163: RAM2 | B163: 2.03148391 | C163: 32 | D163: 188 | E163: 1.91211 | F163: 2.345 | G163: 0.6 | H163: 5.8 | I163: 0.291221 | J163: 27.7 | K163: 1362 | L163: 61.18752 | M163: 75.04
A164: RAM3 | B164: 2.149458185 | C164: 48 | D164: 74 | E164: 1.91211 | F164: 2.345 | G164: 0.6 | H164: 5.8 | I164: 0.291221 | J164: 27.7 | K164: 1362 | L164: 91.78128 | M164: 112.56
A165: RAM4 | B165: 2.436123068 | C165: 44 | D165: 70 | E165: 1.91211 | F165: 2.345 | G165: 0.6 | H165: 5.8 | I165: 0.291221 | J165: 27.7 | K165: 1362 | L165: 84.13284 | M165: 103.18
A166: RAM5 | B166: 1.751073265 | C166: 67 | D166: 28 | E166: 1.91211 | F166: 2.345 | G166: 0.6 | H166: 5.8 | I166: 0.291221 | J166: 27.7 | K166: 1362 | L166: 128.11137 | M166: 157.115
A167: RAM6 | B167: 1.925911148 | C167: 14 | D167: 36 | E167: 1.91211 | F167: 2.345 | G167: 0.6 | H167: 5.8 | I167: 0.291221 | J167: 27.7 | K167: 1362 | L167: 26.76954 | M167: 32.83
A168: RAM7 | B168: 1.167743055 | C168: 44 | D168: 42 | E168: 1.91211 | F168: 2.345 | G168: 0.6 | H168: 5.8 | I168: 0.291221 | J168: 27.7 | K168: 1362 | L168: 84.13284 | M168: 103.18
A169: RAM8 | B169: 1.243270899 | C169: 89 | D169: 53 | E169: 1.91211 | F169: 2.345 | G169: 0.6 | H169: 5.8 | I169: 0.291221 | J169: 27.7 | K169: 1362 | L169: 170.17779 | M169: 208.705
A170: RAM9 | B170: 1.252724333 | C170: 108 | D170: 33 | E170: 1.91211 | F170: 2.345 | G170: 0.6 | H170: 5.8 | I170: 0.291221 | J170: 27.7 | K170: 1362 | L170: 206.50788 | M170: 253.26
A171: RAM10 | B171: 1.990051425 | C171: 6 | D171: 38 | E171: 1.91211 | F171: 2.345 | G171: 0.6 | H171: 5.8 | I171: 0.291221 | J171: 27.7 | K171: 1362 | L171: 11.47266 | M171: 14.07
A172: RAM11 | B172: 1.466826553 | C172: 10 | D172: 61 | E172: 1.91211 | F172: 2.345 | G172: 0.6 | H172: 5.8 | I172: 0.291221 | J172: 27.7 | K172: 1362 | L172: 19.1211 | M172: 23.45
A173: RAM12 | B173: 0.855339386 | C173: 6 | D173: 32 | E173: 1.91211 | F173: 2.345 | G173: 0.6 | H173: 5.8 | I173: 0.291221 | J173: 27.7 | K173: 1362 | L173: 11.47266 | M173: 14.07
A174: RAM13 | B174: 1.541739366 | C174: 12 | D174: 8 | E174: 1.91211 | F174: 2.345 | G174: 0.6 | H174: 5.8 | I174: 0.291221 | J174: 27.7 | K174: 1362 | L174: 22.94532 | M174: 28.14
A175: RAM14 | B175: 1.172425584 | C175: 54 | D175: 30 | E175: 1.91211 | F175: 2.345 | G175: 0.6 | H175: 5.8 | I175: 0.291221 | J175: 27.7 | K175: 1362 | L175: 103.25394 | M175: 126.63
A176: RAM15 | B176: 1.412025591 | C176: 6 | D176: 32 | E176: 1.91211 | F176: 2.345 | G176: 0.6 | H176: 5.8 | I176: 0.291221 | J176: 27.7 | K176: 1362 | L176: 11.47266 | M176: 14.07
A177: RAM16 | B177: 1.331848343 | C177: 0 | D177: 32 | E177: 1.91211 | F177: 2.345 | G177: 0.6 | H177: 5.8 | I177: 0.291221 | J177: 27.7 | K177: 1362 | L177: 0 | M177: 0
A178: RAM17 | B178: 1.380922637 | C178: 46 | D178: 7 | E178: 1.91211 | F178: 2.345 | G178: 0.6 | H178: 5.8 | I178: 0.291221 | J178: 27.7 | K178: 1362 | L178: 87.95706 | M178: 107.87
A179: RAM18 | B179: 1.296796913 | C179: 4 | D179: 8 | E179: 1.91211 | F179: 2.345 | G179: 0.6 | H179: 5.8 | I179: 0.291221 | J179: 27.7 | K179: 1362 | L179: 7.64844 | M179: 9.38
A180: RAM19 | B180: 0.912989446 | C180: 407 | D180: 108 | E180: 1.91211 | F180: 2.345 | G180: 0.6 | H180: 5.8 | I180: 0.291221 | J180: 27.7 | K180: 1362 | L180: 778.22877 | M180: 954.415
A181: RAM20 | B181: 1.175374169 | C181: 202 | D181: 138 | E181: 1.91211 | F181: 2.345 | G181: 0.6 | H181: 5.8 | I181: 0.291221 | J181: 27.7 | K181: 1362 | L181: 386.24622 | M181: 473.69
A182: SMI1 | B182: 0.558509598 | C182: 454 | D182: 758 | E182: 0.13168026 | F182: 9.467 | G182: 0.3 | H182: 8.77 | I182: 2.7416 | J182: 31.7 | K182: 1685 | L182: 59.78283804 | M182: 4298.018
A183: SMI2 | B183: 0.827970149 | C183: 52 | D183: 2 | E183: 0.13168026 | F183: 9.467 | G183: 0.3 | H183: 8.77 | I183: 2.7416 | J183: 31.7 | K183: 1685 | L183: 6.84737352 | M183: 492.284
A184: SMI3 | B184: 0.736619903 | C184: 65 | D184: 72 | E184: 0.13168026 | F184: 9.467 | G184: 0.3 | H184: 8.77 | I184: 2.7416 | J184: 31.7 | K184: 1685 | L184: 8.5592169 | M184: 615.355
A185: SMI4 | B185: 0.823190199 | C185: 296 | D185: 111 | E185: 0.13168026 | F185: 9.467 | G185: 0.3 | H185: 8.77 | I185: 2.7416 | J185: 31.7 | K185: 1685 | L185: 38.97735696 | M185: 2802.232
A186: SMI5 | B186: 0.893752731 | C186: 558 | D186: 106 | E186: 0.13168026 | F186: 9.467 | G186: 0.3 | H186: 8.77 | I186: 2.7416 | J186: 31.7 | K186: 1685 | L186: 73.47758508 | M186: 5282.586
A187: SMI6 | B187: 0.599444821 | C187: 241 | D187: 54 | E187: 0.13168026 | F187: 9.467 | G187: 0.3 | H187: 8.77 | I187: 2.7416 | J187: 31.7 | K187: 1685 | L187: 31.73494266 | M187: 2281.547
A188: SMI7 | B188: 0.20823453 | C188: 602 | D188: 252 | E188: 0.13168026 | F188: 9.467 | G188: 0.3 | H188: 8.77 | I188: 2.7416 | J188: 31.7 | K188: 1685 | L188: 79.27151652 | M188: 5699.134
A189: SMI8 | B189: 0.935846693 | C189: 416 | D189: 36 | E189: 0.13168026 | F189: 9.467 | G189: 0.3 | H189: 8.77 | I189: 2.7416 | J189: 31.7 | K189: 1685 | L189: 54.77898816 | M189: 3938.272
A190: SMI9 | B190: 0.985956039 | C190: 76 | D190: 28 | E190: 0.13168026 | F190: 9.467 | G190: 0.3 | H190: 8.77 | I190: 2.7416 | J190: 31.7 | K190: 1685 | L190: 10.00769976 | M190: 719.492
A191: SMI10 | B191: 0.536814367 | C191: 198 | D191: 30 | E191: 0.13168026 | F191: 9.467 | G191: 0.3 | H191: 8.77 | I191: 2.7416 | J191: 31.7 | K191: 1685 | L191: 26.07269148 | M191: 1874.466
A192: SMI11 | B192: 0.782472974 | C192: 98 | D192: 778 | E192: 0.13168026 | F192: 9.467 | G192: 0.3 | H192: 8.77 | I192: 2.7416 | J192: 31.7 | K192: 1685 | L192: 12.90466548 | M192: 927.766
A193: SMI12 | B193: 0.944980678 | C193: 96 | D193: 20 | E193: 0.13168026 | F193: 9.467 | G193: 0.3 | H193: 8.77 | I193: 2.7416 | J193: 31.7 | K193: 1685 | L193: 12.64130496 | M193: 908.832
A194: SMI13 | B194: 0.845755318 | C194: 190 | D194: 28 | E194: 0.13168026 | F194: 9.467 | G194: 0.3 | H194: 8.77 | I194: 2.7416 | J194: 31.7 | K194: 1685 | L194: 25.0192494 | M194: 1798.73
A195: SMI14 | B195: 0.795267551 | C195: 421 | D195: 187 | E195: 0.13168026 | F195: 9.467 | G195: 0.3 | H195: 8.77 | I195: 2.7416 | J195: 31.7 | K195: 1685 | L195: =E195*C195 -> 55.43738946 | M195: =F195*C195 -> 3985.607
A196: SMI15 | B196: 0.731447264 | C196: 376 | D196: 364 | E196: 0.13168026 | F196: 9.467 | G196: 0.3 | H196: 8.77 | I196: 2.7416 | J196: 31.7 | K196: 1685 | L196: 49.51177776 | M196: 3559.592
A197: SMI16 | B197: 0.852153082 | C197: 99 | D197: 154 | E197: 0.13168026 | F197: 9.467 | G197: 0.3 | H197: 8.77 | I197: 2.7416 | J197: 31.7 | K197: 1685 | L197: 13.03634574 | M197: 937.233
A198: SMI17 | B198: 0.88642249 | C198: 460 | D198: 154 | E198: 0.13168026 | F198: 9.467 | G198: 0.3 | H198: 8.77 | I198: 2.7416 | J198: 31.7 | K198: 1685 | L198: 60.5729196 | M198: 4354.82
A199: SMI18 | B199: 0.777212178 | C199: 27 | D199: 28 | E199: 0.13168026 | F199: 9.467 | G199: 0.3 | H199: 8.77 | I199: 2.7416 | J199: 31.7 | K199: 1685 | L199: 3.55536702 | M199: 255.609
A200: SMI19 | B200: 1.653239196 | C200: 0 | D200: 20 | E200: 0.13168026 | F200: 9.467 | G200: 0.3 | H200: 8.77 | I200: 2.7416 | J200: 31.7 | K200: 1685 | L200: 0 | M200: 0
... 241 more rows

Sheet Mortality
B1: Dependent variables | E1: Independent variables
A2: FARM | B2: FC condition factor | C2: Mortality | D2: MortLn+1 | E2: Cs | F2: Temperature (T °C) | G2: Ammonium (mg/l) | H2: Nitrates (mg/l) | I2: Salinity (ppt) | J2: Dissolved oxygen (mg/l) | K2: Nitrites (mg/l) | L2: Temperature (T °C) | M2: Conductivity (μS/cm) | N2: Cs*NH4 | O2: Cs*NO3 | P2: Fish age (months) | Q2: Fingerlings source | R2: Mean annual production (kg) | S2: Number of tanks on the farm | T2: Tank capacity (m3) | U2: Type of tanks | V2: Fish density per tank | W2: Epidemiological outbreaks | X2: Prophylactic treatments | Y2: Quarantine area | Z2: Vector presence | AA2: Guardhouse | AB2: Footbaths | AC2: Tank cleaning | AD2: Bathroom | AE2: Disinfection of equipment | AF2: Warehouse | AG2: Drug use | AH2: Incineration of organisms | AI2: Education level of workers | AJ2: Number of workers | AK2: Drainage | AL2: Nearby communities | AM2: Communication | AN2: Places of residence | AO2: Livestock areas | AP2: Agricultural areas | AQ2: Accumulation of garbage | AR2: Accumulation of dead animals | AS2: Water discharge treatment | AT2: Other land uses | AU2: Water exchange rate | AV2: LnCs | AW2: LnT-Cs | AX2: LnNH4 | AY2: LnNO3 | AZ2: LnS | BA2: LnO | BB2: LnNO2 | BC2: LnT | BD2: LnUS | BE2: LnCs*NH4 | BF2: LnCs*NO3 | BG2: LnMortality | BH2: LnFish age | BI2: LnMean annual production (kg) | BJ2: LnNumber of tanks on the farm | BK2: LnTank capacity (m3) | BL2: LnFish density per tank | BM2: LnIncineration of organisms | BN2: LnNumber of workers
A3: MU1 | B3: 0.9234 | C3: 6.66 | D3: 2.90 | E3: 171 | F3: 14 | G3: 0.016875 | H3: 0.109157681 | I3: 0.5 | J3: 3.5 | K3: 0.00516373 | L3: 27.8 | M3: 2345 | N3: =G3*E3 -> 2.885625 | O3: =H3*E3 -> 18.66596345 | P3: 2.5 | Q3: 2 | R3: 12000 | S3: 12 | T3: 13 | U3: 1 | V3: 5000 | W3: 4 | X3: 2 | Y3: 1 | Z3: 3 | AA3: 2 | AB3: 1 | AC3: 2 | AD3: 2 | AE3: 2 | AF3: 2 | AG3: 4 | AH3: 1 | AI3: 1 | AJ3: 4 | AK3: 2 | AL3: 1 | AM3: 2 | AN3: 3 | AO3: 1 | AP3: 2 | AQ3: 2 | AR3: 2 | AS3: 2 | AT3: 1 | AU3: 2 | AV3: =LN(E3) -> 5.141663557 | AW3: =LN(F3) -> 2.63905733 | AX3: =LN(G3) -> -4.081922042 | AY3: =LN(H3) -> -2.214961827 | AZ3: =LN(I3) -> -0.6931471806 | BA3: =LN(J3) -> 1.252762968 | BB3: =LN(K3) -> -5.266096092 | BC3: =LN(L3) -> 3.325036021 | BD3: =LN(M3) -> 7.760040681 | BE3: =LN(N3) -> 1.059741514 | BF3: =LN(O3) -> 2.926701729 | BG3: =LN(#REF!) ->  | BH3: =LN(P3) -> 0.9162907319 | BI3: =LN(R3) -> 9.392661929 | BJ3: =LN(S3) -> 2.48490665 | BK3: =LN(T3) -> 2.564949357 | BL3: =LN(V3) -> 8.517193191 | BM3: =LN(AH3) -> 0 | BN3: =LN(AJ3) -> 1.386294361
A4: MU2 | B4: 0.928285076 | C4: 6.66 | D4: 2.90 | E4: 97 | F4: 18 | G4: 0.016875 | H4: 0.109157681 | I4: 0.5 | J4: 3.5 | K4: 0.00516373 | L4: 27.8 | M4: 2345 | N4: =G4*E4 -> 1.636875 | O4: =H4*E4 -> 10.58829506 | P4: 2.5 | Q4: 2 | R4: 12000 | S4: 12 | T4: 13 | U4: 1 | V4: 5000 | W4: 4 | X4: 2 | Y4: 1 | Z4: 3 | AA4: 2 | AB4: 1 | AC4: 2 | AD4: 2 | AE4: 2 | AF4: 2 | AG4: 4 | AH4: 1 | AI4: 1 | AJ4: 4 | AK4: 2 | AL4: 1 | AM4: 2 | AN4: 3 | AO4: 1 | AP4: 2 | AQ4: 2 | AR4: 2 | AS4: 2 | AT4: 1 | AU4: 2 | AV4: 4.574710979 | AW4: 2.890371758 | AX4: -4.081922042 | AY4: -2.214961827 | AZ4: -0.6931471806 | BA4: 1.252762968 | BB4: -5.266096092 | BC4: 3.325036021 | BD4: 7.760040681 | BE4: 0.4927889363 | BF4: 2.359749151 | BG4: =LN(#REF!) ->  | BH4: 0.9162907319 | BI4: 9.392661929 | BJ4: 2.48490665 | BK4: 2.564949357 | BL4: 8.517193191 | BM4: =LN(AH4) -> 0 | BN4: =LN(AJ4) -> 1.386294361
A5: MU3 | B5: 0.868880927 | C5: 6.66 | D5: 2.90 | E5: 198 | F5: 26 | G5: 0.016875 | H5: 0.109157681 | I5: 0.5 | J5: 3.5 | K5: 0.00516373 | L5: 27.8 | M5: 2345 | N5: 3.34125 | O5: 21.61322084 | P5: 2.5 | Q5: 2 | R5: 12000 | S5: 12 | T5: 13 | U5: 1 | V5: 5000 | W5: 4 | X5: 2 | Y5: 1 | Z5: 3 | AA5: 2 | AB5: 1 | AC5: 2 | AD5: 2 | AE5: 2 | AF5: 2 | AG5: 4 | AH5: 1 | AI5: 1 | AJ5: 4 | AK5: 2 | AL5: 1 | AM5: 2 | AN5: 3 | AO5: 1 | AP5: 2 | AQ5: 2 | AR5: 2 | AS5: 2 | AT5: 1 | AU5: 2 | AV5: 5.288267031 | AW5: 3.258096538 | AX5: -4.081922042 | AY5: -2.214961827 | AZ5: -0.6931471806 | BA5: 1.252762968 | BB5: -5.266096092 | BC5: 3.325036021 | BD5: 7.760040681 | BE5: 1.206344988 | BF5: 3.073305203 | BG5: =LN(#REF!) ->  | BH5: 0.9162907319 | BI5: 9.392661929 | BJ5: 2.48490665 | BK5: 2.564949357 | BL5: 8.517193191 | BM5: 0 | BN5: 1.386294361
A6: MU4 | B6: 0.944552412 | C6: 6.66 | D6: 2.90 | E6: 75 | F6: 24 | G6: 0.016875 | H6: 0.109157681 | I6: 0.5 | J6: 3.5 | K6: 0.00516373 | L6: 27.8 | M6: 2345 | N6: 1.265625 | O6: 8.186826075 | P6: 2.5 | Q6: 2 | R6: 12000 | S6: 12 | T6: 13 | U6: 1 | V6: 5000 | W6: 4 | X6: 2 | Y6: 1 | Z6: 3 | AA6: 2 | AB6: 1 | AC6: 2 | AD6: 2 | AE6: 2 | AF6: 2 | AG6: 4 | AH6: 1 | AI6: 1 | AJ6: 4 | AK6: 2 | AL6: 1 | AM6: 2 | AN6: 3 | AO6: 1 | AP6: 2 | AQ6: 2 | AR6: 2 | AS6: 2 | AT6: 1 | AU6: 2 | AV6: 4.317488114 | AW6: 3.17805383 | AX6: -4.081922042 | AY6: -2.214961827 | AZ6: -0.6931471806 | BA6: 1.252762968 | BB6: -5.266096092 | BC6: 3.325036021 | BD6: 7.760040681 | BE6: 0.2355660713 | BF6: 2.102526286 | BG6: =LN(#REF!) ->  | BH6: 0.9162907319 | BI6: 9.392661929 | BJ6: 2.48490665 | BK6: 2.564949357 | BL6: 8.517193191 | BM6: 0 | BN6: 1.386294361
A7: MU5 | B7: 0.955088411 | C7: 6.66 | D7: 2.90 | E7: 45 | F7: 12 | G7: 0.016875 | H7: 0.109157681 | I7: 0.5 | J7: 3.5 | K7: 0.00516373 | L7: 27.8 | M7: 2345 | N7: 0.759375 | O7: 4.912095645 | P7: 2.5 | Q7: 2 | R7: 12000 | S7: 12 | T7: 13 | U7: 1 | V7: 5000 | W7: 4 | X7: 2 | Y7: 1 | Z7: 3 | AA7: 2 | AB7: 1 | AC7: 2 | AD7: 2 | AE7: 2 | AF7: 2 | AG7: 4 | AH7: 1 | AI7: 1 | AJ7: 4 | AK7: 2 | AL7: 1 | AM7: 2 | AN7: 3 | AO7: 1 | AP7: 2 | AQ7: 2 | AR7: 2 | AS7: 2 | AT7: 1 | AU7: 2 | AV7: 3.80666249 | AW7: 2.48490665 | AX7: -4.081922042 | AY7: -2.214961827 | AZ7: -0.6931471806 | BA7: 1.252762968 | BB7: -5.266096092 | BC7: 3.325036021 | BD7: 7.760040681 | BE7: -0.2752595525 | BF7: 1.591700662 | BG7: =LN(#REF!) ->  | BH7: 0.9162907319 | BI7: 9.392661929 | BJ7: 2.48490665 | BK7: 2.564949357 | BL7: 8.517193191 | BM7: 0 | BN7: 1.386294361
A8: MU6 | B8: 1.311930264 | C8: 6.66 | D8: 2.90 | E8: 389 | F8: 54 | G8: 0.016875 | H8: 0.109157681 | I8: 0.5 | J8: 3.5 | K8: 0.00516373 | L8: 27.8 | M8: 2345 | N8: 6.564375 | O8: 42.46233791 | P8: 2.5 | Q8: 2 | R8: 12000 | S8: 12 | T8: 13 | U8: 1 | V8: 5000 | W8: 4 | X8: 2 | Y8: 1 | Z8: 3 | AA8: 2 | AB8: 1 | AC8: 2 | AD8: 2 | AE8: 2 | AF8: 2 | AG8: 4 | AH8: 1 | AI8: 1 | AJ8: 4 | AK8: 2 | AL8: 1 | AM8: 2 | AN8: 3 | AO8: 1 | AP8: 2 | AQ8: 2 | AR8: 2 | AS8: 2 | AT8: 1 | AU8: 2 | AV8: 5.963579344 | AW8: 3.988984047 | AX8: -4.081922042 | AY8: -2.214961827 | AZ8: -0.6931471806 | BA8: 1.252762968 | BB8: -5.266096092 | BC8: 3.325036021 | BD8: 7.760040681 | BE8: 1.881657301 | BF8: 3.748617516 | BG8: =LN(#REF!) ->  | BH8: 0.9162907319 | BI8: 9.392661929 | BJ8: 2.48490665 | BK8: 2.564949357 | BL8: 8.517193191 | BM8: 0 | BN8: 1.386294361
A9: MU7 | B9: 0.904083666 | C9: 6.66 | D9: 2.90 | E9: 25 | F9: 30 | G9: 0.016875 | H9: 0.109157681 | I9: 0.5 | J9: 3.5 | K9: 0.00516373 | L9: 27.8 | M9: 2345 | N9: 0.421875 | O9: 2.728942025 | P9: 2.5 | Q9: 2 | R9: 12000 | S9: 12 | T9: 13 | U9: 1 | V9: 5000 | W9: 4 | X9: 2 | Y9: 1 | Z9: 3 | AA9: 2 | AB9: 1 | AC9: 2 | AD9: 2 | AE9: 2 | AF9: 2 | AG9: 4 | AH9: 1 | AI9: 1 | AJ9: 4 | AK9: 2 | AL9: 1 | AM9: 2 | AN9: 3 | AO9: 1 | AP9: 2 | AQ9: 2 | AR9: 2 | AS9: 2 | AT9: 1 | AU9: 2 | AV9: 3.218875825 | AW9: 3.401197382 | AX9: -4.081922042 | AY9: -2.214961827 | AZ9: -0.6931471806 | BA9: 1.252762968 | BB9: -5.266096092 | BC9: 3.325036021 | BD9: 7.760040681 | BE9: -0.8630462174 | BF9: 1.003913997 | BG9: =LN(#REF!) ->  | BH9: 0.9162907319 | BI9: 9.392661929 | BJ9: 2.48490665 | BK9: 2.564949357 | BL9: 8.517193191 | BM9: 0 | BN9: 1.386294361
A10: MU8 | B10: 0.336078212 | C10: 6.66 | D10: 2.90 | E10: 385 | F10: 394 | G10: 0.016875 | H10: 0.109157681 | I10: 0.5 | J10: 3.5 | K10: 0.00516373 | L10: 27.8 | M10: 2345 | N10: 6.496875 | O10: 42.02570719 | P10: 2.5 | Q10: 2 | R10: 12000 | S10: 12 | T10: 13 | U10: 1 | V10: 5000 | W10: 4 | X10: 2 | Y10: 1 | Z10: 3 | AA10: 2 | AB10: 1 | AC10: 2 | AD10: 2 | AE10: 2 | AF10: 2 | AG10: 4 | AH10: 1 | AI10: 1 | AJ10: 4 | AK10: 2 | AL10: 1 | AM10: 2 | AN10: 3 | AO10: 1 | AP10: 2 | AQ10: 2 | AR10: 2 | AS10: 2 | AT10: 1 | AU10: 2 | AV10: 5.953243334 | AW10: 5.976350909 | AX10: -4.081922042 | AY10: -2.214961827 | AZ10: -0.6931471806 | BA10: 1.252762968 | BB10: -5.266096092 | BC10: 3.325036021 | BD10: 7.760040681 | BE10: 1.871321292 | BF10: 3.738281507 | BG10: =LN(#REF!) ->  | BH10: 0.9162907319 | BI10: 9.392661929 | BJ10: 2.48490665 | BK10: 2.564949357 | BL10: 8.517193191 | BM10: 0 | BN10: 1.386294361
A11: MU9 | B11: 0.233412353 | C11: 6.66 | D11: 2.90 | E11: 598 | F11: 145 | G11: 0.016875 | H11: 0.109157681 | I11: 0.5 | J11: 3.5 | K11: 0.00516373 | L11: 27.8 | M11: 2345 | N11: 10.09125 | O11: 65.27629324 | P11: 2.5 | Q11: 2 | R11: 12000 | S11: 12 | T11: 13 | U11: 1 | V11: 5000 | W11: 4 | X11: 2 | Y11: 1 | Z11: 3 | AA11: 2 | AB11: 1 | AC11: 2 | AD11: 2 | AE11: 2 | AF11: 2 | AG11: 4 | AH11: 1 | AI11: 1 | AJ11: 4 | AK11: 2 | AL11: 1 | AM11: 2 | AN11: 3 | AO11: 1 | AP11: 2 | AQ11: 2 | AR11: 2 | AS11: 2 | AT11: 1 | AU11: 2 | AV11: 6.393590754 | AW11: 4.976733742 | AX11: -4.081922042 | AY11: -2.214961827 | AZ11: -0.6931471806 | BA11: 1.252762968 | BB11: -5.266096092 | BC11: 3.325036021 | BD11: 7.760040681 | BE11: 2.311668712 | BF11: 4.178628927 | BG11: =LN(#REF!) ->  | BH11: 0.9162907319 | BI11: 9.392661929 | BJ11: 2.48490665 | BK11: 2.564949357 | BL11: 8.517193191 | BM11: 0 | BN11: 1.386294361
A12: MU10 | B12: 0.656702294 | C12: 6.66 | D12: 2.90 | E12: 401 | F12: 64 | G12: 0.016875 | H12: 0.109157681 | I12: 0.5 | J12: 3.5 | K12: 0.00516373 | L12: 27.8 | M12: 2345 | N12: 6.766875 | O12: 43.77223008 | P12: 2.5 | Q12: 2 | R12: 12000 | S12: 12 | T12: 13 | U12: 1 | V12: 5000 | W12: 4 | X12: 2 | Y12: 1 | Z12: 3 | AA12: 2 | AB12: 1 | AC12: 2 | AD12: 2 | AE12: 2 | AF12: 2 | AG12: 4 | AH12: 1 | AI12: 1 | AJ12: 4 | AK12: 2 | AL12: 1 | AM12: 2 | AN12: 3 | AO12: 1 | AP12: 2 | AQ12: 2 | AR12: 2 | AS12: 2 | AT12: 1 | AU12: 2 | AV12: 5.993961427 | AW12: 4.158883083 | AX12: -4.081922042 | AY12: -2.214961827 | AZ12: -0.6931471806 | BA12: 1.252762968 | BB12: -5.266096092 | BC12: 3.325036021 | BD12: 7.760040681 | BE12: 1.912039385 | BF12: 3.7789996 | BG12: =LN(#REF!) ->  | BH12: 0.9162907319 | BI12: 9.392661929 | BJ12: 2.48490665 | BK12: 2.564949357 | BL12: 8.517193191 | BM12: 0 | BN12: 1.386294361
A13: MU11 | B13: 1.262556265 | C13: 6.66 | D13: 2.90 | E13: 266 | F13: 65 | G13: 0.016875 | H13: 0.109157681 | I13: 0.5 | J13: 3.5 | K13: 0.00516373 | L13: 27.8 | M13: 2345 | N13: 4.48875 | O13: 29.03594315 | P13: 2.5 | Q13: 2 | R13: 12000 | S13: 12 | T13: 13 | U13: 1 | V13: 5000 | W13: 4 | X13: 2 | Y13: 1 | Z13: 3 | AA13: 2 | AB13: 1 | AC13: 2 | AD13: 2 | AE13: 2 | AF13: 2 | AG13: 4 | AH13: 1 | AI13: 1 | AJ13: 4 | AK13: 2 | AL13: 1 | AM13: 2 | AN13: 3 | AO13: 1 | AP13: 2 | AQ13: 2 | AR13: 2 | AS13: 2 | AT13: 1 | AU13: 2 | AV13: 5.583496309 | AW13: 4.17438727 | AX13: -4.081922042 | AY13: -2.214961827 | AZ13: -0.6931471806 | BA13: 1.252762968 | BB13: -5.266096092 | BC13: 3.325036021 | BD13: 7.760040681 | BE13: 1.501574267 | BF13: 3.368534481 | BG13: =LN(#REF!) ->  | BH13: 0.9162907319 | BI13: 9.392661929 | BJ13: 2.48490665 | BK13: 2.564949357 | BL13: 8.517193191 | BM13: 0 | BN13: 1.386294361
A14: MU12 | B14: 0.643470483 | C14: 6.66 | D14: 2.90 | E14: 137 | F14: 19 | G14: 0.016875 | H14: 0.109157681 | I14: 0.5 | J14: 3.5 | K14: 0.00516373 | L14: 27.8 | M14: 2345 | N14: 2.311875 | O14: 14.9546023 | P14: 2.5 | Q14: 2 | R14: 12000 | S14: 12 | T14: 13 | U14: 1 | V14: 5000 | W14: 4 | X14: 2 | Y14: 1 | Z14: 3 | AA14: 2 | AB14: 1 | AC14: 2 | AD14: 2 | AE14: 2 | AF14: 2 | AG14: 4 | AH14: 1 | AI14: 1 | AJ14: 4 | AK14: 2 | AL14: 1 | AM14: 2 | AN14: 3 | AO14: 1 | AP14: 2 | AQ14: 2 | AR14: 2 | AS14: 2 | AT14: 1 | AU14: 2 | AV14: 4.919980926 | AW14: 2.944438979 | AX14: -4.081922042 | AY14: -2.214961827 | AZ14: -0.6931471806 | BA14: 1.252762968 | BB14: -5.266096092 | BC14: 3.325036021 | BD14: 7.760040681 | BE14: 0.8380588836 | BF14: 2.705019098 | BG14: =LN(#REF!) ->  | BH14: 0.9162907319 | BI14: 9.392661929 | BJ14: 2.48490665 | BK14: 2.564949357 | BL14: 8.517193191 | BM14: 0 | BN14: 1.386294361
A15: MU13 | B15: 1.129726924 | C15: 6.66 | D15: 2.90 | E15: 101 | F15: 28 | G15: 0.016875 | H15: 0.109157681 | I15: 0.5 | J15: 3.5 | K15: 0.00516373 | L15: 27.8 | M15: 2345 | N15: 1.704375 | O15: 11.02492578 | P15: 2.5 | Q15: 2 | R15: 12000 | S15: 12 | T15: 13 | U15: 1 | V15: 5000 | W15: 4 | X15: 2 | Y15: 1 | Z15: 3 | AA15: 2 | AB15: 1 | AC15: 2 | AD15: 2 | AE15: 2 | AF15: 2 | AG15: 4 | AH15: 1 | AI15: 1 | AJ15: 4 | AK15: 2 | AL15: 1 | AM15: 2 | AN15: 3 | AO15: 1 | AP15: 2 | AQ15: 2 | AR15: 2 | AS15: 2 | AT15: 1 | AU15: 2 | AV15: 4.615120517 | AW15: 3.33220451 | AX15: -4.081922042 | AY15: -2.214961827 | AZ15: -0.6931471806 | BA15: 1.252762968 | BB15: -5.266096092 | BC15: 3.325036021 | BD15: 7.760040681 | BE15: 0.5331984746 | BF15: 2.400158689 | BG15: =LN(#REF!) ->  | BH15: 0.9162907319 | BI15: 9.392661929 | BJ15: 2.48490665 | BK15: 2.564949357 | BL15: 8.517193191 | BM15: 0 | BN15: 1.386294361
A16: MU14 | B16: 0.903409389 | C16: 6.66 | D16: 2.90 | E16: 154 | F16: 30 | G16: 0.016875 | H16: 0.109157681 | I16: 0.5 | J16: 3.5 | K16: 0.00516373 | L16: 27.8 | M16: 2345 | N16: 2.59875 | O16: 16.81028287 | P16: 2.5 | Q16: 2 | R16: 12000 | S16: 12 | T16: 13 | U16: 1 | V16: 5000 | W16: 4 | X16: 2 | Y16: 1 | Z16: 3 | AA16: 2 | AB16: 1 | AC16: 2 | AD16: 2 | AE16: 2 | AF16: 2 | AG16: 4 | AH16: 1 | AI16: 1 | AJ16: 4 | AK16: 2 | AL16: 1 | AM16: 2 | AN16: 3 | AO16: 1 | AP16: 2 | AQ16: 2 | AR16: 2 | AS16: 2 | AT16: 1 | AU16: 2 | AV16: 5.036952602 | AW16: 3.401197382 | AX16: -4.081922042 | AY16: -2.214961827 | AZ16: -0.6931471806 | BA16: 1.252762968 | BB16: -5.266096092 | BC16: 3.325036021 | BD16: 7.760040681 | BE16: 0.9550305602 | BF16: 2.821990775 | BG16: =LN(#REF!) ->  | BH16: 0.9162907319 | BI16: 9.392661929 | BJ16: 2.48490665 | BK16: 2.564949357 | BL16: 8.517193191 | BM16: 0 | BN16: 1.386294361
A17: MU15 | B17: 1.646473626 | C17: 6.66 | D17: 2.90 | E17: 98 | F17: 12 | G17: 0.016875 | H17: 0.109157681 | I17: 0.5 | J17: 3.5 | K17: 0.00516373 | L17: 27.8 | M17: 2345 | N17: 1.65375 | O17: 10.69745274 | P17: 2.5 | Q17: 2 | R17: 12000 | S17: 12 | T17: 13 | U17: 1 | V17: 5000 | W17: 4 | X17: 2 | Y17: 1 | Z17: 3 | AA17: 2 | AB17: 1 | AC17: 2 | AD17: 2 | AE17: 2 | AF17: 2 | AG17: 4 | AH17: 1 | AI17: 1 | AJ17: 4 | AK17: 2 | AL17: 1 | AM17: 2 | AN17: 3 | AO17: 1 | AP17: 2 | AQ17: 2 | AR17: 2 | AS17: 2 | AT17: 1 | AU17: 2 | AV17: 4.584967479 | AW17: 2.48490665 | AX17: -4.081922042 | AY17: -2.214961827 | AZ17: -0.6931471806 | BA17: 1.252762968 | BB17: -5.266096092 | BC17: 3.325036021 | BD17: 7.760040681 | BE17: 0.5030454364 | BF17: 2.370005651 | BG17: =LN(#REF!) ->  | BH17: 0.9162907319 | BI17: 9.392661929 | BJ17: 2.48490665 | BK17: 2.564949357 | BL17: 8.517193191 | BM17: 0 | BN17: 1.386294361
A18: MU16 | B18: 0.941764206 | C18: 6.66 | D18: 2.90 | E18: 298 | F18: 202 | G18: 0.016875 | H18: 0.109157681 | I18: 0.5 | J18: 3.5 | K18: 0.00516373 | L18: 27.8 | M18: 2345 | N18: 5.02875 | O18: 32.52898894 | P18: 2.5 | Q18: 2 | R18: 12000 | S18: 12 | T18: 13 | U18: 1 | V18: 5000 | W18: 4 | X18: 2 | Y18: 1 | Z18: 3 | AA18: 2 | AB18: 1 | AC18: 2 | AD18: 2 | AE18: 2 | AF18: 2 | AG18: 4 | AH18: 1 | AI18: 1 | AJ18: 4 | AK18: 2 | AL18: 1 | AM18: 2 | AN18: 3 | AO18: 1 | AP18: 2 | AQ18: 2 | AR18: 2 | AS18: 2 | AT18: 1 | AU18: 2 | AV18: 5.697093487 | AW18: 5.308267697 | AX18: -4.081922042 | AY18: -2.214961827 | AZ18: -0.6931471806 | BA18: 1.252762968 | BB18: -5.266096092 | BC18: 3.325036021 | BD18: 7.760040681 | BE18: 1.615171444 | BF18: 3.482131659 | BG18: =LN(#REF!) ->  | BH18: 0.9162907319 | BI18: 9.392661929 | BJ18: 2.48490665 | BK18: 2.564949357 | BL18: 8.517193191 | BM18: 0 | BN18: 1.386294361
A19: MU17 | B19: 1.095854111 | C19: 6.66 | D19: 2.90 | E19: 87 | F19: 62 | G19: 0.016875 | H19: 0.109157681 | I19: 0.5 | J19: 3.5 | K19: 0.00516373 | L19: 27.8 | M19: 2345 | N19: 1.468125 | O19: 9.496718247 | P19: 2.5 | Q19: 2 | R19: 12000 | S19: 12 | T19: 13 | U19: 1 | V19: 5000 | W19: 4 | X19: 2 | Y19: 1 | Z19: 3 | AA19: 2 | AB19: 1 | AC19: 2 | AD19: 2 | AE19: 2 | AF19: 2 | AG19: 4 | AH19: 1 | AI19: 1 | AJ19: 4 | AK19: 2 | AL19: 1 | AM19: 2 | AN19: 3 | AO19: 1 | AP19: 2 | AQ19: 2 | AR19: 2 | AS19: 2 | AT19: 1 | AU19: 2 | AV19: 4.465908119 | AW19: 4.127134385 | AX19: -4.081922042 | AY19: -2.214961827 | AZ19: -0.6931471806 | BA19: 1.252762968 | BB19: -5.266096092 | BC19: 3.325036021 | BD19: 7.760040681 | BE19: 0.3839860764 | BF19: 2.250946291 | BG19: =LN(#REF!) ->  | BH19: 0.9162907319 | BI19: 9.392661929 | BJ19: 2.48490665 | BK19: 2.564949357 | BL19: 8.517193191 | BM19: 0 | BN19: 1.386294361
A20: MU18 | B20: 0.503673697 | C20: 6.66 | D20: 2.90 | E20: 930 | F20: 30 | G20: 0.016875 | H20: 0.109157681 | I20: 0.5 | J20: 3.5 | K20: 0.00516373 | L20: 27.8 | M20: 2345 | N20: 15.69375 | O20: 101.5166433 | P20: 2.5 | Q20: 2 | R20: 12000 | S20: 12 | T20: 13 | U20: 1 | V20: 5000 | W20: 4 | X20: 2 | Y20: 1 | Z20: 3 | AA20: 2 | AB20: 1 | AC20: 2 | AD20: 2 | AE20: 2 | AF20: 2 | AG20: 4 | AH20: 1 | AI20: 1 | AJ20: 4 | AK20: 2 | AL20: 1 | AM20: 2 | AN20: 3 | AO20: 1 | AP20: 2 | AQ20: 2 | AR20: 2 | AS20: 2 | AT20: 1 | AU20: 2 | AV20: 6.835184586 | AW20: 3.401197382 | AX20: -4.081922042 | AY20: -2.214961827 | AZ20: -0.6931471806 | BA20: 1.252762968 | BB20: -5.266096092 | BC20: 3.325036021 | BD20: 7.760040681 | BE20: 2.753262544 | BF20: 4.620222759 | BG20: =LN(#REF!) ->  | BH20: 0.9162907319 | BI20: 9.392661929 | BJ20: 2.48490665 | BK20: 2.564949357 | BL20: 8.517193191 | BM20: 0 | BN20: 1.386294361
A21: MU19 | B21: 0.358585779 | C21: 6.66 | D21: 2.90 | E21: 431 | F21: 202 | G21: 0.016875 | H21: 0.109157681 | I21: 0.5 | J21: 3.5 | K21: 0.00516373 | L21: 27.8 | M21: 2345 | N21: 7.273125 | O21: 47.04696051 | P21: 2.5 | Q21: 2 | R21: 12000 | S21: 12 | T21: 13 | U21: 1 | V21: 5000 | W21: 4 | X21: 2 | Y21: 1 | Z21: 3 | AA21: 2 | AB21: 1 | AC21: 2 | AD21: 2 | AE21: 2 | AF21: 2 | AG21: 4 | AH21: 1 | AI21: 1 | AJ21: 4 | AK21: 2 | AL21: 1 | AM21: 2 | AN21: 3 | AO21: 1 | AP21: 2 | AQ21: 2 | AR21: 2 | AS21: 2 | AT21: 1 | AU21: 2 | AV21: 6.06610809 | AW21: 5.308267697 | AX21: -4.081922042 | AY21: -2.214961827 | AZ21: -0.6931471806 | BA21: 1.252762968 | BB21: -5.266096092 | BC21: 3.325036021 | BD21: 7.760040681 | BE21: 1.984186048 | BF21: 3.851146263 | BG21: =LN(#REF!) ->  | BH21: 0.9162907319 | BI21: 9.392661929 | BJ21: 2.48490665 | BK21: 2.564949357 | BL21: 8.517193191 | BM21: 0 | BN21: 1.386294361
A22: MU20 | B22: 0.417935816 | C22: 6.66 | D22: 2.90 | E22: 415 | F22: 68 | G22: 0.016875 | H22: 0.109157681 | I22: 0.5 | J22: 3.5 | K22: 0.00516373 | L22: 27.8 | M22: 2345 | N22: 7.003125 | O22: 45.30043761 | P22: 2.5 | Q22: 2 | R22: 12000 | S22: 12 | T22: 13 | U22: 1 | V22: 5000 | W22: 4 | X22: 2 | Y22: 1 | Z22: 3 | AA22: 2 | AB22: 1 | AC22: 2 | AD22: 2 | AE22: 2 | AF22: 2 | AG22: 4 | AH22: 1 | AI22: 1 | AJ22: 4 | AK22: 2 | AL22: 1 | AM22: 2 | AN22: 3 | AO22: 1 | AP22: 2 | AQ22: 2 | AR22: 2 | AS22: 2 | AT22: 1 | AU22: 2 | AV22: 6.02827852 | AW22: 4.219507705 | AX22: -4.081922042 | AY22: -2.214961827 | AZ22: -0.6931471806 | BA22: 1.252762968 | BB22: -5.266096092 | BC22: 3.325036021 | BD22: 7.760040681 | BE22: 1.946356478 | BF22: 3.813316693 | BG22: =LN(#REF!) ->  | BH22: 0.9162907319 | BI22: 9.392661929 | BJ22: 2.48490665 | BK22: 2.564949357 | BL22: 8.517193191 | BM22: 0 | BN22: 1.386294361
A23: LM1 | B23: 0.658897904 | C23: 100 | D23: 5.61 | E23: 687 | F23: 48 | G23: 0.20475 | H23: 10.69145653 | I23: 1.2 | J23: 4 | K23: 0.09811087 | L23: 24.7 | M23: 1356 | N23: 140.66325 | O23: 7345.030636 | P23: 2 | Q23: 2 | R23: 365 | S23: 6 | T23: 12.7 | U23: 2 | V23: 1500 | W23: 1 | X23: 2 | Y23: 2 | Z23: 1 | AA23: 2 | AB23: 1 | AC23: 1 | AD23: 1 | AE23: 1 | AF23: 1 | AG23: 3 | AH23: 1 | AI23: 1 | AJ23: 2 | AK23: 1 | AL23: 2 | AM23: 2 | AN23: 2 | AO23: 2 | AP23: 2 | AQ23: 1 | AR23: 1 | AS23: 1 | AT23: 1 | AU23: 1 | AV23: 6.532334292 | AW23: 3.871201011 | AX23: -1.585965556 | AY23: 2.369444967 | AZ23: 0.1823215568 | BA23: 1.386294361 | BB23: -2.321657113 | BC23: 3.206803244 | BD23: 7.212294469 | BE23: 4.946368736 | BF23: 8.90177926 | BG23: =LN(#REF!) ->  | BH23: 0.6931471806 | BI23: 5.899897354 | BJ23: 1.791759469 | BK23: 2.541601993 | BL23: 7.313220387 | BM23: 0 | BN23: 0.6931471806
A24: LM2 | B24: 0.511067634 | C24: 100 | D24: 5.61 | E24: 236 | F24: 12 | G24: 0.20475 | H24: 10.69145653 | I24: 1.2 | J24: 4 | K24: 0.09811087 | L24: 24.7 | M24: 1356 | N24: 48.321 | O24: 2523.183741 | P24: 2 | Q24: 2 | R24: 365 | S24: 6 | T24: 12.7 | U24: 2 | V24: 1500 | W24: 1 | X24: 2 | Y24: 2 | Z24: 1 | AA24: 2 | AB24: 1 | AC24: 1 | AD24: 1 | AE24: 1 | AF24: 1 | AG24: 3 | AH24: 1 | AI24: 1 | AJ24: 2 | AK24: 1 | AL24: 2 | AM24: 2 | AN24: 2 | AO24: 2 | AP24: 2 | AQ24: 1 | AR24: 1 | AS24: 1 | AT24: 1 | AU24: 1 | AV24: 5.463831805 | AW24: 2.48490665 | AX24: -1.585965556 | AY24: 2.369444967 | AZ24: 0.1823215568 | BA24: 1.386294361 | BB24: -2.321657113 | BC24: 3.206803244 | BD24: 7.212294469 | BE24: 3.877866249 | BF24: 7.833276772 | BG24: =LN(#REF!) ->  | BH24: 0.6931471806 | BI24: 5.899897354 | BJ24: 1.791759469 | BK24: 2.541601993 | BL24: 7.313220387 | BM24: 0 | BN24: 0.6931471806
A25: LM3 | B25: 0.48155459 | C25: 100 | D25: 5.61 | E25: 299 | F25: 26 | G25: 0.20475 | H25: 10.69145653 | I25: 1.2 | J25: 4 | K25: 0.09811087 | L25: 24.7 | M25: 1356 | N25: 61.22025 | O25: 3196.745502 | P25: 2 | Q25: 2 | R25: 365 | S25: 6 | T25: 12.7 | U25: 2 | V25: 1500 | W25: 1 | X25: 2 | Y25: 2 | Z25: 1 | AA25: 2 | AB25: 1 | AC25: 1 | AD25: 1 | AE25: 1 | AF25: 1 | AG25: 3 | AH25: 1 | AI25: 1 | AJ25: 2 | AK25: 1 | AL25: 2 | AM25: 2 | AN25: 2 | AO25: 2 | AP25: 2 | AQ25: 1 | AR25: 1 | AS25: 1 | AT25: 1 | AU25: 1 | AV25: 5.700443573 | AW25: 3.258096538 | AX25: -1.585965556 | AY25: 2.369444967 | AZ25: 0.1823215568 | BA25: 1.386294361 | BB25: -2.321657113 | BC25: 3.206803244 | BD25: 7.212294469 | BE25: 4.114478017 | BF25: 8.069888541 | BG25: =LN(#REF!) ->  | BH25: 0.6931471806 | BI25: 5.899897354 | BJ25: 1.791759469 | BK25: 2.541601993 | BL25: 7.313220387 | BM25: 0 | BN25: 0.6931471806
A26: LM4 | B26: 0.673885641 | C26: 100 | D26: 5.61 | E26: 295 | F26: 6 | G26: 0.20475 | H26: 10.69145653 | I26: 1.2 | J26: 4 | K26: 0.09811087 | L26: 24.7 | M26: 1356 | N26: 60.40125 | O26: 3153.979676 | P26: 2 | Q26: 2 | R26: 365 | S26: 6 | T26: 12.7 | U26: 2 | V26: 1500 | W26: 1 | X26: 2 | Y26: 2 | Z26: 1 | AA26: 2 | AB26: 1 | AC26: 1 | AD26: 1 | AE26: 1 | AF26: 1 | AG26: 3 | AH26: 1 | AI26: 1 | AJ26: 2 | AK26: 1 | AL26: 2 | AM26: 2 | AN26: 2 | AO26: 2 | AP26: 2 | AQ26: 1 | AR26: 1 | AS26: 1 | AT26: 1 | AU26: 1 | AV26: 5.686975356 | AW26: 1.791759469 | AX26: -1.585965556 | AY26: 2.369444967 | AZ26: 0.1823215568 | BA26: 1.386294361 | BB26: -2.321657113 | BC26: 3.206803244 | BD26: 7.212294469 | BE26: 4.1010098 | BF26: 8.056420324 | BG26: =LN(#REF!) ->  | BH26: 0.6931471806 | BI26: 5.899897354 | BJ26: 1.791759469 | BK26: 2.541601993 | BL26: 7.313220387 | BM26: 0 | BN26: 0.6931471806
A27: LM5 | B27: 0.500035664 | C27: 100 | D27: 5.61 | E27: 399 | F27: 16 | G27: 0.20475 | H27: 10.69145653 | I27: 1.2 | J27: 4 | K27: 0.09811087 | L27: 24.7 | M27: 1356 | N27: 81.69525 | O27: 4265.891155 | P27: 2 | Q27: 2 | R27: 365 | S27: 6 | T27: 12.7 | U27: 2 | V27: 1500 | W27: 1 | X27: 2 | Y27: 2 | Z27: 1 | AA27: 2 | AB27: 1 | AC27: 1 | AD27: 1 | AE27: 1 | AF27: 1 | AG27: 3 | AH27: 1 | AI27: 1 | AJ27: 2 | AK27: 1 | AL27: 2 | AM27: 2 | AN27: 2 | AO27: 2 | AP27: 2 | AQ27: 1 | AR27: 1 | AS27: 1 | AT27: 1 | AU27: 1 | AV27: 5.988961417 | AW27: 2.772588722 | AX27: -1.585965556 | AY27: 2.369444967 | AZ27: 0.1823215568 | BA27: 1.386294361 | BB27: -2.321657113 | BC27: 3.206803244 | BD27: 7.212294469 | BE27: 4.402995861 | BF27: 8.358406384 | BG27: =LN(#REF!) ->  | BH27: 0.6931471806 | BI27: 5.899897354 | BJ27: 1.791759469 | BK27: 2.541601993 | BL27: 7.313220387 | BM27: 0 | BN27: 0.6931471806
A28: LM6 | B28: 0.060199136 | C28: 100 | D28: 5.61 | E28: 709 | F28: 32 | G28: 0.20475 | H28: 10.69145653 | I28: 1.2 | J28: 4 | K28: 0.09811087 | L28: 24.7 | M28: 1356 | N28: 145.16775 | O28: 7580.24268 | P28: 2 | Q28: 2 | R28: 365 | S28: 6 | T28: 12.7 | U28: 2 | V28: 1500 | W28: 1 | X28: 2 | Y28: 2 | Z28: 1 | AA28: 2 | AB28: 1 | AC28: 1 | AD28: 1 | AE28: 1 | AF28: 1 | AG28: 3 | AH28: 1 | AI28: 1 | AJ28: 2 | AK28: 1 | AL28: 2 | AM28: 2 | AN28: 2 | AO28: 2 | AP28: 2 | AQ28: 1 | AR28: 1 | AS28: 1 | AT28: 1 | AU28: 1 | AV28: 6.563855527 | AW28: 3.465735903 | AX28: -1.585965556 | AY28: 2.369444967 | AZ28: 0.1823215568 | BA28: 1.386294361 | BB28: -2.321657113 | BC28: 3.206803244 | BD28: 7.212294469 | BE28: 4.97788997 | BF28: 8.933300494 | BG28: =LN(#REF!) ->  | BH28: 0.6931471806 | BI28: 5.899897354 | BJ28: 1.791759469 | BK28: 2.541601993 | BL28: 7.313220387 | BM28: 0 | BN28: 0.6931471806
A29: LM7 | B29: 0.895810634 | C29: 100 | D29: 5.61 | E29: 119 | F29: 10 | G29: 0.20475 | H29: 10.69145653 | I29: 1.2 | J29: 4 | K29: 0.09811087 | L29: 24.7 | M29: 1356 | N29: 24.36525 | O29: 1272.283327 | P29: 2 | Q29: 2 | R29: 365 | S29: 6 | T29: 12.7 | U29: 2 | V29: 1500 | W29: 1 | X29: 2 | Y29: 2 | Z29: 1 | AA29: 2 | AB29: 1 | AC29: 1 | AD29: 1 | AE29: 1 | AF29: 1 | AG29: 3 | AH29: 1 | AI29: 1 | AJ29: 2 | AK29: 1 | AL29: 2 | AM29: 2 | AN29: 2 | AO29: 2 | AP29: 2 | AQ29: 1 | AR29: 1 | AS29: 1 | AT29: 1 | AU29: 1 | AV29: 4.779123493 | AW29: 2.302585093 | AX29: -1.585965556 | AY29: 2.369444967 | AZ29: 0.1823215568 | BA29: 1.386294361 | BB29: -2.321657113 | BC29: 3.206803244 | BD29: 7.212294469 | BE29: 3.193157937 | BF29: 7.148568461 | BG29: =LN(#REF!) ->  | BH29: 0.6931471806 | BI29: 5.899897354 | BJ29: 1.791759469 | BK29: 2.541601993 | BL29: 7.313220387 | BM29: 0 | BN29: 0.6931471806
A30: LM8 | B30: 0.486048846 | C30: 100 | D30: 5.61 | E30: 315 | F30: 12 | G30: 0.20475 | H30: 10.69145653 | I30: 1.2 | J30: 4 | K30: 0.09811087 | L30: 24.7 | M30: 1356 | N30: 64.49625 | O30: 3367.808807 | P30: 2 | Q30: 2 | R30: 365 | S30: 6 | T30: 12.7 | U30: 2 | V30: 1500 | W30: 1 | X30: 2 | Y30: 2 | Z30: 1 | AA30: 2 | AB30: 1 | AC30: 1 | AD30: 1 | AE30: 1 | AF30: 1 | AG30: 3 | AH30: 1 | AI30: 1 | AJ30: 2 | AK30: 1 | AL30: 2 | AM30: 2 | AN30: 2 | AO30: 2 | AP30: 2 | AQ30: 1 | AR30: 1 | AS30: 1 | AT30: 1 | AU30: 1 | AV30: 5.752572639 | AW30: 2.48490665 | AX30: -1.585965556 | AY30: 2.369444967 | AZ30: 0.1823215568 | BA30: 1.386294361 | BB30: -2.321657113 | BC30: 3.206803244 | BD30: 7.212294469 | BE30: 4.166607083 | BF30: 8.122017606 | BG30: =LN(#REF!) ->  | BH30: 0.6931471806 | BI30: 5.899897354 | BJ30: 1.791759469 | BK30: 2.541601993 | BL30: 7.313220387 | BM30: 0 | BN30: 0.6931471806
A31: LM9 | B31: 0.385992189 | C31: 100 | D31: 5.61 | E31: 467 | F31: 48 | G31: 0.20475 | H31: 10.69145653 | I31: 1.2 | J31: 4 | K31: 0.09811087 | L31: 24.7 | M31: 1356 | N31: 95.61825 | O31: 4992.9102 | P31: 2 | Q31: 2 | R31: 365 | S31: 6 | T31: 12.7 | U31: 2 | V31: 1500 | W31: 1 | X31: 2 | Y31: 2 | Z31: 1 | AA31: 2 | AB31: 1 | AC31: 1 | AD31: 1 | AE31: 1 | AF31: 1 | AG31: 3 | AH31: 1 | AI31: 1 | AJ31: 2 | AK31: 1 | AL31: 2 | AM31: 2 | AN31: 2 | AO31: 2 | AP31: 2 | AQ31: 1 | AR31: 1 | AS31: 1 | AT31: 1 | AU31: 1 | AV31: 6.146329258 | AW31: 3.871201011 | AX31: -1.585965556 | AY31: 2.369444967 | AZ31: 0.1823215568 | BA31: 1.386294361 | BB31: -2.321657113 | BC31: 3.206803244 | BD31: 7.212294469 | BE31: 4.560363701 | BF31: 8.515774225 | BG31: =LN(#REF!) ->  | BH31: 0.6931471806 | BI31: 5.899897354 | BJ31: 1.791759469 | BK31: 2.541601993 | BL31: 7.313220387 | BM31: 0 | BN31: 0.6931471806
A32: LM10 | B32: 1.059686159 | C32: 100 | D32: 5.61 | E32: 99 | F32: 0 | G32: 0.20475 | H32: 10.69145653 | I32: 1.2 | J32: 4 | K32: 0.09811087 | L32: 24.7 | M32: 1356 | N32: 20.27025 | O32: 1058.454196 | P32: 2 | Q32: 2 | R32: 365 | S32: 6 | T32: 12.7 | U32: 2 | V32: 1500 | W32: 1 | X32: 2 | Y32: 2 | Z32: 1 | AA32: 2 | AB32: 1 | AC32: 1 | AD32: 1 | AE32: 1 | AF32: 1 | AG32: 3 | AH32: 1 | AI32: 1 | AJ32: 2 | AK32: 1 | AL32: 2 | AM32: 2 | AN32: 2 | AO32: 2 | AP32: 2 | AQ32: 1 | AR32: 1 | AS32: 1 | AT32: 1 | AU32: 1 | AV32: =LN(E32) -> 4.59511985 | AW32: 1 | AX32: =LN(G32) -> -1.585965556 | AY32: =LN(H32) -> 2.369444967 | AZ32: =LN(I32) -> 0.1823215568 | BA32: =LN(J32) -> 1.386294361 | BB32: =LN(K32) -> -2.321657113 | BC32: =LN(L32) -> 3.206803244 | BD32: =LN(M32) -> 7.212294469 | BE32: =LN(N32) -> 3.009154294 | BF32: =LN(O32) -> 6.964564818 | BG32: =LN(#REF!) ->  | BH32: =LN(P32) -> 0.6931471806 | BI32: 5.899897354 | BJ32: 1.791759469 | BK32: 2.541601993 | BL32: 7.313220387 | BM32: 0 | BN32: 0.6931471806
A33: LM11 | B33: 1.19314911 | C33: 100 | D33: 5.61 | E33: 161 | F33: 16 | G33: 0.20475 | H33: 10.69145653 | I33: 1.2 | J33: 4 | K33: 0.09811087 | L33: 24.7 | M33: 1356 | N33: 32.96475 | O33: 1721.324501 | P33: 2 | Q33: 2 | R33: 365 | S33: 6 | T33: 12.7 | U33: 2 | V33: 1500 | W33: 1 | X33: 2 | Y33: 2 | Z33: 1 | AA33: 2 | AB33: 1 | AC33: 1 | AD33: 1 | AE33: 1 | AF33: 1 | AG33: 3 | AH33: 1 | AI33: 1 | AJ33: 2 | AK33: 1 | AL33: 2 | AM33: 2 | AN33: 2 | AO33: 2 | AP33: 2 | AQ33: 1 | AR33: 1 | AS33: 1 | AT33: 1 | AU33: 1 | AV33: 5.081404365 | AW33: =LN(F33) -> 2.772588722 | AX33: -1.585965556 | AY33: 2.369444967 | AZ33: 0.1823215568 | BA33: 1.386294361 | BB33: -2.321657113 | BC33: 3.206803244 | BD33: 7.212294469 | BE33: 3.495438809 | BF33: 7.450849332 | BG33: =LN(#REF!) ->  | BH33: 0.6931471806 | BI33: 5.899897354 | BJ33: 1.791759469 | BK33: 2.541601993 | BL33: 7.313220387 | BM33: 0 | BN33: 0.6931471806
A34: LM12 | B34: 1.725250754 | C34: 100 | D34: 5.61 | E34: 356 | F34: 40 | G34: 0.20475 | H34: 10.69145653 | I34: 1.2 | J34: 4 | K34: 0.09811087 | L34: 24.7 | M34: 1356 | N34: 72.891 | O34: 3806.158525 | P34: 2 | Q34: 2 | R34: 365 | S34: 6 | T34: 12.7 | U34: 2 | V34: 1500 | W34: 1 | X34: 2 | Y34: 2 | Z34: 1 | AA34: 2 | AB34: 1 | AC34: 1 | AD34: 1 | AE34: 1 | AF34: 1 | AG34: 3 | AH34: 1 | AI34: 1 | AJ34: 2 | AK34: 1 | AL34: 2 | AM34: 2 | AN34: 2 | AO34: 2 | AP34: 2 | AQ34: 1 | AR34: 1 | AS34: 1 | AT34: 1 | AU34: 1 | AV34: 5.874930731 | AW34: =LN(F34) -> 3.688879454 | AX34: -1.585965556 | AY34: 2.369444967 | AZ34: 0.1823215568 | BA34: 1.386294361 | BB34: -2.321657113 | BC34: 3.206803244 | BD34: 7.212294469 | BE34: 4.288965175 | BF34: 8.244375698 | BG34: =LN(#REF!) ->  | BH34: 0.6931471806 | BI34: 5.899897354 | BJ34: 1.791759469 | BK34: 2.541601993 | BL34: 7.313220387 | BM34: 0 | BN34: 0.6931471806
A35: LM13 | B35: 1.284595402 | C35: 100 | D35: 5.61 | E35: 97 | F35: 6 | G35: 0.20475 | H35: 10.69145653 | I35: 1.2 | J35: 4 | K35: 0.09811087 | L35: 24.7 | M35: 1356 | N35: 19.86075 | O35: 1037.071283 | P35: 2 | Q35: 2 | R35: 365 | S35: 6 | T35: 12.7 | U35: 2 | V35: 1500 | W35: 1 | X35: 2 | Y35: 2 | Z35: 1 | AA35: 2 | AB35: 1 | AC35: 1 | AD35: 1 | AE35: 1 | AF35: 1 | AG35: 3 | AH35: 1 | AI35: 1 | AJ35: 2 | AK35: 1 | AL35: 2 | AM35: 2 | AN35: 2 | AO35: 2 | AP35: 2 | AQ35: 1 | AR35: 1 | AS35: 1 | AT35: 1 | AU35: 1 | AV35: 4.574710979 | AW35: =LN(F35) -> 1.791759469 | AX35: -1.585965556 | AY35: 2.369444967 | AZ35: 0.1823215568 | BA35: 1.386294361 | BB35: -2.321657113 | BC35: 3.206803244 | BD35: 7.212294469 | BE35: 2.988745422 | BF35: 6.944155946 | BG35: =LN(#REF!) ->  | BH35: 0.6931471806 | BI35: 5.899897354 | BJ35: 1.791759469 | BK35: 2.541601993 | BL35: 7.313220387 | BM35: 0 | BN35: 0.6931471806
A36: LM14 | B36: 0.837924334 | C36: 100 | D36: 5.61 | E36: 45 | F36: 14 | G36: 0.20475 | H36: 10.69145653 | I36: 1.2 | J36: 4 | K36: 0.09811087 | L36: 24.7 | M36: 1356 | N36: 9.21375 | O36: 481.1155438 | P36: 2 | Q36: 2 | R36: 365 | S36: 6 | T36: 12.7 | U36: 2 | V36: 1500 | W36: 1 | X36: 2 | Y36: 2 | Z36: 1 | AA36: 2 | AB36: 1 | AC36: 1 | AD36: 1 | AE36: 1 | AF36: 1 | AG36: 3 | AH36: 1 | AI36: 1 | AJ36: 2 | AK36: 1 | AL36: 2 | AM36: 2 | AN36: 2 | AO36: 2 | AP36: 2 | AQ36: 1 | AR36: 1 | AS36: 1 | AT36: 1 | AU36: 1 | AV36: 3.80666249 | AW36: =LN(F36) -> 2.63905733 | AX36: -1.585965556 | AY36: 2.369444967 | AZ36: 0.1823215568 | BA36: 1.386294361 | BB36: -2.321657113 | BC36: 3.206803244 | BD36: 7.212294469 | BE36: 2.220696934 | BF36: 6.176107457 | BG36: =LN(#REF!) ->  | BH36: 0.6931471806 | BI36: 5.899897354 | BJ36: 1.791759469 | BK36: 2.541601993 | BL36: 7.313220387 | BM36: 0 | BN36: 0.6931471806
A37: LM15 | B37: 0.826363095 | C37: 100 | D37: 5.61 | E37: 95 | F37: 6 | G37: 0.20475 | H37: 10.69145653 | I37: 1.2 | J37: 4 | K37: 0.09811087 | L37: 24.7 | M37: 1356 | N37: 19.45125 | O37: 1015.68837 | P37: 2 | Q37: 2 | R37: 365 | S37: 6 | T37: 12.7 | U37: 2 | V37: 1500 | W37: 1 | X37: 2 | Y37: 2 | Z37: 1 | AA37: 2 | AB37: 1 | AC37: 1 | AD37: 1 | AE37: 1 | AF37: 1 | AG37: 3 | AH37: 1 | AI37: 1 | AJ37: 2 | AK37: 1 | AL37: 2 | AM37: 2 | AN37: 2 | AO37: 2 | AP37: 2 | AQ37: 1 | AR37: 1 | AS37: 1 | AT37: 1 | AU37: 1 | AV37: 4.553876892 | AW37: =LN(F37) -> 1.791759469 | AX37: -1.585965556 | AY37: 2.369444967 | AZ37: 0.1823215568 | BA37: 1.386294361 | BB37: -2.321657113 | BC37: 3.206803244 | BD37: 7.212294469 | BE37: 2.967911335 | BF37: 6.923321859 | BG37: =LN(#REF!) ->  | BH37: 0.6931471806 | BI37: 5.899897354 | BJ37: 1.791759469 | BK37: 2.541601993 | BL37: 7.313220387 | BM37: 0 | BN37: 0.6931471806
A38: LM16 | B38: 0.77975486 | C38: 100 | D38: 5.61 | E38: 65 | F38: 0 | G38: 0.20475 | H38: 10.69145653 | I38: 1.2 | J38: 4 | K38: 0.09811087 | L38: 24.7 | M38: 1356 | N38: 13.30875 | O38: 694.9446744 | P38: 2 | Q38: 2 | R38: 365 | S38: 6 | T38: 12.7 | U38: 2 | V38: 1500 | W38: 1 | X38: 2 | Y38: 2 | Z38: 1 | AA38: 2 | AB38: 1 | AC38: 1 | AD38: 1 | AE38: 1 | AF38: 1 | AG38: 3 | AH38: 1 | AI38: 1 | AJ38: 2 | AK38: 1 | AL38: 2 | AM38: 2 | AN38: 2 | AO38: 2 | AP38: 2 | AQ38: 1 | AR38: 1 | AS38: 1 | AT38: 1 | AU38: 1 | AV38: 4.17438727 | AW38: 1 | AX38: -1.585965556 | AY38: 2.369444967 | AZ38: 0.1823215568 | BA38: 1.386294361 | BB38: -2.321657113 | BC38: 3.206803244 | BD38: 7.212294469 | BE38: 2.588421714 | BF38: 6.543832237 | BG38: =LN(#REF!) ->  | BH38: 0.6931471806 | BI38: 5.899897354 | BJ38: 1.791759469 | BK38: 2.541601993 | BL38: 7.313220387 | BM38: 0 | BN38: 0.6931471806
A39: LM17 | B39: 0.70618366 | C39: 100 | D39: 5.61 | E39: 99 | F39: 4 | G39: 0.20475 | H39: 10.69145653 | I39: 1.2 | J39: 4 | K39: 0.09811087 | L39: 24.7 | M39: 1356 | N39: 20.27025 | O39: 1058.454196 | P39: 2 | Q39: 2 | R39: 365 | S39: 6 | T39: 12.7 | U39: 2 | V39: 1500 | W39: 1 | X39: 2 | Y39: 2 | Z39: 1 | AA39: 2 | AB39: 1 | AC39: 1 | AD39: 1 | AE39: 1 | AF39: 1 | AG39: 3 | AH39: 1 | AI39: 1 | AJ39: 2 | AK39: 1 | AL39: 2 | AM39: 2 | AN39: 2 | AO39: 2 | AP39: 2 | AQ39: 1 | AR39: 1 | AS39: 1 | AT39: 1 | AU39: 1 | AV39: 4.59511985 | AW39: =LN(F39) -> 1.386294361 | AX39: -1.585965556 | AY39: 2.369444967 | AZ39: 0.1823215568 | BA39: 1.386294361 | BB39: -2.321657113 | BC39: 3.206803244 | BD39: 7.212294469 | BE39: 3.009154294 | BF39: 6.964564818 | BG39: =LN(#REF!) ->  | BH39: 0.6931471806 | BI39: 5.899897354 | BJ39: 1.791759469 | BK39: 2.541601993 | BL39: 7.313220387 | BM39: 0 | BN39: 0.6931471806
A40: LM18 | B40: 0.706628106 | C40: 100 | D40: 5.61 | E40: 590 | F40: 14 | G40: 0.20475 | H40: 10.69145653 | I40: 1.2 | J40: 4 | K40: 0.09811087 | L40: 24.7 | M40: 1356 | N40: 120.8025 | O40: 6307.959353 | P40: 2 | Q40: 2 | R40: 365 | S40: 6 | T40: 12.7 | U40: 2 | V40: 1500 | W40: 1 | X40: 2 | Y40: 2 | Z40: 1 | AA40: 2 | AB40: 1 | AC40: 1 | AD40: 1 | AE40: 1 | AF40: 1 | AG40: 3 | AH40: 1 | AI40: 1 | AJ40: 2 | AK40: 1 | AL40: 2 | AM40: 2 | AN40: 2 | AO40: 2 | AP40: 2 | AQ40: 1 | AR40: 1 | AS40: 1 | AT40: 1 | AU40: 1 | AV40: 6.380122537 | AW40: 2.63905733 | AX40: -1.585965556 | AY40: 2.369444967 | AZ40: 0.1823215568 | BA40: 1.386294361 | BB40: -2.321657113 | BC40: 3.206803244 | BD40: 7.212294469 | BE40: 4.794156981 | BF40: 8.749567504 | BG40: =LN(#REF!) ->  | BH40: 0.6931471806 | BI40: 5.899897354 | BJ40: 1.791759469 | BK40: 2.541601993 | BL40: 7.313220387 | BM40: 0 | BN40: 0.6931471806
A41: LM19 | B41: 0.354309429 | C41: 100 | D41: 5.61 | E41: 402 | F41: 162 | G41: 0.20475 | H41: 10.69145653 | I41: 1.2 | J41: 4 | K41: 0.09811087 | L41: 24.7 | M41: 1356 | N41: 82.3095 | O41: 4297.965525 | P41: 2 | Q41: 2 | R41: 365 | S41: 6 | T41: 12.7 | U41: 2 | V41: 1500 | W41: 1 | X41: 2 | Y41: 2 | Z41: 1 | AA41: 2 | AB41: 1 | AC41: 1 | AD41: 1 | AE41: 1 | AF41: 1 | AG41: 3 | AH41: 1 | AI41: 1 | AJ41: 2 | AK41: 1 | AL41: 2 | AM41: 2 | AN41: 2 | AO41: 2 | AP41: 2 | AQ41: 1 | AR41: 1 | AS41: 1 | AT41: 1 | AU41: 1 | AV41: 5.996452089 | AW41: 5.087596335 | AX41: -1.585965556 | AY41: 2.369444967 | AZ41: 0.1823215568 | BA41: 1.386294361 | BB41: -2.321657113 | BC41: 3.206803244 | BD41: 7.212294469 | BE41: 4.410486532 | BF41: 8.365897056 | BG41: =LN(#REF!) ->  | BH41: 0.6931471806 | BI41: 5.899897354 | BJ41: 1.791759469 | BK41: 2.541601993 | BL41: 7.313220387 | BM41: 0 | BN41: 0.6931471806
A42: LM20 | B42: 3.391963013 | C42: 100 | D42: 5.61 | E42: 45 | F42: 780 | G42: 0.20475 | H42: 10.69145653 | I42: 1.2 | J42: 4 | K42: 0.09811087 | L42: 24.7 | M42: 1356 | N42: 9.21375 | O42: 481.1155438 | P42: 2 | Q42: 2 | R42: 365 | S42: 6 | T42: 12.7 | U42: 2 | V42: 1500 | W42: 1 | X42: 2 | Y42: 2 | Z42: 1 | AA42: 2 | AB42: 1 | AC42: 1 | AD42: 1 | AE42: 1 | AF42: 1 | AG42: 3 | AH42: 1 | AI42: 1 | AJ42: 2 | AK42: 1 | AL42: 2 | AM42: 2 | AN42: 2 | AO42: 2 | AP42: 2 | AQ42: 1 | AR42: 1 | AS42: 1 | AT42: 1 | AU42: 1 | AV42: 3.80666249 | AW42: 6.65929392 | AX42: -1.585965556 | AY42: 2.369444967 | AZ42: 0.1823215568 | BA42: 1.386294361 | BB42: -2.321657113 | BC42: 3.206803244 | BD42: 7.212294469 | BE42: 2.220696934 | BF42: 6.176107457 | BG42: =LN(#REF!) ->  | BH42: 0.6931471806 | BI42: 5.899897354 | BJ42: 1.791759469 | BK42: 2.541601993 | BL42: 7.313220387 | BM42: 0 | BN42: 0.6931471806
A43: PA1 | B43: 1.07572989 | C43: 13.63 | D43: 3.61 | E43: 100 | F43: 114 | G43: 0.3853125 | H43: 1.863023337 | I43: 0.8 | J43: 4.88 | K43: 0.26945282 | L43: 27.7 | M43: 1698 | N43: 38.53125 | O43: 186.3023337 | P43: 3 | Q43: 2 | R43: 230 | S43: 2 | T43: 12.7 | U43: 2 | V43: 1100 | W43: 6 | X43: 1 | Y43: 1 | Z43: 3 | AA43: 1 | AB43: 1 | AC43: 0 | AD43: 1 | AE43: 0 | AF43: 1 | AG43: 4 | AH43: 1 | AI43: 0 | AJ43: 1 | AK43: 1 | AL43: 1 | AM43: 2 | AN43: 3 | AO43: 3 | AP43: 1 | AQ43: 2 | AR43: 2 | AS43: 1 | AT43: 2 | AU43: 2 | AV43: 4.605170186 | AW43: 4.736198448 | AX43: -0.9537005856 | AY43: 0.6222006181 | AZ43: -0.2231435513 | BA43: 1.58514522 | BB43: -1.311361969 | BC43: 3.321432413 | BD43: 7.437206367 | BE43: 3.6514696 | BF43: 5.227370804 | BG43: =LN(#REF!) ->  | BH43: 1.098612289 | BI43: 5.438079309 | BJ43: 0.6931471806 | BK43: 2.541601993 | BL43: 7.003065459 | BM43: 0 | BN43: 1
A44: PA1 | B44: 0.48155459 | C44: 13.63 | D44: 3.61 | E44: 326 | F44: 48 | G44: 0.3853125 | H44: 1.863023337 | I44: 0.8 | J44: 4.88 | K44: 0.26945282 | L44: 27.7 | M44: 1698 | N44: 125.611875 | O44: 607.3456079 | P44: 3 | Q44: 2 | R44: 230 | S44: 2 | T44: 12.7 | U44: 2 | V44: 1100 | W44: 6 | X44: 1 | Y44: 1 | Z44: 3 | AA44: 1 | AB44: 1 | AC44: 0 | AD44: 1 | AE44: 0 | AF44: 1 | AG44: 4 | AH44: 1 | AI44: 0 | AJ44: 1 | AK44: 1 | AL44: 1 | AM44: 2 | AN44: 3 | AO44: 3 | AP44: 1 | AQ44: 2 | AR44: 2 | AS44: 1 | AT44: 2 | AU44: 2 | AV44: 5.786897381 | AW44: 3.871201011 | AX44: -0.9537005856 | AY44: 0.6222006181 | AZ44: -0.2231435513 | BA44: 1.58514522 | BB44: -1.311361969 | BC44: 3.321432413 | BD44: 7.437206367 | BE44: 4.833196796 | BF44: 6.409097999 | BG44: =LN(#REF!) ->  | BH44: 1.098612289 | BI44: 5.438079309 | BJ44: 0.6931471806 | BK44: 2.541601993 | BL44: 7.003065459 | BM44: 0 | BN44: 1
A45: PA2 | B45: 0.97266039 | C45: 13.63 | D45: 3.61 | E45: 432 | F45: 88 | G45: 0.3853125 | H45: 1.863023337 | I45: 0.8 | J45: 4.88 | K45: 0.26945282 | L45: 27.7 | M45: 1698 | N45: 166.455 | O45: 804.8260816 | P45: 3 | Q45: 2 | R45: 230 | S45: 2 | T45: 12.7 | U45: 2 | V45: 1100 | W45: 6 | X45: 1 | Y45: 1 | Z45: 3 | AA45: 1 | AB45: 1 | AC45: 0 | AD45: 1 | AE45: 0 | AF45: 1 | AG45: 4 | AH45: 1 | AI45: 0 | AJ45: 1 | AK45: 1 | AL45: 1 | AM45: 2 | AN45: 3 | AO45: 3 | AP45: 1 | AQ45: 2 | AR45: 2 | AS45: 1 | AT45: 2 | AU45: 2 | AV45: 6.068425588 | AW45: 4.477336814 | AX45: -0.9537005856 | AY45: 0.6222006181 | AZ45: -0.2231435513 | BA45: 1.58514522 | BB45: -1.311361969 | BC45: 3.321432413 | BD45: 7.437206367 | BE45: 5.114725003 | BF45: 6.690626206 | BG45: =LN(#REF!) ->  | BH45: 1.098612289 | BI45: 5.438079309 | BJ45: 0.6931471806 | BK45: 2.541601993 | BL45: 7.003065459 | BM45: 0 | BN45: 1
A46: PA3 | B46: 1.145945248 | C46: 13.63 | D46: 3.61 | E46: 106 | F46: 12 | G46: 0.3853125 | H46: 1.863023337 | I46: 0.8 | J46: 4.88 | K46: 0.26945282 | L46: 27.7 | M46: 1698 | N46: 40.843125 | O46: 197.4804737 | P46: 3 | Q46: 2 | R46: 230 | S46: 2 | T46: 12.7 | U46: 2 | V46: 1100 | W46: 6 | X46: 1 | Y46: 1 | Z46: 3 | AA46: 1 | AB46: 1 | AC46: 0 | AD46: 1 | AE46: 0 | AF46: 1 | AG46: 4 | AH46: 1 | AI46: 0 | AJ46: 1 | AK46: 1 | AL46: 1 | AM46: 2 | AN46: 3 | AO46: 3 | AP46: 1 | AQ46: 2 | AR46: 2 | AS46: 1 | AT46: 2 | AU46: 2 | AV46: 4.663439094 | AW46: 2.48490665 | AX46: -0.9537005856 | AY46: 0.6222006181 | AZ46: -0.2231435513 | BA46: 1.58514522 | BB46: -1.311361969 | BC46: 3.321432413 | BD46: 7.437206367 | BE46: 3.709738508 | BF46: 5.285639712 | BG46: =LN(#REF!) ->  | BH46: 1.098612289 | BI46: 5.438079309 | BJ46: 0.6931471806 | BK46: 2.541601993 | BL46: 7.003065459 | BM46: 0 | BN46: 1
A47: PA4 | B47: 0.869120794 | C47: 13.63 | D47: 3.61 | E47: 131 | F47: 0 | G47: 0.3853125 | H47: 1.863023337 | I47: 0.8 | J47: 4.88 | K47: 0.26945282 | L47: 27.7 | M47: 1698 | N47: 50.4759375 | O47: 244.0560571 | P47: 3 | Q47: 2 | R47: 230 | S47: 2 | T47: 12.7 | U47: 2 | V47: 1100 | W47: 6 | X47: 1 | Y47: 1 | Z47: 3 | AA47: 1 | AB47: 1 | AC47: 0 | AD47: 1 | AE47: 0 | AF47: 1 | AG47: 4 | AH47: 1 | AI47: 0 | AJ47: 1 | AK47: 1 | AL47: 1 | AM47: 2 | AN47: 3 | AO47: 3 | AP47: 1 | AQ47: 2 | AR47: 2 | AS47: 1 | AT47: 2 | AU47: 2 | AV47: 4.875197323 | AW47: 1 | AX47: -0.9537005856 | AY47: 0.6222006181 | AZ47: -0.2231435513 | BA47: 1.58514522 | BB47: -1.311361969 | BC47: 3.321432413 | BD47: 7.437206367 | BE47: 3.921496738 | BF47: 5.497397941 | BG47: =LN(#REF!) ->  | BH47: 1.098612289 | BI47: 5.438079309 | BJ47: 0.6931471806 | BK47: 2.541601993 | BL47: 7.003065459 | BM47: 0 | BN47: 1
A48: PA5 | B48: 1.208221711 | C48: 13.63 | D48: 3.61 | E48: 390 | F48: 183 | G48: 0.3853125 | H48: 1.863023337 | I48: 0.8 | J48: 4.88 | K48: 0.26945282 | L48: 27.7 | M48: 1698 | N48: 150.271875 | O48: 726.5791014 | P48: 3 | Q48: 2 | R48: 230 | S48: 2 | T48: 12.7 | U48: 2 | V48: 1100 | W48: 6 | X48: 1 | Y48: 1 | Z48: 3 | AA48: 1 | AB48: 1 | AC48: 0 | AD48: 1 | AE48: 0 | AF48: 1 | AG48: 4 | AH48: 1 | AI48: 0 | AJ48: 1 | AK48: 1 | AL48: 1 | AM48: 2 | AN48: 3 | AO48: 3 | AP48: 1 | AQ48: 2 | AR48: 2 | AS48: 1 | AT48: 2 | AU48: 2 | AV48: 5.966146739 | AW48: =LN(F48) -> 5.209486153 | AX48: -0.9537005856 | AY48: 0.6222006181 | AZ48: -0.2231435513 | BA48: 1.58514522 | BB48: -1.311361969 | BC48: 3.321432413 | BD48: 7.437206367 | BE48: 5.012446154 | BF48: 6.588347357 | BG48: =LN(#REF!) ->  | BH48: 1.098612289 | BI48: 5.438079309 | BJ48: 0.6931471806 | BK48: 2.541601993 | BL48: 7.003065459 | BM48: 0 | BN48: 1
A49: PA6 | B49: 0.704146289 | C49: 13.63 | D49: 3.61 | E49: 331 | F49: 21 | G49: 0.3853125 | H49: 1.863023337 | I49: 0.8 | J49: 4.88 | K49: 0.26945282 | L49: 27.7 | M49: 1698 | N49: 127.5384375 | O49: 616.6607245 | P49: 3 | Q49: 2 | R49: 230 | S49: 2 | T49: 12.7 | U49: 2 | V49: 1100 | W49: 6 | X49: 1 | Y49: 1 | Z49: 3 | AA49: 1 | AB49: 1 | AC49: 0 | AD49: 1 | AE49: 0 | AF49: 1 | AG49: 4 | AH49: 1 | AI49: 0 | AJ49: 1 | AK49: 1 | AL49: 1 | AM49: 2 | AN49: 3 | AO49: 3 | AP49: 1 | AQ49: 2 | AR49: 2 | AS49: 1 | AT49: 2 | AU49: 2 | AV49: 5.802118375 | AW49: =LN(F49) -> 3.044522438 | AX49: -0.9537005856 | AY49: 0.6222006181 | AZ49: -0.2231435513 | BA49: 1.58514522 | BB49: -1.311361969 | BC49: 3.321432413 | BD49: 7.437206367 | BE49: 4.84841779 | BF49: 6.424318993 | BG49: =LN(#REF!) ->  | BH49: 1.098612289 | BI49: 5.438079309 | BJ49: 0.6931471806 | BK49: 2.541601993 | BL49: 7.003065459 | BM49: 0 | BN49: 1
A50: PA7 | B50: 1.085272786 | C50: 13.63 | D50: 3.61 | E50: 98 | F50: 39 | G50: 0.3853125 | H50: 1.863023337 | I50: 0.8 | J50: 4.88 | K50: 0.26945282 | L50: 27.7 | M50: 1698 | N50: 37.760625 | O50: 182.576287 | P50: 3 | Q50: 2 | R50: 230 | S50: 2 | T50: 12.7 | U50: 2 | V50: 1100 | W50: 6 | X50: 1 | Y50: 1 | Z50: 3 | AA50: 1 | AB50: 1 | AC50: 0 | AD50: 1 | AE50: 0 | AF50: 1 | AG50: 4 | AH50: 1 | AI50: 0 | AJ50: 1 | AK50: 1 | AL50: 1 | AM50: 2 | AN50: 3 | AO50: 3 | AP50: 1 | AQ50: 2 | AR50: 2 | AS50: 1 | AT50: 2 | AU50: 2 | AV50: 4.584967479 | AW50: =LN(F50) -> 3.663561646 | AX50: -0.9537005856 | AY50: 0.6222006181 | AZ50: -0.2231435513 | BA50: 1.58514522 | BB50: -1.311361969 | BC50: 3.321432413 | BD50: 7.437206367 | BE50: 3.631266893 | BF50: 5.207168097 | BG50: =LN(#REF!) ->  | BH50: 1.098612289 | BI50: 5.438079309 | BJ50: 0.6931471806 | BK50: 2.541601993 | BL50: 7.003065459 | BM50: 0 | BN50: 1
A51: PA8 | B51: 0.988044415 | C51: 13.63 | D51: 3.61 | E51: 252 | F51: 1 | G51: 0.3853125 | H51: 1.863023337 | I51: 0.8 | J51: 4.88 | K51: 0.26945282 | L51: 27.7 | M51: 1698 | N51: 97.09875 | O51: 469.4818809 | P51: 3 | Q51: 2 | R51: 230 | S51: 2 | T51: 12.7 | U51: 2 | V51: 1100 | W51: 6 | X51: 1 | Y51: 1 | Z51: 3 | AA51: 1 | AB51: 1 | AC51: 0 | AD51: 1 | AE51: 0 | AF51: 1 | AG51: 4 | AH51: 1 | AI51: 0 | AJ51: 1 | AK51: 1 | AL51: 1 | AM51: 2 | AN51: 3 | AO51: 3 | AP51: 1 | AQ51: 2 | AR51: 2 | AS51: 1 | AT51: 2 | AU51: 2 | AV51: 5.529429088 | AW51: 1 | AX51: -0.9537005856 | AY51: 0.6222006181 | AZ51: -0.2231435513 | BA51: 1.58514522 | BB51: -1.311361969 | BC51: 3.321432413 | BD51: 7.437206367 | BE51: 4.575728502 | BF51: 6.151629706 | BG51: =LN(#REF!) ->  | BH51: 1.098612289 | BI51: 5.438079309 | BJ51: 0.6931471806 | BK51: 2.541601993 | BL51: 7.003065459 | BM51: 0 | BN51: 1
A52: PA9 | B52: 0.872671118 | C52: 13.63 | D52: 3.61 | E52: 99 | F52: 2 | G52: 0.3853125 | H52: 1.863023337 | I52: 0.8 | J52: 4.88 | K52: 0.26945282 | L52: 27.7 | M52: 1698 | N52: 38.1459375 | O52: 184.4393104 | P52: 3 | Q52: 2 | R52: 230 | S52: 2 | T52: 12.7 | U52: 2 | V52: 1100 | W52: 6 | X52: 1 | Y52: 1 | Z52: 3 | AA52: 1 | AB52: 1 | AC52: 0 | AD52: 1 | AE52: 0 | AF52: 1 | AG52: 4 | AH52: 1 | AI52: 0 | AJ52: 1 | AK52: 1 | AL52: 1 | AM52: 2 | AN52: 3 | AO52: 3 | AP52: 1 | AQ52: 2 | AR52: 2 | AS52: 1 | AT52: 2 | AU52: 2 | AV52: 4.59511985 | AW52: =LN(F52) -> 0.6931471806 | AX52: -0.9537005856 | AY52: 0.6222006181 | AZ52: -0.2231435513 | BA52: 1.58514522 | BB52: -1.311361969 | BC52: 3.321432413 | BD52: 7.437206367 | BE52: 3.641419265 | BF52: 5.217320468 | BG52: =LN(#REF!) ->  | BH52: 1.098612289 | BI52: 5.438079309 | BJ52: 0.6931471806 | BK52: 2.541601993 | BL52: 7.003065459 | BM52: 0 | BN52: 1
A53: PA10 | B53: 0.887797022 | C53: 13.63 | D53: 3.61 | E53: 406 | F53: 150 | G53: 0.3853125 | H53: 1.863023337 | I53: 0.8 | J53: 4.88 | K53: 0.26945282 | L53: 27.7 | M53: 1698 | N53: 156.436875 | O53: 756.3874748 | P53: 3 | Q53: 2 | R53: 230 | S53: 2 | T53: 12.7 | U53: 2 | V53: 1100 | W53: 6 | X53: 1 | Y53: 1 | Z53: 3 | AA53: 1 | AB53: 1 | AC53: 0 | AD53: 1 | AE53: 0 | AF53: 1 | AG53: 4 | AH53: 1 | AI53: 0 | AJ53: 1 | AK53: 1 | AL53: 1 | AM53: 2 | AN53: 3 | AO53: 3 | AP53: 1 | AQ53: 2 | AR53: 2 | AS53: 1 | AT53: 2 | AU53: 2 | AV53: 6.00635316 | AW53: 5.010635294 | AX53: -0.9537005856 | AY53: 0.6222006181 | AZ53: -0.2231435513 | BA53: 1.58514522 | BB53: -1.311361969 | BC53: 3.321432413 | BD53: 7.437206367 | BE53: 5.052652574 | BF53: 6.628553778 | BG53: =LN(#REF!) ->  | BH53: 1.098612289 | BI53: 5.438079309 | BJ53: 0.6931471806 | BK53: 2.541601993 | BL53: 7.003065459 | BM53: 0 | BN53: 1
A54: PA11 | B54: 1.313827035 | C54: 13.63 | D54: 3.61 | E54: 108 | F54: 92 | G54: 0.3853125 | H54: 1.863023337 | I54: 0.8 | J54: 4.88 | K54: 0.26945282 | L54: 27.7 | M54: 1698 | N54: 41.61375 | O54: 201.2065204 | P54: 3 | Q54: 2 | R54: 230 | S54: 2 | T54: 12.7 | U54: 2 | V54: 1100 | W54: 6 | X54: 1 | Y54: 1 | Z54: 3 | AA54: 1 | AB54: 1 | AC54: 0 | AD54: 1 | AE54: 0 | AF54: 1 | AG54: 4 | AH54: 1 | AI54: 0 | AJ54: 1 | AK54: 1 | AL54: 1 | AM54: 2 | AN54: 3 | AO54: 3 | AP54: 1 | AQ54: 2 | AR54: 2 | AS54: 1 | AT54: 2 | AU54: 2 | AV54: 4.682131227 | AW54: 4.521788577 | AX54: -0.9537005856 | AY54: 0.6222006181 | AZ54: -0.2231435513 | BA54: 1.58514522 | BB54: -1.311361969 | BC54: 3.321432413 | BD54: 7.437206367 | BE54: 3.728430642 | BF54: 5.304331845 | BG54: =LN(#REF!) ->  | BH54: 1.098612289 | BI54: 5.438079309 | BJ54: 0.6931471806 | BK54: 2.541601993 | BL54: 7.003065459 | BM54: 0 | BN54: 1
A55: PA12 | B55: 1.17148442 | C55: 13.63 | D55: 3.61 | E55: 82 | F55: 86 | G55: 0.3853125 | H55: 1.863023337 | I55: 0.8 | J55: 4.88 | K55: 0.26945282 | L55: 27.7 | M55: 1698 | N55: 31.595625 | O55: 152.7679136 | P55: 3 | Q55: 2 | R55: 230 | S55: 2 | T55: 12.7 | U55: 2 | V55: 1100 | W55: 6 | X55: 1 | Y55: 1 | Z55: 3 | AA55: 1 | AB55: 1 | AC55: 0 | AD55: 1 | AE55: 0 | AF55: 1 | AG55: 4 | AH55: 1 | AI55: 0 | AJ55: 1 | AK55: 1 | AL55: 1 | AM55: 2 | AN55: 3 | AO55: 3 | AP55: 1 | AQ55: 2 | AR55: 2 | AS55: 1 | AT55: 2 | AU55: 2 | AV55: 4.406719247 | AW55: 4.454347296 | AX55: -0.9537005856 | AY55: 0.6222006181 | AZ55: -0.2231435513 | BA55: 1.58514522 | BB55: -1.311361969 | BC55: 3.321432413 | BD55: 7.437206367 | BE55: 3.453018662 | BF55: 5.028919865 | BG55: =LN(#REF!) ->  | BH55: 1.098612289 | BI55: 5.438079309 | BJ55: 0.6931471806 | BK55: 2.541601993 | BL55: 7.003065459 | BM55: 0 | BN55: 1
A56: PA13 | B56: 0.883792783 | C56: 13.63 | D56: 3.61 | E56: 308 | F56: 267 | G56: 0.3853125 | H56: 1.863023337 | I56: 0.8 | J56: 4.88 | K56: 0.26945282 | L56: 27.7 | M56: 1698 | N56: 118.67625 | O56: 573.8111878 | P56: 3 | Q56: 2 | R56: 230 | S56: 2 | T56: 12.7 | U56: 2 | V56: 1100 | W56: 6 | X56: 1 | Y56: 1 | Z56: 3 | AA56: 1 | AB56: 1 | AC56: 0 | AD56: 1 | AE56: 0 | AF56: 1 | AG56: 4 | AH56: 1 | AI56: 0 | AJ56: 1 | AK56: 1 | AL56: 1 | AM56: 2 | AN56: 3 | AO56: 3 | AP56: 1 | AQ56: 2 | AR56: 2 | AS56: 1 | AT56: 2 | AU56: 2 | AV56: 5.730099783 | AW56: 5.587248658 | AX56: -0.9537005856 | AY56: 0.6222006181 | AZ56: -0.2231435513 | BA56: 1.58514522 | BB56: -1.311361969 | BC56: 3.321432413 | BD56: 7.437206367 | BE56: 4.776399197 | BF56: 6.352300401 | BG56: =LN(#REF!) ->  | BH56: 1.098612289 | BI56: 5.438079309 | BJ56: 0.6931471806 | BK56: 2.541601993 | BL56: 7.003065459 | BM56: 0 | BN56: 1
A57: PA14 | B57: 0.724909607 | C57: 13.63 | D57: 3.61 | E57: 348 | F57: 291 | G57: 0.3853125 | H57: 1.863023337 | I57: 0.8 | J57: 4.88 | K57: 0.26945282 | L57: 27.7 | M57: 1698 | N57: 134.08875 | O57: 648.3321213 | P57: 3 | Q57: 2 | R57: 230 | S57: 2 | T57: 12.7 | U57: 2 | V57: 1100 | W57: 6 | X57: 1 | Y57: 1 | Z57: 3 | AA57: 1 | AB57: 1 | AC57: 0 | AD57: 1 | AE57: 0 | AF57: 1 | AG57: 4 | AH57: 1 | AI57: 0 | AJ57: 1 | AK57: 1 | AL57: 1 | AM57: 2 | AN57: 3 | AO57: 3 | AP57: 1 | AQ57: 2 | AR57: 2 | AS57: 1 | AT57: 2 | AU57: 2 | AV57: 5.85220248 | AW57: 5.673323267 | AX57: -0.9537005856 | AY57: 0.6222006181 | AZ57: -0.2231435513 | BA57: 1.58514522 | BB57: -1.311361969 | BC57: 3.321432413 | BD57: 7.437206367 | BE57: 4.898501894 | BF57: 6.474403098 | BG57: =LN(#REF!) ->  | BH57: 1.098612289 | BI57: 5.438079309 | BJ57: 0.6931471806 | BK57: 2.541601993 | BL57: 7.003065459 | BM57: 0 | BN57: 1
A58: PA15 | B58: 1.560351923 | C58: 13.63 | D58: 3.61 | E58: 85 | F58: 12 | G58: 0.3853125 | H58: 1.863023337 | I58: 0.8 | J58: 4.88 | K58: 0.26945282 | L58: 27.7 | M58: 1698 | N58: 32.7515625 | O58: 158.3569836 | P58: 3 | Q58: 2 | R58: 230 | S58: 2 | T58: 12.7 | U58: 2 | V58: 1100 | W58: 6 | X58: 1 | Y58: 1 | Z58: 3 | AA58: 1 | AB58: 1 | AC58: 0 | AD58: 1 | AE58: 0 | AF58: 1 | AG58: 4 | AH58: 1 | AI58: 0 | AJ58: 1 | AK58: 1 | AL58: 1 | AM58: 2 | AN58: 3 | AO58: 3 | AP58: 1 | AQ58: 2 | AR58: 2 | AS58: 1 | AT58: 2 | AU58: 2 | AV58: 4.442651256 | AW58: 2.48490665 | AX58: -0.9537005856 | AY58: 0.6222006181 | AZ58: -0.2231435513 | BA58: 1.58514522 | BB58: -1.311361969 | BC58: 3.321432413 | BD58: 7.437206367 | BE58: 3.488950671 | BF58: 5.064851875 | BG58: =LN(#REF!) ->  | BH58: 1.098612289 | BI58: 5.438079309 | BJ58: 0.6931471806 | BK58: 2.541601993 | BL58: 7.003065459 | BM58: 0 | BN58: 1
A59: PA16 | B59: 0.871078363 | C59: 13.63 | D59: 3.61 | E59: 92 | F59: 10 | G59: 0.3853125 | H59: 1.863023337 | I59: 0.8 | J59: 4.88 | K59: 0.26945282 | L59: 27.7 | M59: 1698 | N59: 35.44875 | O59: 171.398147 | P59: 3 | Q59: 2 | R59: 230 | S59: 2 | T59: 12.7 | U59: 2 | V59: 1100 | W59: 6 | X59: 1 | Y59: 1 | Z59: 3 | AA59: 1 | AB59: 1 | AC59: 0 | AD59: 1 | AE59: 0 | AF59: 1 | AG59: 4 | AH59: 1 | AI59: 0 | AJ59: 1 | AK59: 1 | AL59: 1 | AM59: 2 | AN59: 3 | AO59: 3 | AP59: 1 | AQ59: 2 | AR59: 2 | AS59: 1 | AT59: 2 | AU59: 2 | AV59: 4.521788577 | AW59: 2.302585093 | AX59: -0.9537005856 | AY59: 0.6222006181 | AZ59: -0.2231435513 | BA59: 1.58514522 | BB59: -1.311361969 | BC59: 3.321432413 | BD59: 7.437206367 | BE59: 3.568087991 | BF59: 5.143989195 | BG59: =LN(#REF!) ->  | BH59: 1.098612289 | BI59: 5.438079309 | BJ59: 0.6931471806 | BK59: 2.541601993 | BL59: 7.003065459 | BM59: 0 | BN59: 1
A60: PA17 | B60: 0.823047706 | C60: 13.63 | D60: 3.61 | E60: 94 | F60: 174 | G60: 0.3853125 | H60: 1.863023337 | I60: 0.8 | J60: 4.88 | K60: 0.26945282 | L60: 27.7 | M60: 1698 | N60: 36.219375 | O60: 175.1241937 | P60: 3 | Q60: 2 | R60: 230 | S60: 2 | T60: 12.7 | U60: 2 | V60: 1100 | W60: 6 | X60: 1 | Y60: 1 | Z60: 3 | AA60: 1 | AB60: 1 | AC60: 0 | AD60: 1 | AE60: 0 | AF60: 1 | AG60: 4 | AH60: 1 | AI60: 0 | AJ60: 1 | AK60: 1 | AL60: 1 | AM60: 2 | AN60: 3 | AO60: 3 | AP60: 1 | AQ60: 2 | AR60: 2 | AS60: 1 | AT60: 2 | AU60: 2 | AV60: 4.543294782 | AW60: 5.159055299 | AX60: -0.9537005856 | AY60: 0.6222006181 | AZ60: -0.2231435513 | BA60: 1.58514522 | BB60: -1.311361969 | BC60: 3.321432413 | BD60: 7.437206367 | BE60: 3.589594197 | BF60: 5.1654954 | BG60: =LN(#REF!) ->  | BH60: 1.098612289 | BI60: 5.438079309 | BJ60: 0.6931471806 | BK60: 2.541601993 | BL60: 7.003065459 | BM60: 0 | BN60: 1
A61: PA18 | B61: 0.100529327 | C61: 13.63 | D61: 3.61 | E61: 291 | F61: 6 | G61: 0.3853125 | H61: 1.863023337 | I61: 0.8 | J61: 4.88 | K61: 0.26945282 | L61: 27.7 | M61: 1698 | N61: 112.1259375 | O61: 542.1397911 | P61: 3 | Q61: 2 | R61: 230 | S61: 2 | T61: 12.7 | U61: 2 | V61: 1100 | W61: 6 | X61: 1 | Y61: 1 | Z61: 3 | AA61: 1 | AB61: 1 | AC61: 0 | AD61: 1 | AE61: 0 | AF61: 1 | AG61: 4 | AH61: 1 | AI61: 0 | AJ61: 1 | AK61: 1 | AL61: 1 | AM61: 2 | AN61: 3 | AO61: 3 | AP61: 1 | AQ61: 2 | AR61: 2 | AS61: 1 | AT61: 2 | AU61: 2 | AV61: 5.673323267 | AW61: 1.791759469 | AX61: -0.9537005856 | AY61: 0.6222006181 | AZ61: -0.2231435513 | BA61: 1.58514522 | BB61: -1.311361969 | BC61: 3.321432413 | BD61: 7.437206367 | BE61: 4.719622682 | BF61: 6.295523885 | BG61: =LN(#REF!) ->  | BH61: 1.098612289 | BI61: 5.438079309 | BJ61: 0.6931471806 | BK61: 2.541601993 | BL61: 7.003065459 | BM61: 0 | BN61: 1
A62: PA19 | B62: 1.144990437 | C62: 13.63 | D62: 3.61 | E62: 106 | F62: 52 | G62: 0.3853125 | H62: 1.863023337 | I62: 0.8 | J62: 4.88 | K62: 0.26945282 | L62: 27.7 | M62: 1698 | N62: 40.843125 | O62: 197.4804737 | P62: 3 | Q62: 2 | R62: 230 | S62: 2 | T62: 12.7 | U62: 2 | V62: 1100 | W62: 6 | X62: 1 | Y62: 1 | Z62: 3 | AA62: 1 | AB62: 1 | AC62: 0 | AD62: 1 | AE62: 0 | AF62: 1 | AG62: 4 | AH62: 1 | AI62: 0 | AJ62: 1 | AK62: 1 | AL62: 1 | AM62: 2 | AN62: 3 | AO62: 3 | AP62: 1 | AQ62: 2 | AR62: 2 | AS62: 1 | AT62: 2 | AU62: 2 | AV62: 4.663439094 | AW62: 3.951243719 | AX62: -0.9537005856 | AY62: 0.6222006181 | AZ62: -0.2231435513 | BA62: 1.58514522 | BB62: -1.311361969 | BC62: 3.321432413 | BD62: 7.437206367 | BE62: 3.709738508 | BF62: 5.285639712 | BG62: =LN(#REF!) ->  | BH62: 1.098612289 | BI62: 5.438079309 | BJ62: 0.6931471806 | BK62: 2.541601993 | BL62: 7.003065459 | BM62: 0 | BN62: 1
A63: IX1 | B63: 1.618335613 | C63: 0.42 | D63: 0.13 | E63: 92 | F63: 0 | G63: 2.19825 | H63: 3.746663658 | I63: 1.8 | J63: 1.98 | K63: 0.89942788 | L63: 26.9 | M63: 3567 | N63: =G63*E63 -> 202.239 | O63: =H63*E63 -> 344.6930565 | P63: 3 | Q63: 2 | R63: 2000 | S63: 12 | T63: 13 | U63: 1 | V63: 4000 | W63: 4 | X63: 2 | Y63: 2 | Z63: 0 | AA63: 2 | AB63: 3 | AC63: 1 | AD63: 1 | AE63: 1 | AF63: 2 | AG63: 3 | AH63: 3 | AI63: 4 | AJ63: 6 | AK63: 1 | AL63: 1 | AM63: 2 | AN63: 1 | AO63: 1 | AP63: 2 | AQ63: 1 | AR63: 1 | AS63: 1 | AT63: 0 | AU63: 1 | AV63: 4.521788577 | AW63: 1 | AX63: 0.7876615893 | AY63: 1.320865753 | AZ63: 0.5877866649 | BA63: 0.6830968447 | BB63: -0.1059964067 | BC63: 3.292126287 | BD63: 8.179480185 | BE63: 5.309450166 | BF63: 5.84265433 | BG63: =LN(#REF!) ->  | BH63: 1.098612289 | BI63: 7.60090246 | BJ63: 2.48490665 | BK63: 2.564949357 | BL63: 8.29404964 | BM63: 1.098612289 | BN63: 1.791759469
A64: IX2 | B64: 1.052172694 | C64: 0.42 | D64: 0.13 | E64: 21 | F64: 0 | G64: 2.19825 | H64: 3.746663658 | I64: 1.8 | J64: 1.98 | K64: 0.89942788 | L64: 26.9 | M64: 3567 | N64: 46.16325 | O64: 78.67993682 | P64: 3 | Q64: 2 | R64: 2000 | S64: 12 | T64: 13 | U64: 1 | V64: 4000 | W64: 4 | X64: 2 | Y64: 2 | Z64: 0 | AA64: 2 | AB64: 3 | AC64: 1 | AD64: 1 | AE64: 1 | AF64: 2 | AG64: 3 | AH64: 3 | AI64: 4 | AJ64: 6 | AK64: 1 | AL64: 1 | AM64: 2 | AN64: 1 | AO64: 1 | AP64: 2 | AQ64: 1 | AR64: 1 | AS64: 1 | AT64: 0 | AU64: 1 | AV64: 3.044522438 | AW64: 1 | AX64: 0.7876615893 | AY64: 1.320865753 | AZ64: 0.5877866649 | BA64: 0.6830968447 | BB64: -0.1059964067 | BC64: 3.292126287 | BD64: 8.179480185 | BE64: 3.832184027 | BF64: 4.36538819 | BG64: =LN(#REF!) ->  | BH64: 1.098612289 | BI64: 7.60090246 | BJ64: 2.48490665 | BK64: 2.564949357 | BL64: 8.29404964 | BM64: 1.098612289 | BN64: 1.791759469
A65: IX3 | B65: 1.810026905 | C65: 0.42 | D65: 0.13 | E65: 12 | F65: 30 | G65: 2.19825 | H65: 3.746663658 | I65: 1.8 | J65: 1.98 | K65: 0.89942788 | L65: 26.9 | M65: 3567 | N65: 26.379 | O65: 44.9599639 | P65: 3 | Q65: 2 | R65: 2000 | S65: 12 | T65: 13 | U65: 1 | V65: 4000 | W65: 4 | X65: 2 | Y65: 2 | Z65: 0 | AA65: 2 | AB65: 3 | AC65: 1 | AD65: 1 | AE65: 1 | AF65: 2 | AG65: 3 | AH65: 3 | AI65: 4 | AJ65: 6 | AK65: 1 | AL65: 1 | AM65: 2 | AN65: 1 | AO65: 1 | AP65: 2 | AQ65: 1 | AR65: 1 | AS65: 1 | AT65: 0 | AU65: 1 | AV65: 2.48490665 | AW65: =LN(F65) -> 3.401197382 | AX65: 0.7876615893 | AY65: 1.320865753 | AZ65: 0.5877866649 | BA65: 0.6830968447 | BB65: -0.1059964067 | BC65: 3.292126287 | BD65: 8.179480185 | BE65: 3.272568239 | BF65: 3.805772403 | BG65: =LN(#REF!) ->  | BH65: 1.098612289 | BI65: 7.60090246 | BJ65: 2.48490665 | BK65: 2.564949357 | BL65: 8.29404964 | BM65: 1.098612289 | BN65: 1.791759469
A66: IX4 | B66: 1.057872996 | C66: 0.42 | D66: 0.13 | E66: 0 | F66: 26 | G66: 2.19825 | H66: 3.746663658 | I66: 1.8 | J66: 1.98 | K66: 0.89942788 | L66: 26.9 | M66: 3567 | N66: 0 | O66: 0 | P66: 3 | Q66: 2 | R66: 2000 | S66: 12 | T66: 13 | U66: 1 | V66: 4000 | W66: 4 | X66: 2 | Y66: 2 | Z66: 0 | AA66: 2 | AB66: 3 | AC66: 1 | AD66: 1 | AE66: 1 | AF66: 2 | AG66: 3 | AH66: 3 | AI66: 4 | AJ66: 6 | AK66: 1 | AL66: 1 | AM66: 2 | AN66: 1 | AO66: 1 | AP66: 2 | AQ66: 1 | AR66: 1 | AS66: 1 | AT66: 0 | AU66: 1 | AV66: 1 | AW66: 3.258096538 | AX66: =LN(G66) -> 0.7876615893 | AY66: =LN(H66) -> 1.320865753 | AZ66: =LN(I66) -> 0.5877866649 | BA66: =LN(J66) -> 0.6830968447 | BB66: =LN(K66) -> -0.1059964067 | BC66: =LN(L66) -> 3.292126287 | BD66: =LN(M66) -> 8.179480185 | BE66: 0 | BF66: 0 | BG66: =LN(#REF!) ->  | BH66: =LN(P66) -> 1.098612289 | BI66: 7.60090246 | BJ66: 2.48490665 | BK66: 2.564949357 | BL66: 8.29404964 | BM66: 1.098612289 | BN66: 1.791759469
A67: IX5 | B67: 1.296377414 | C67: 0.42 | D67: 0.13 | E67: 0 | F67: 8 | G67: 2.19825 | H67: 3.746663658 | I67: 1.8 | J67: 1.98 | K67: 0.89942788 | L67: 26.9 | M67: 3567 | N67: 0 | O67: 0 | P67: 3 | Q67: 2 | R67: 2000 | S67: 12 | T67: 13 | U67: 1 | V67: 4000 | W67: 4 | X67: 2 | Y67: 2 | Z67: 0 | AA67: 2 | AB67: 3 | AC67: 1 | AD67: 1 | AE67: 1 | AF67: 2 | AG67: 3 | AH67: 3 | AI67: 4 | AJ67: 6 | AK67: 1 | AL67: 1 | AM67: 2 | AN67: 1 | AO67: 1 | AP67: 2 | AQ67: 1 | AR67: 1 | AS67: 1 | AT67: 0 | AU67: 1 | AV67: 1 | AW67: 2.079441542 | AX67: 0.7876615893 | AY67: 1.320865753 | AZ67: 0.5877866649 | BA67: 0.6830968447 | BB67: -0.1059964067 | BC67: 3.292126287 | BD67: 8.179480185 | BE67: 0 | BF67: 0 | BG67: =LN(#REF!) ->  | BH67: 1.098612289 | BI67: =LN(R67) -> 7.60090246 | BJ67: =LN(S67) -> 2.48490665 | BK67: =LN(T67) -> 2.564949357 | BL67: =LN(V67) -> 8.29404964 | BM67: 1.098612289 | BN67: 1.791759469
A68: IX6 | B68: 1.438869939 | C68: 0.42 | D68: 0.13 | E68: 89 | F68: 20 | G68: 2.19825 | H68: 3.746663658 | I68: 1.8 | J68: 1.98 | K68: 0.89942788 | L68: 26.9 | M68: 3567 | N68: 195.64425 | O68: 333.4530656 | P68: 3 | Q68: 2 | R68: 2000 | S68: 12 | T68: 13 | U68: 1 | V68: 4000 | W68: 4 | X68: 2 | Y68: 2 | Z68: 0 | AA68: 2 | AB68: 3 | AC68: 1 | AD68: 1 | AE68: 1 | AF68: 2 | AG68: 3 | AH68: 3 | AI68: 4 | AJ68: 6 | AK68: 1 | AL68: 1 | AM68: 2 | AN68: 1 | AO68: 1 | AP68: 2 | AQ68: 1 | AR68: 1 | AS68: 1 | AT68: 0 | AU68: 1 | AV68: =LN(E68) -> 4.48863637 | AW68: 2.995732274 | AX68: 0.7876615893 | AY68: 1.320865753 | AZ68: 0.5877866649 | BA68: 0.6830968447 | BB68: -0.1059964067 | BC68: 3.292126287 | BD68: 8.179480185 | BE68: =LN(N68) -> 5.276297959 | BF68: 5.809502123 | BG68: =LN(#REF!) ->  | BH68: 1.098612289 | BI68: 7.60090246 | BJ68: 2.48490665 | BK68: 2.564949357 | BL68: 8.29404964 | BM68: =LN(AH68) -> 1.098612289 | BN68: =LN(AJ68) -> 1.791759469
A69: IX7 | B69: 1.372599708 | C69: 0.42 | D69: 0.13 | E69: 241 | F69: 122 | G69: 2.19825 | H69: 3.746663658 | I69: 1.8 | J69: 1.98 | K69: 0.89942788 | L69: 26.9 | M69: 3567 | N69: 529.77825 | O69: 902.9459416 | P69: 3 | Q69: 2 | R69: 2000 | S69: 12 | T69: 13 | U69: 1 | V69: 4000 | W69: 4 | X69: 2 | Y69: 2 | Z69: 0 | AA69: 2 | AB69: 3 | AC69: 1 | AD69: 1 | AE69: 1 | AF69: 2 | AG69: 3 | AH69: 3 | AI69: 4 | AJ69: 6 | AK69: 1 | AL69: 1 | AM69: 2 | AN69: 1 | AO69: 1 | AP69: 2 | AQ69: 1 | AR69: 1 | AS69: 1 | AT69: 0 | AU69: 1 | AV69: 5.484796933 | AW69: 4.804021045 | AX69: 0.7876615893 | AY69: 1.320865753 | AZ69: 0.5877866649 | BA69: 0.6830968447 | BB69: -0.1059964067 | BC69: 3.292126287 | BD69: 8.179480185 | BE69: 6.272458523 | BF69: 6.805662686 | BG69: =LN(#REF!) ->  | BH69: 1.098612289 | BI69: 7.60090246 | BJ69: 2.48490665 | BK69: 2.564949357 | BL69: 8.29404964 | BM69: 1.098612289 | BN69: 1.791759469
A70: IX8 | B70: 1.391435107 | C70: 0.42 | D70: 0.13 | E70: 52 | F70: 26 | G70: 2.19825 | H70: 3.746663658 | I70: 1.8 | J70: 1.98 | K70: 0.89942788 | L70: 26.9 | M70: 3567 | N70: 114.309 | O70: 194.8265102 | P70: 3 | Q70: 2 | R70: 2000 | S70: 12 | T70: 13 | U70: 1 | V70: 4000 | W70: 4 | X70: 2 | Y70: 2 | Z70: 0 | AA70: 2 | AB70: 3 | AC70: 1 | AD70: 1 | AE70: 1 | AF70: 2 | AG70: 3 | AH70: 3 | AI70: 4 | AJ70: 6 | AK70: 1 | AL70: 1 | AM70: 2 | AN70: 1 | AO70: 1 | AP70: 2 | AQ70: 1 | AR70: 1 | AS70: 1 | AT70: 0 | AU70: 1 | AV70: 3.951243719 | AW70: 3.258096538 | AX70: 0.7876615893 | AY70: 1.320865753 | AZ70: 0.5877866649 | BA70: 0.6830968447 | BB70: -0.1059964067 | BC70: 3.292126287 | BD70: 8.179480185 | BE70: 4.738905308 | BF70: 5.272109471 | BG70: =LN(#REF!) ->  | BH70: 1.098612289 | BI70: 7.60090246 | BJ70: 2.48490665 | BK70: 2.564949357 | BL70: 8.29404964 | BM70: 1.098612289 | BN70: 1.791759469
A71: IX9 | B71: 1.676431613 | C71: 0.42 | D71: 0.13 | E71: 126 | F71: 44 | G71: 2.19825 | H71: 3.746663658 | I71: 1.8 | J71: 1.98 | K71: 0.89942788 | L71: 26.9 | M71: 3567 | N71: 276.9795 | O71: 472.0796209 | P71: 3 | Q71: 2 | R71: 2000 | S71: 12 | T71: 13 | U71: 1 | V71: 4000 | W71: 4 | X71: 2 | Y71: 2 | Z71: 0 | AA71: 2 | AB71: 3 | AC71: 1 | AD71: 1 | AE71: 1 | AF71: 2 | AG71: 3 | AH71: 3 | AI71: 4 | AJ71: 6 | AK71: 1 | AL71: 1 | AM71: 2 | AN71: 1 | AO71: 1 | AP71: 2 | AQ71: 1 | AR71: 1 | AS71: 1 | AT71: 0 | AU71: 1 | AV71: 4.836281907 | AW71: 3.784189634 | AX71: 0.7876615893 | AY71: 1.320865753 | AZ71: 0.5877866649 | BA71: 0.6830968447 | BB71: -0.1059964067 | BC71: 3.292126287 | BD71: 8.179480185 | BE71: 5.623943496 | BF71: 6.15714766 | BG71: =LN(#REF!) ->  | BH71: 1.098612289 | BI71: 7.60090246 | BJ71: 2.48490665 | BK71: 2.564949357 | BL71: 8.29404964 | BM71: 1.098612289 | BN71: 1.791759469
A72: IX10 | B72: 1.624661514 | C72: 0.42 | D72: 0.13 | E72: 7 | F72: 12 | G72: 2.19825 | H72: 3.746663658 | I72: 1.8 | J72: 1.98 | K72: 0.89942788 | L72: 26.9 | M72: 3567 | N72: 15.38775 | O72: 26.22664561 | P72: 3 | Q72: 2 | R72: 2000 | S72: 12 | T72: 13 | U72: 1 | V72: 4000 | W72: 4 | X72: 2 | Y72: 2 | Z72: 0 | AA72: 2 | AB72: 3 | AC72: 1 | AD72: 1 | AE72: 1 | AF72: 2 | AG72: 3 | AH72: 3 | AI72: 4 | AJ72: 6 | AK72: 1 | AL72: 1 | AM72: 2 | AN72: 1 | AO72: 1 | AP72: 2 | AQ72: 1 | AR72: 1 | AS72: 1 | AT72: 0 | AU72: 1 | AV72: 1.945910149 | AW72: 2.48490665 | AX72: 0.7876615893 | AY72: 1.320865753 | AZ72: 0.5877866649 | BA72: 0.6830968447 | BB72: -0.1059964067 | BC72: 3.292126287 | BD72: 8.179480185 | BE72: 2.733571738 | BF72: 3.266775902 | BG72: =LN(#REF!) ->  | BH72: 1.098612289 | BI72: 7.60090246 | BJ72: 2.48490665 | BK72: 2.564949357 | BL72: 8.29404964 | BM72: 1.098612289 | BN72: 1.791759469
A73: IX11 | B73: 2.045614854 | C73: 0.42 | D73: 0.13 | E73: 57 | F73: 124 | G73: 2.19825 | H73: 3.746663658 | I73: 1.8 | J73: 1.98 | K73: 0.89942788 | L73: 26.9 | M73: 3567 | N73: 125.30025 | O73: 213.5598285 | P73: 3 | Q73: 2 | R73: 2000 | S73: 12 | T73: 13 | U73: 1 | V73: 4000 | W73: 4 | X73: 2 | Y73: 2 | Z73: 0 | AA73: 2 | AB73: 3 | AC73: 1 | AD73: 1 | AE73: 1 | AF73: 2 | AG73: 3 | AH73: 3 | AI73: 4 | AJ73: 6 | AK73: 1 | AL73: 1 | AM73: 2 | AN73: 1 | AO73: 1 | AP73: 2 | AQ73: 1 | AR73: 1 | AS73: 1 | AT73: 0 | AU73: 1 | AV73: 4.043051268 | AW73: 4.820281566 | AX73: 0.7876615893 | AY73: 1.320865753 | AZ73: 0.5877866649 | BA73: 0.6830968447 | BB73: -0.1059964067 | BC73: 3.292126287 | BD73: 8.179480185 | BE73: 4.830712857 | BF73: 5.363917021 | BG73: =LN(#REF!) ->  | BH73: 1.098612289 | BI73: 7.60090246 | BJ73: 2.48490665 | BK73: 2.564949357 | BL73: 8.29404964 | BM73: 1.098612289 | BN73: 1.791759469
A74: IX12 | B74: 1.446232663 | C74: 0.42 | D74: 0.13 | E74: 0 | F74: 2 | G74: 2.19825 | H74: 3.746663658 | I74: 1.8 | J74: 1.98 | K74: 0.89942788 | L74: 26.9 | M74: 3567 | N74: 0 | O74: 0 | P74: 3 | Q74: 2 | R74: 2000 | S74: 12 | T74: 13 | U74: 1 | V74: 4000 | W74: 4 | X74: 2 | Y74: 2 | Z74: 0 | AA74: 2 | AB74: 3 | AC74: 1 | AD74: 1 | AE74: 1 | AF74: 2 | AG74: 3 | AH74: 3 | AI74: 4 | AJ74: 6 | AK74: 1 | AL74: 1 | AM74: 2 | AN74: 1 | AO74: 1 | AP74: 2 | AQ74: 1 | AR74: 1 | AS74: 1 | AT74: 0 | AU74: 1 | AV74: 1 | AW74: 0.6931471806 | AX74: 0.7876615893 | AY74: 1.320865753 | AZ74: 0.5877866649 | BA74: 0.6830968447 | BB74: -0.1059964067 | BC74: 3.292126287 | BD74: 8.179480185 | BE74: 0 | BF74: 0 | BG74: =LN(#REF!) ->  | BH74: 1.098612289 | BI74: 7.60090246 | BJ74: 2.48490665 | BK74: 2.564949357 | BL74: 8.29404964 | BM74: 1.098612289 | BN74: 1.791759469
A75: IX13 | B75: 1.540354728 | C75: 0.42 | D75: 0.13 | E75: 78 | F75: 54 | G75: 2.19825 | H75: 3.746663658 | I75: 1.8 | J75: 1.98 | K75: 0.89942788 | L75: 26.9 | M75: 3567 | N75: 171.4635 | O75: 292.2397653 | P75: 3 | Q75: 2 | R75: 2000 | S75: 12 | T75: 13 | U75: 1 | V75: 4000 | W75: 4 | X75: 2 | Y75: 2 | Z75: 0 | AA75: 2 | AB75: 3 | AC75: 1 | AD75: 1 | AE75: 1 | AF75: 2 | AG75: 3 | AH75: 3 | AI75: 4 | AJ75: 6 | AK75: 1 | AL75: 1 | AM75: 2 | AN75: 1 | AO75: 1 | AP75: 2 | AQ75: 1 | AR75: 1 | AS75: 1 | AT75: 0 | AU75: 1 | AV75: =LN(E75) -> 4.356708827 | AW75: 3.988984047 | AX75: 0.7876615893 | AY75: 1.320865753 | AZ75: 0.5877866649 | BA75: 0.6830968447 | BB75: -0.1059964067 | BC75: 3.292126287 | BD75: 8.179480185 | BE75: =LN(N75) -> 5.144370416 | BF75: =LN(O75) -> 5.677574579 | BG75: =LN(#REF!) ->  | BH75: 1.098612289 | BI75: 7.60090246 | BJ75: 2.48490665 | BK75: 2.564949357 | BL75: 8.29404964 | BM75: 1.098612289 | BN75: 1.791759469
A76: IX14 | B76: 1.818483875 | C76: 0.42 | D76: 0.13 | E76: 115 | F76: 75 | G76: 2.19825 | H76: 3.746663658 | I76: 1.8 | J76: 1.98 | K76: 0.89942788 | L76: 26.9 | M76: 3567 | N76: 252.79875 | O76: 430.8663207 | P76: 3 | Q76: 2 | R76: 2000 | S76: 12 | T76: 13 | U76: 1 | V76: 4000 | W76: 4 | X76: 2 | Y76: 2 | Z76: 0 | AA76: 2 | AB76: 3 | AC76: 1 | AD76: 1 | AE76: 1 | AF76: 2 | AG76: 3 | AH76: 3 | AI76: 4 | AJ76: 6 | AK76: 1 | AL76: 1 | AM76: 2 | AN76: 1 | AO76: 1 | AP76: 2 | AQ76: 1 | AR76: 1 | AS76: 1 | AT76: 0 | AU76: 1 | AV76: =LN(E76) -> 4.744932128 | AW76: 4.317488114 | AX76: 0.7876615893 | AY76: 1.320865753 | AZ76: 0.5877866649 | BA76: 0.6830968447 | BB76: -0.1059964067 | BC76: 3.292126287 | BD76: 8.179480185 | BE76: =LN(N76) -> 5.532593718 | BF76: =LN(O76) -> 6.065797881 | BG76: =LN(#REF!) ->  | BH76: 1.098612289 | BI76: 7.60090246 | BJ76: 2.48490665 | BK76: 2.564949357 | BL76: 8.29404964 | BM76: 1.098612289 | BN76: 1.791759469
A77: IX15 | B77: 2.022668079 | C77: 0.42 | D77: 0.13 | E77: 0 | F77: 80 | G77: 2.19825 | H77: 3.746663658 | I77: 1.8 | J77: 1.98 | K77: 0.89942788 | L77: 26.9 | M77: 3567 | N77: 0 | O77: 0 | P77: 3 | Q77: 2 | R77: 2000 | S77: 12 | T77: 13 | U77: 1 | V77: 4000 | W77: 4 | X77: 2 | Y77: 2 | Z77: 0 | AA77: 2 | AB77: 3 | AC77: 1 | AD77: 1 | AE77: 1 | AF77: 2 | AG77: 3 | AH77: 3 | AI77: 4 | AJ77: 6 | AK77: 1 | AL77: 1 | AM77: 2 | AN77: 1 | AO77: 1 | AP77: 2 | AQ77: 1 | AR77: 1 | AS77: 1 | AT77: 0 | AU77: 1 | AV77: 1 | AW77: 4.382026635 | AX77: 0.7876615893 | AY77: 1.320865753 | AZ77: 0.5877866649 | BA77: 0.6830968447 | BB77: -0.1059964067 | BC77: 3.292126287 | BD77: 8.179480185 | BE77: 0 | BF77: 0 | BG77: =LN(#REF!) ->  | BH77: 1.098612289 | BI77: 7.60090246 | BJ77: 2.48490665 | BK77: 2.564949357 | BL77: 8.29404964 | BM77: 1.098612289 | BN77: 1.791759469
A78: IX16 | B78: 1.985780969 | C78: 0.42 | D78: 0.13 | E78: 76 | F78: 202 | G78: 2.19825 | H78: 3.746663658 | I78: 1.8 | J78: 1.98 | K78: 0.89942788 | L78: 26.9 | M78: 3567 | N78: 167.067 | O78: 284.746438 | P78: 3 | Q78: 2 | R78: 2000 | S78: 12 | T78: 13 | U78: 1 | V78: 4000 | W78: 4 | X78: 2 | Y78: 2 | Z78: 0 | AA78: 2 | AB78: 3 | AC78: 1 | AD78: 1 | AE78: 1 | AF78: 2 | AG78: 3 | AH78: 3 | AI78: 4 | AJ78: 6 | AK78: 1 | AL78: 1 | AM78: 2 | AN78: 1 | AO78: 1 | AP78: 2 | AQ78: 1 | AR78: 1 | AS78: 1 | AT78: 0 | AU78: 1 | AV78: =LN(E78) -> 4.33073334 | AW78: 5.308267697 | AX78: 0.7876615893 | AY78: 1.320865753 | AZ78: 0.5877866649 | BA78: 0.6830968447 | BB78: -0.1059964067 | BC78: 3.292126287 | BD78: 8.179480185 | BE78: =LN(N78) -> 5.11839493 | BF78: =LN(O78) -> 5.651599093 | BG78: =LN(#REF!) ->  | BH78: 1.098612289 | BI78: 7.60090246 | BJ78: 2.48490665 | BK78: 2.564949357 | BL78: 8.29404964 | BM78: 1.098612289 | BN78: 1.791759469
A79: IX17 | B79: 1.614046031 | C79: 0.42 | D79: 0.13 | E79: 98 | F79: 354 | G79: 2.19825 | H79: 3.746663658 | I79: 1.8 | J79: 1.98 | K79: 0.89942788 | L79: 26.9 | M79: 3567 | N79: 215.4285 | O79: 367.1730385 | P79: 3 | Q79: 2 | R79: 2000 | S79: 12 | T79: 13 | U79: 1 | V79: 4000 | W79: 4 | X79: 2 | Y79: 2 | Z79: 0 | AA79: 2 | AB79: 3 | AC79: 1 | AD79: 1 | AE79: 1 | AF79: 2 | AG79: 3 | AH79: 3 | AI79: 4 | AJ79: 6 | AK79: 1 | AL79: 1 | AM79: 2 | AN79: 1 | AO79: 1 | AP79: 2 | AQ79: 1 | AR79: 1 | AS79: 1 | AT79: 0 | AU79: 1 | AV79: 4.584967479 | AW79: 5.869296913 | AX79: 0.7876615893 | AY79: 1.320865753 | AZ79: 0.5877866649 | BA79: 0.6830968447 | BB79: -0.1059964067 | BC79: 3.292126287 | BD79: 8.179480185 | BE79: 5.372629068 | BF79: 5.905833231 | BG79: =LN(#REF!) ->  | BH79: 1.098612289 | BI79: 7.60090246 | BJ79: 2.48490665 | BK79: 2.564949357 | BL79: 8.29404964 | BM79: 1.098612289 | BN79: 1.791759469
A80: IX18 | B80: 0.756067606 | C80: 0.42 | D80: 0.13 | E80: 232 | F80: 543 | G80: 2.19825 | H80: 3.746663658 | I80: 1.8 | J80: 1.98 | K80: 0.89942788 | L80: 26.9 | M80: 3567 | N80: 509.994 | O80: 869.2259687 | P80: 3 | Q80: 2 | R80: 2000 | S80: 12 | T80: 13 | U80: 1 | V80: 4000 | W80: 4 | X80: 2 | Y80: 2 | Z80: 0 | AA80: 2 | AB80: 3 | AC80: 1 | AD80: 1 | AE80: 1 | AF80: 2 | AG80: 3 | AH80: 3 | AI80: 4 | AJ80: 6 | AK80: 1 | AL80: 1 | AM80: 2 | AN80: 1 | AO80: 1 | AP80: 2 | AQ80: 1 | AR80: 1 | AS80: 1 | AT80: 0 | AU80: 1 | AV80: 5.446737372 | AW80: 6.29710932 | AX80: 0.7876615893 | AY80: 1.320865753 | AZ80: 0.5877866649 | BA80: 0.6830968447 | BB80: -0.1059964067 | BC80: 3.292126287 | BD80: 8.179480185 | BE80: 6.234398961 | BF80: 6.767603124 | BG80: =LN(#REF!) ->  | BH80: 1.098612289 | BI80: 7.60090246 | BJ80: 2.48490665 | BK80: 2.564949357 | BL80: 8.29404964 | BM80: 1.098612289 | BN80: 1.791759469
A81: IX19 | B81: 1.820691377 | C81: 0.42 | D81: 0.13 | E81: 24 | F81: 44 | G81: 2.19825 | H81: 3.746663658 | I81: 1.8 | J81: 1.98 | K81: 0.89942788 | L81: 26.9 | M81: 3567 | N81: 52.758 | O81: 89.91992779 | P81: 3 | Q81: 2 | R81: 2000 | S81: 12 | T81: 13 | U81: 1 | V81: 4000 | W81: 4 | X81: 2 | Y81: 2 | Z81: 0 | AA81: 2 | AB81: 3 | AC81: 1 | AD81: 1 | AE81: 1 | AF81: 2 | AG81: 3 | AH81: 3 | AI81: 4 | AJ81: 6 | AK81: 1 | AL81: 1 | AM81: 2 | AN81: 1 | AO81: 1 | AP81: 2 | AQ81: 1 | AR81: 1 | AS81: 1 | AT81: 0 | AU81: 1 | AV81: 3.17805383 | AW81: 3.784189634 | AX81: 0.7876615893 | AY81: 1.320865753 | AZ81: 0.5877866649 | BA81: 0.6830968447 | BB81: -0.1059964067 | BC81: 3.292126287 | BD81: 8.179480185 | BE81: 3.96571542 | BF81: 4.498919583 | BG81: =LN(#REF!) ->  | BH81: 1.098612289 | BI81: 7.60090246 | BJ81: 2.48490665 | BK81: 2.564949357 | BL81: 8.29404964 | BM81: 1.098612289 | BN81: 1.791759469
A82: IX20 | B82: 1.286643113 | C82: 0.42 | D82: 0.13 | E82: 35 | F82: 22 | G82: 2.19825 | H82: 3.746663658 | I82: 1.8 | J82: 1.98 | K82: 0.89942788 | L82: 26.9 | M82: 3567 | N82: 76.93875 | O82: 131.133228 | P82: 3 | Q82: 2 | R82: 2000 | S82: 12 | T82: 13 | U82: 1 | V82: 4000 | W82: 4 | X82: 2 | Y82: 2 | Z82: 0 | AA82: 2 | AB82: 3 | AC82: 1 | AD82: 1 | AE82: 1 | AF82: 2 | AG82: 3 | AH82: 3 | AI82: 4 | AJ82: 6 | AK82: 1 | AL82: 1 | AM82: 2 | AN82: 1 | AO82: 1 | AP82: 2 | AQ82: 1 | AR82: 1 | AS82: 1 | AT82: 0 | AU82: 1 | AV82: 3.555348061 | AW82: 3.091042453 | AX82: 0.7876615893 | AY82: 1.320865753 | AZ82: 0.5877866649 | BA82: 0.6830968447 | BB82: -0.1059964067 | BC82: 3.292126287 | BD82: 8.179480185 | BE82: 4.343009651 | BF82: 4.876213814 | BG82: =LN(#REF!) ->  | BH82: 1.098612289 | BI82: 7.60090246 | BJ82: 2.48490665 | BK82: 2.564949357 | BL82: 8.29404964 | BM82: 1.098612289 | BN82: 1.791759469
A83: PE1 | B83: 1.60262225 | C83: 0.17 | D83: -0.77 | E83: 60 | F83: 0 | G83: 0.423 | H83: 1.005730458 | I83: 0.8 | J83: 7.78 | K83: 2.96491988 | L83: 28.7 | M83: 1689 | N83: 25.38 | O83: 60.34382748 | P83: 4 | Q83: 2 | R83: 4000 | S83: 13 | T83: 12.7 | U83: 1 | V83: 4500 | W83: 1 | X83: 2 | Y83: 2 | Z83: 0 | AA83: 2 | AB83: 2 | AC83: 1 | AD83: 2 | AE83: 1 | AF83: 2 | AG83: 4 | AH83: 2 | AI83: 3 | AJ83: 4 | AK83: 1 | AL83: 2 | AM83: 2 | AN83: 1 | AO83: 1 | AP83: 1 | AQ83: 1 | AR83: 1 | AS83: 2 | AT83: 0 | AU83: 0 | AV83: 4.094344562 | AW83: 1 | AX83: -0.8603830999 | AY83: 0.005714101383 | AZ83: -0.2231435513 | BA83: 2.051556338 | BB83: 1.08685001 | BC83: 3.356897123 | BD83: 7.431891917 | BE83: 3.233961462 | BF83: 4.100058664 | BG83: =LN(#REF!) ->  | BH83: 1.386294361 | BI83: 8.29404964 | BJ83: 2.564949357 | BK83: 2.541601993 | BL83: 8.411832676 | BM83: 0.6931471806 | BN83: 1.386294361
A84: PE2 | B84: 1.611956688 | C84: 0.17 | D84: -0.77 | E84: 26 | F84: 4 | G84: 0.423 | H84: 1.005730458 | I84: 0.8 | J84: 7.78 | K84: 2.96491988 | L84: 28.7 | M84: 1689 | N84: 10.998 | O84: 26.14899191 | P84: 4 | Q84: 2 | R84: 4000 | S84: 13 | T84: 12.7 | U84: 1 | V84: 4500 | W84: 1 | X84: 2 | Y84: 2 | Z84: 0 | AA84: 2 | AB84: 2 | AC84: 1 | AD84: 2 | AE84: 1 | AF84: 2 | AG84: 4 | AH84: 2 | AI84: 3 | AJ84: 4 | AK84: 1 | AL84: 2 | AM84: 2 | AN84: 1 | AO84: 1 | AP84: 1 | AQ84: 1 | AR84: 1 | AS84: 2 | AT84: 0 | AU84: 0 | AV84: 3.258096538 | AW84: =LN(F84) -> 1.386294361 | AX84: -0.8603830999 | AY84: 0.005714101383 | AZ84: -0.2231435513 | BA84: 2.051556338 | BB84: 1.08685001 | BC84: 3.356897123 | BD84: 7.431891917 | BE84: 2.397713438 | BF84: 3.263810639 | BG84: =LN(#REF!) ->  | BH84: 1.386294361 | BI84: 8.29404964 | BJ84: 2.564949357 | BK84: 2.541601993 | BL84: 8.411832676 | BM84: 0.6931471806 | BN84: 1.386294361
A85: PE3 | B85: 1.060454227 | C85: 0.17 | D85: -0.77 | E85: 84 | F85: 21 | G85: 0.423 | H85: 1.005730458 | I85: 0.8 | J85: 7.78 | K85: 2.96491988 | L85: 28.7 | M85: 1689 | N85: 35.532 | O85: 84.48135847 | P85: 4 | Q85: 2 | R85: 4000 | S85: 13 | T85: 12.7 | U85: 1 | V85: 4500 | W85: 1 | X85: 2 | Y85: 2 | Z85: 0 | AA85: 2 | AB85: 2 | AC85: 1 | AD85: 2 | AE85: 1 | AF85: 2 | AG85: 4 | AH85: 2 | AI85: 3 | AJ85: 4 | AK85: 1 | AL85: 2 | AM85: 2 | AN85: 1 | AO85: 1 | AP85: 1 | AQ85: 1 | AR85: 1 | AS85: 2 | AT85: 0 | AU85: 0 | AV85: 4.430816799 | AW85: =LN(F85) -> 3.044522438 | AX85: -0.8603830999 | AY85: 0.005714101383 | AZ85: -0.2231435513 | BA85: 2.051556338 | BB85: 1.08685001 | BC85: 3.356897123 | BD85: 7.431891917 | BE85: 3.570433699 | BF85: 4.4365309 | BG85: =LN(#REF!) ->  | BH85: 1.386294361 | BI85: 8.29404964 | BJ85: 2.564949357 | BK85: 2.541601993 | BL85: 8.411832676 | BM85: 0.6931471806 | BN85: 1.386294361
A86: PE4 | B86: 1.788422976 | C86: 0.17 | D86: -0.77 | E86: 31 | F86: 32 | G86: 0.423 | H86: 1.005730458 | I86: 0.8 | J86: 7.78 | K86: 2.96491988 | L86: 28.7 | M86: 1689 | N86: 13.113 | O86: 31.1776442 | P86: 4 | Q86: 2 | R86: 4000 | S86: 13 | T86: 12.7 | U86: 1 | V86: 4500 | W86: 1 | X86: 2 | Y86: 2 | Z86: 0 | AA86: 2 | AB86: 2 | AC86: 1 | AD86: 2 | AE86: 1 | AF86: 2 | AG86: 4 | AH86: 2 | AI86: 3 | AJ86: 4 | AK86: 1 | AL86: 2 | AM86: 2 | AN86: 1 | AO86: 1 | AP86: 1 | AQ86: 1 | AR86: 1 | AS86: 2 | AT86: 0 | AU86: 0 | AV86: 3.433987204 | AW86: =LN(F86) -> 3.465735903 | AX86: -0.8603830999 | AY86: 0.005714101383 | AZ86: -0.2231435513 | BA86: 2.051556338 | BB86: 1.08685001 | BC86: 3.356897123 | BD86: 7.431891917 | BE86: 2.573604105 | BF86: 3.439701306 | BG86: =LN(#REF!) ->  | BH86: 1.386294361 | BI86: 8.29404964 | BJ86: 2.564949357 | BK86: 2.541601993 | BL86: 8.411832676 | BM86: 0.6931471806 | BN86: 1.386294361
A87: PE5 | B87: 1.567090398 | C87: 0.17 | D87: -0.77 | E87: 23 | F87: 0 | G87: 0.423 | H87: 1.005730458 | I87: 0.8 | J87: 7.78 | K87: 2.96491988 | L87: 28.7 | M87: 1689 | N87: 9.729 | O87: 23.13180053 | P87: 4 | Q87: 2 | R87: 4000 | S87: 13 | T87: 12.7 | U87: 1 | V87: 4500 | W87: 1 | X87: 2 | Y87: 2 | Z87: 0 | AA87: 2 | AB87: 2 | AC87: 1 | AD87: 2 | AE87: 1 | AF87: 2 | AG87: 4 | AH87: 2 | AI87: 3 | AJ87: 4 | AK87: 1 | AL87: 2 | AM87: 2 | AN87: 1 | AO87: 1 | AP87: 1 | AQ87: 1 | AR87: 1 | AS87: 2 | AT87: 0 | AU87: 0 | AV87: 3.135494216 | AW87: 1 | AX87: -0.8603830999 | AY87: 0.005714101383 | AZ87: -0.2231435513 | BA87: 2.051556338 | BB87: 1.08685001 | BC87: 3.356897123 | BD87: 7.431891917 | BE87: 2.275111116 | BF87: 3.141208317 | BG87: =LN(#REF!) ->  | BH87: 1.386294361 | BI87: 8.29404964 | BJ87: 2.564949357 | BK87: 2.541601993 | BL87: 8.411832676 | BM87: 0.6931471806 | BN87: 1.386294361
A88: PE6 | B88: 1.609970395 | C88: 0.17 | D88: -0.77 | E88: 36 | F88: 20 | G88: 0.423 | H88: 1.005730458 | I88: 0.8 | J88: 7.78 | K88: 2.96491988 | L88: 28.7 | M88: 1689 | N88: 15.228 | O88: 36.20629649 | P88: 4 | Q88: 2 | R88: 4000 | S88: 13 | T88: 12.7 | U88: 1 | V88: 4500 | W88: 1 | X88: 2 | Y88: 2 | Z88: 0 | AA88: 2 | AB88: 2 | AC88: 1 | AD88: 2 | AE88: 1 | AF88: 2 | AG88: 4 | AH88: 2 | AI88: 3 | AJ88: 4 | AK88: 1 | AL88: 2 | AM88: 2 | AN88: 1 | AO88: 1 | AP88: 1 | AQ88: 1 | AR88: 1 | AS88: 2 | AT88: 0 | AU88: 0 | AV88: 3.583518938 | AW88: =LN(F88) -> 2.995732274 | AX88: -0.8603830999 | AY88: 0.005714101383 | AZ88: -0.2231435513 | BA88: 2.051556338 | BB88: 1.08685001 | BC88: 3.356897123 | BD88: 7.431891917 | BE88: 2.723135839 | BF88: 3.58923304 | BG88: =LN(#REF!) ->  | BH88: 1.386294361 | BI88: 8.29404964 | BJ88: 2.564949357 | BK88: 2.541601993 | BL88: 8.411832676 | BM88: 0.6931471806 | BN88: 1.386294361
A89: PE7 | B89: 1.309598221 | C89: 0.17 | D89: -0.77 | E89: 94 | F89: 0 | G89: 0.423 | H89: 1.005730458 | I89: 0.8 | J89: 7.78 | K89: 2.96491988 | L89: 28.7 | M89: 1689 | N89: 39.762 | O89: 94.53866305 | P89: 4 | Q89: 2 | R89: 4000 | S89: 13 | T89: 12.7 | U89: 1 | V89: 4500 | W89: 1 | X89: 2 | Y89: 2 | Z89: 0 | AA89: 2 | AB89: 2 | AC89: 1 | AD89: 2 | AE89: 1 | AF89: 2 | AG89: 4 | AH89: 2 | AI89: 3 | AJ89: 4 | AK89: 1 | AL89: 2 | AM89: 2 | AN89: 1 | AO89: 1 | AP89: 1 | AQ89: 1 | AR89: 1 | AS89: 2 | AT89: 0 | AU89: 0 | AV89: 4.543294782 | AW89: 1 | AX89: -0.8603830999 | AY89: 0.005714101383 | AZ89: -0.2231435513 | BA89: 2.051556338 | BB89: 1.08685001 | BC89: 3.356897123 | BD89: 7.431891917 | BE89: 3.682911682 | BF89: 4.549008884 | BG89: =LN(#REF!) ->  | BH89: 1.386294361 | BI89: 8.29404964 | BJ89: 2.564949357 | BK89: 2.541601993 | BL89: 8.411832676 | BM89: 0.6931471806 | BN89: 1.386294361
A90: PE8 | B90: 1.057841893 | C90: 0.17 | D90: -0.77 | E90: 166 | F90: 136 | G90: 0.423 | H90: 1.005730458 | I90: 0.8 | J90: 7.78 | K90: 2.96491988 | L90: 28.7 | M90: 1689 | N90: 70.218 | O90: 166.951256 | P90: 4 | Q90: 2 | R90: 4000 | S90: 13 | T90: 12.7 | U90: 1 | V90: 4500 | W90: 1 | X90: 2 | Y90: 2 | Z90: 0 | AA90: 2 | AB90: 2 | AC90: 1 | AD90: 2 | AE90: 1 | AF90: 2 | AG90: 4 | AH90: 2 | AI90: 3 | AJ90: 4 | AK90: 1 | AL90: 2 | AM90: 2 | AN90: 1 | AO90: 1 | AP90: 1 | AQ90: 1 | AR90: 1 | AS90: 2 | AT90: 0 | AU90: 0 | AV90: 5.111987788 | AW90: =LN(F90) -> 4.912654886 | AX90: -0.8603830999 | AY90: 0.005714101383 | AZ90: -0.2231435513 | BA90: 2.051556338 | BB90: 1.08685001 | BC90: 3.356897123 | BD90: 7.431891917 | BE90: 4.251604688 | BF90: 5.11770189 | BG90: =LN(#REF!) ->  | BH90: 1.386294361 | BI90: 8.29404964 | BJ90: 2.564949357 | BK90: 2.541601993 | BL90: 8.411832676 | BM90: 0.6931471806 | BN90: 1.386294361
A91: PE9 | B91: 1.417686947 | C91: 0.17 | D91: -0.77 | E91: 23 | F91: 26 | G91: 0.423 | H91: 1.005730458 | I91: 0.8 | J91: 7.78 | K91: 2.96491988 | L91: 28.7 | M91: 1689 | N91: 9.729 | O91: 23.13180053 | P91: 4 | Q91: 2 | R91: 4000 | S91: 13 | T91: 12.7 | U91: 1 | V91: 4500 | W91: 1 | X91: 2 | Y91: 2 | Z91: 0 | AA91: 2 | AB91: 2 | AC91: 1 | AD91: 2 | AE91: 1 | AF91: 2 | AG91: 4 | AH91: 2 | AI91: 3 | AJ91: 4 | AK91: 1 | AL91: 2 | AM91: 2 | AN91: 1 | AO91: 1 | AP91: 1 | AQ91: 1 | AR91: 1 | AS91: 2 | AT91: 0 | AU91: 0 | AV91: 3.135494216 | AW91: =LN(F91) -> 3.258096538 | AX91: -0.8603830999 | AY91: 0.005714101383 | AZ91: -0.2231435513 | BA91: 2.051556338 | BB91: 1.08685001 | BC91: 3.356897123 | BD91: 7.431891917 | BE91: 2.275111116 | BF91: 3.141208317 | BG91: =LN(#REF!) ->  | BH91: 1.386294361 | BI91: 8.29404964 | BJ91: 2.564949357 | BK91: 2.541601993 | BL91: 8.411832676 | BM91: 0.6931471806 | BN91: 1.386294361
A92: PE10 | B92: 1.159459581 | C92: 0.17 | D92: -0.77 | E92: 16 | F92: 0 | G92: 0.423 | H92: 1.005730458 | I92: 0.8 | J92: 7.78 | K92: 2.96491988 | L92: 28.7 | M92: 1689 | N92: 6.768 | O92: 16.09168733 | P92: 4 | Q92: 2 | R92: 4000 | S92: 13 | T92: 12.7 | U92: 1 | V92: 4500 | W92: 1 | X92: 2 | Y92: 2 | Z92: 0 | AA92: 2 | AB92: 2 | AC92: 1 | AD92: 2 | AE92: 1 | AF92: 2 | AG92: 4 | AH92: 2 | AI92: 3 | AJ92: 4 | AK92: 1 | AL92: 2 | AM92: 2 | AN92: 1 | AO92: 1 | AP92: 1 | AQ92: 1 | AR92: 1 | AS92: 2 | AT92: 0 | AU92: 0 | AV92: 2.772588722 | AW92: 1 | AX92: -0.8603830999 | AY92: 0.005714101383 | AZ92: -0.2231435513 | BA92: 2.051556338 | BB92: 1.08685001 | BC92: 3.356897123 | BD92: 7.431891917 | BE92: 1.912205622 | BF92: 2.778302824 | BG92: =LN(#REF!) ->  | BH92: 1.386294361 | BI92: 8.29404964 | BJ92: 2.564949357 | BK92: 2.541601993 | BL92: 8.411832676 | BM92: 0.6931471806 | BN92: 1.386294361
A93: PE11 | B93: 1.192630241 | C93: 0.17 | D93: -0.77 | E93: 29 | F93: 4 | G93: 0.423 | H93: 1.005730458 | I93: 0.8 | J93: 7.78 | K93: 2.96491988 | L93: 28.7 | M93: 1689 | N93: 12.267 | O93: 29.16618328 | P93: 4 | Q93: 2 | R93: 4000 | S93: 13 | T93: 12.7 | U93: 1 | V93: 4500 | W93: 1 | X93: 2 | Y93: 2 | Z93: 0 | AA93: 2 | AB93: 2 | AC93: 1 | AD93: 2 | AE93: 1 | AF93: 2 | AG93: 4 | AH93: 2 | AI93: 3 | AJ93: 4 | AK93: 1 | AL93: 2 | AM93: 2 | AN93: 1 | AO93: 1 | AP93: 1 | AQ93: 1 | AR93: 1 | AS93: 2 | AT93: 0 | AU93: 0 | AV93: 3.36729583 | AW93: =LN(F93) -> 1.386294361 | AX93: -0.8603830999 | AY93: 0.005714101383 | AZ93: -0.2231435513 | BA93: 2.051556338 | BB93: 1.08685001 | BC93: 3.356897123 | BD93: 7.431891917 | BE93: 2.50691273 | BF93: 3.373009931 | BG93: =LN(#REF!) ->  | BH93: 1.386294361 | BI93: 8.29404964 | BJ93: 2.564949357 | BK93: 2.541601993 | BL93: 8.411832676 | BM93: 0.6931471806 | BN93: 1.386294361
A94: PE12 | B94: 1.424624844 | C94: 0.17 | D94: -0.77 | E94: 0 | F94: 24 | G94: 0.423 | H94: 1.005730458 | I94: 0.8 | J94: 7.78 | K94: 2.96491988 | L94: 28.7 | M94: 1689 | N94: 0 | O94: 0 | P94: 4 | Q94: 2 | R94: 4000 | S94: 13 | T94: 12.7 | U94: 1 | V94: 4500 | W94: 1 | X94: 2 | Y94: 2 | Z94: 0 | AA94: 2 | AB94: 2 | AC94: 1 | AD94: 2 | AE94: 1 | AF94: 2 | AG94: 4 | AH94: 2 | AI94: 3 | AJ94: 4 | AK94: 1 | AL94: 2 | AM94: 2 | AN94: 1 | AO94: 1 | AP94: 1 | AQ94: 1 | AR94: 1 | AS94: 2 | AT94: 0 | AU94: 0 | AV94: 1 | AW94: 3.17805383 | AX94: -0.8603830999 | AY94: 0.005714101383 | AZ94: -0.2231435513 | BA94: 2.051556338 | BB94: 1.08685001 | BC94: 3.356897123 | BD94: 7.431891917 | BE94: 0 | BF94: 0 | BG94: =LN(#REF!) ->  | BH94: 1.386294361 | BI94: 8.29404964 | BJ94: 2.564949357 | BK94: 2.541601993 | BL94: 8.411832676 | BM94: 0.6931471806 | BN94: 1.386294361
A95: PE13 | B95: 1.386593831 | C95: 0.17 | D95: -0.77 | E95: 82 | F95: 14 | G95: 0.423 | H95: 1.005730458 | I95: 0.8 | J95: 7.78 | K95: 2.96491988 | L95: 28.7 | M95: 1689 | N95: 34.686 | O95: 82.46989756 | P95: 4 | Q95: 2 | R95: 4000 | S95: 13 | T95: 12.7 | U95: 1 | V95: 4500 | W95: 1 | X95: 2 | Y95: 2 | Z95: 0 | AA95: 2 | AB95: 2 | AC95: 1 | AD95: 2 | AE95: 1 | AF95: 2 | AG95: 4 | AH95: 2 | AI95: 3 | AJ95: 4 | AK95: 1 | AL95: 2 | AM95: 2 | AN95: 1 | AO95: 1 | AP95: 1 | AQ95: 1 | AR95: 1 | AS95: 2 | AT95: 0 | AU95: 0 | AV95: =LN(E95) -> 4.406719247 | AW95: 2.63905733 | AX95: -0.8603830999 | AY95: 0.005714101383 | AZ95: -0.2231435513 | BA95: 2.051556338 | BB95: 1.08685001 | BC95: 3.356897123 | BD95: 7.431891917 | BE95: =LN(N95) -> 3.546336147 | BF95: 4.412433349 | BG95: =LN(#REF!) ->  | BH95: 1.386294361 | BI95: 8.29404964 | BJ95: 2.564949357 | BK95: 2.541601993 | BL95: 8.411832676 | BM95: 0.6931471806 | BN95: 1.386294361
A96: PE14 | B96: 1.27530932 | C96: 0.17 | D96: -0.77 | E96: 10 | F96: 8 | G96: 0.423 | H96: 1.005730458 | I96: 0.8 | J96: 7.78 | K96: 2.96491988 | L96: 28.7 | M96: 1689 | N96: 4.23 | O96: 10.05730458 | P96: 4 | Q96: 2 | R96: 4000 | S96: 13 | T96: 12.7 | U96: 1 | V96: 4500 | W96: 1 | X96: 2 | Y96: 2 | Z96: 0 | AA96: 2 | AB96: 2 | AC96: 1 | AD96: 2 | AE96: 1 | AF96: 2 | AG96: 4 | AH96: 2 | AI96: 3 | AJ96: 4 | AK96: 1 | AL96: 2 | AM96: 2 | AN96: 1 | AO96: 1 | AP96: 1 | AQ96: 1 | AR96: 1 | AS96: 2 | AT96: 0 | AU96: 0 | AV96: =LN(E96) -> 2.302585093 | AW96: 2.079441542 | AX96: -0.8603830999 | AY96: 0.005714101383 | AZ96: -0.2231435513 | BA96: 2.051556338 | BB96: 1.08685001 | BC96: 3.356897123 | BD96: 7.431891917 | BE96: 1.442201993 | BF96: 2.308299194 | BG96: =LN(#REF!) ->  | BH96: 1.386294361 | BI96: 8.29404964 | BJ96: 2.564949357 | BK96: 2.541601993 | BL96: 8.411832676 | BM96: 0.6931471806 | BN96: 1.386294361
A97: PE15 | B97: 1.168459208 | C97: 0.17 | D97: -0.77 | E97: 99 | F97: 73 | G97: 0.423 | H97: 1.005730458 | I97: 0.8 | J97: 7.78 | K97: 2.96491988 | L97: 28.7 | M97: 1689 | N97: 41.877 | O97: 99.56731534 | P97: 4 | Q97: 2 | R97: 4000 | S97: 13 | T97: 12.7 | U97: 1 | V97: 4500 | W97: 1 | X97: 2 | Y97: 2 | Z97: 0 | AA97: 2 | AB97: 2 | AC97: 1 | AD97: 2 | AE97: 1 | AF97: 2 | AG97: 4 | AH97: 2 | AI97: 3 | AJ97: 4 | AK97: 1 | AL97: 2 | AM97: 2 | AN97: 1 | AO97: 1 | AP97: 1 | AQ97: 1 | AR97: 1 | AS97: 2 | AT97: 0 | AU97: 0 | AV97: =LN(E97) -> 4.59511985 | AW97: 4.290459441 | AX97: -0.8603830999 | AY97: 0.005714101383 | AZ97: -0.2231435513 | BA97: 2.051556338 | BB97: 1.08685001 | BC97: 3.356897123 | BD97: 7.431891917 | BE97: 3.73473675 | BF97: 4.600833952 | BG97: =LN(#REF!) ->  | BH97: 1.386294361 | BI97: 8.29404964 | BJ97: 2.564949357 | BK97: 2.541601993 | BL97: 8.411832676 | BM97: 0.6931471806 | BN97: 1.386294361
A98: PE16 | B98: 1.297024191 | C98: 0.17 | D98: -0.77 | E98: 105 | F98: 46 | G98: 0.423 | H98: 1.005730458 | I98: 0.8 | J98: 7.78 | K98: 2.96491988 | L98: 28.7 | M98: 1689 | N98: 44.415 | O98: 105.6016981 | P98: 4 | Q98: 2 | R98: 4000 | S98: 13 | T98: 12.7 | U98: 1 | V98: 4500 | W98: 1 | X98: 2 | Y98: 2 | Z98: 0 | AA98: 2 | AB98: 2 | AC98: 1 | AD98: 2 | AE98: 1 | AF98: 2 | AG98: 4 | AH98: 2 | AI98: 3 | AJ98: 4 | AK98: 1 | AL98: 2 | AM98: 2 | AN98: 1 | AO98: 1 | AP98: 1 | AQ98: 1 | AR98: 1 | AS98: 2 | AT98: 0 | AU98: 0 | AV98: =LN(E98) -> 4.65396035 | AW98: 3.828641396 | AX98: -0.8603830999 | AY98: 0.005714101383 | AZ98: -0.2231435513 | BA98: 2.051556338 | BB98: 1.08685001 | BC98: 3.356897123 | BD98: 7.431891917 | BE98: 3.79357725 | BF98: 4.659674452 | BG98: =LN(#REF!) ->  | BH98: 1.386294361 | BI98: 8.29404964 | BJ98: 2.564949357 | BK98: 2.541601993 | BL98: 8.411832676 | BM98: 0.6931471806 | BN98: 1.386294361
A99: PE17 | B99: 1.416703486 | C99: 0.17 | D99: -0.77 | E99: 69 | F99: 61 | G99: 0.423 | H99: 1.005730458 | I99: 0.8 | J99: 7.78 | K99: 2.96491988 | L99: 28.7 | M99: 1689 | N99: 29.187 | O99: 69.3954016 | P99: 4 | Q99: 2 | R99: 4000 | S99: 13 | T99: 12.7 | U99: 1 | V99: 4500 | W99: 1 | X99: 2 | Y99: 2 | Z99: 0 | AA99: 2 | AB99: 2 | AC99: 1 | AD99: 2 | AE99: 1 | AF99: 2 | AG99: 4 | AH99: 2 | AI99: 3 | AJ99: 4 | AK99: 1 | AL99: 2 | AM99: 2 | AN99: 1 | AO99: 1 | AP99: 1 | AQ99: 1 | AR99: 1 | AS99: 2 | AT99: 0 | AU99: 0 | AV99: =LN(E99) -> 4.234106505 | AW99: 4.110873864 | AX99: -0.8603830999 | AY99: 0.005714101383 | AZ99: -0.2231435513 | BA99: 2.051556338 | BB99: 1.08685001 | BC99: 3.356897123 | BD99: 7.431891917 | BE99: 3.373723405 | BF99: 4.239820606 | BG99: =LN(#REF!) ->  | BH99: 1.386294361 | BI99: 8.29404964 | BJ99: 2.564949357 | BK99: 2.541601993 | BL99: 8.411832676 | BM99: 0.6931471806 | BN99: 1.386294361
A100: PE18 | B100: 1.576184889 | C100: 0.17 | D100: -0.77 | E100: 0 | F100: 28 | G100: 0.423 | H100: 1.005730458 | I100: 0.8 | J100: 7.78 | K100: 2.96491988 | L100: 28.7 | M100: 1689 | N100: 0 | O100: 0 | P100: 4 | Q100: 2 | R100: 4000 | S100: 13 | T100: 12.7 | U100: 1 | V100: 4500 | W100: 1 | X100: 2 | Y100: 2 | Z100: 0 | AA100: 2 | AB100: 2 | AC100: 1 | AD100: 2 | AE100: 1 | AF100: 2 | AG100: 4 | AH100: 2 | AI100: 3 | AJ100: 4 | AK100: 1 | AL100: 2 | AM100: 2 | AN100: 1 | AO100: 1 | AP100: 1 | AQ100: 1 | AR100: 1 | AS100: 2 | AT100: 0 | AU100: 0 | AV100: 1 | AW100: 3.33220451 | AX100: -0.8603830999 | AY100: 0.005714101383 | AZ100: -0.2231435513 | BA100: 2.051556338 | BB100: 1.08685001 | BC100: 3.356897123 | BD100: 7.431891917 | BE100: 0 | BF100: 0 | BG100: =LN(#REF!) ->  | BH100: 1.386294361 | BI100: 8.29404964 | BJ100: 2.564949357 | BK100: 2.541601993 | BL100: 8.411832676 | BM100: 0.6931471806 | BN100: 1.386294361
A101: PE19 | B101: 1.071369379 | C101: 0.17 | D101: -0.77 | E101: 68 | F101: 38 | G101: 0.423 | H101: 1.005730458 | I101: 0.8 | J101: 7.78 | K101: 2.96491988 | L101: 28.7 | M101: 1689 | N101: 28.764 | O101: 68.38967114 | P101: 4 | Q101: 2 | R101: 4000 | S101: 13 | T101: 12.7 | U101: 1 | V101: 4500 | W101: 1 | X101: 2 | Y101: 2 | Z101: 0 | AA101: 2 | AB101: 2 | AC101: 1 | AD101: 2 | AE101: 1 | AF101: 2 | AG101: 4 | AH101: 2 | AI101: 3 | AJ101: 4 | AK101: 1 | AL101: 2 | AM101: 2 | AN101: 1 | AO101: 1 | AP101: 1 | AQ101: 1 | AR101: 1 | AS101: 2 | AT101: 0 | AU101: 0 | AV101: =LN(E101) -> 4.219507705 | AW101: 3.63758616 | AX101: -0.8603830999 | AY101: 0.005714101383 | AZ101: -0.2231435513 | BA101: 2.051556338 | BB101: 1.08685001 | BC101: 3.356897123 | BD101: 7.431891917 | BE101: =LN(N101) -> 3.359124605 | BF101: =LN(O101) -> 4.225221807 | BG101: =LN(#REF!) ->  | BH101: 1.386294361 | BI101: 8.29404964 | BJ101: 2.564949357 | BK101: 2.541601993 | BL101: 8.411832676 | BM101: 0.6931471806 | BN101: 1.386294361
A102: PE20 | B102: 1.149677978 | C102: 0.17 | D102: -0.77 | E102: 38 | F102: 377 | G102: 0.423 | H102: 1.005730458 | I102: 0.8 | J102: 7.78 | K102: 2.96491988 | L102: 28.7 | M102: 1689 | N102: 16.074 | O102: 38.2177574 | P102: 4 | Q102: 2 | R102: 4000 | S102: 13 | T102: 12.7 | U102: 1 | V102: 4500 | W102: 1 | X102: 2 | Y102: 2 | Z102: 0 | AA102: 2 | AB102: 2 | AC102: 1 | AD102: 2 | AE102: 1 | AF102: 2 | AG102: 4 | AH102: 2 | AI102: 3 | AJ102: 4 | AK102: 1 | AL102: 2 | AM102: 2 | AN102: 1 | AO102: 1 | AP102: 1 | AQ102: 1 | AR102: 1 | AS102: 2 | AT102: 0 | AU102: 0 | AV102: 3.63758616 | AW102: 5.932245187 | AX102: -0.8603830999 | AY102: 0.005714101383 | AZ102: -0.2231435513 | BA102: 2.051556338 | BB102: 1.08685001 | BC102: 3.356897123 | BD102: 7.431891917 | BE102: 2.77720306 | BF102: 3.643300261 | BG102: =LN(#REF!) ->  | BH102: 1.386294361 | BI102: 8.29404964 | BJ102: 2.564949357 | BK102: 2.541601993 | BL102: 8.411832676 | BM102: 0.6931471806 | BN102: 1.386294361
A103: BO1 | B103: 0.951313042 | C103: 100 | D103: 5.61 | E103: 358 | F103: 12 | G103: 0.05873508 | H103: 0.3980896 | I103: 2 | J103: 13.61 | K103: 2.8336 | L103: 28.4 | M103: 3868 | N103: 21.02715864 | O103: 142.5160768 | P103: 3 | Q103: 2 | R103: 25000 | S103: 12 | T103: 16 | U103: 2 | V103: 9000 | W103: 5 | X103: 1 | Y103: 1 | Z103: 3 | AA103: 1 | AB103: 1 | AC103: 0 | AD103: 2 | AE103: 0 | AF103: 0 | AG103: 4 | AH103: 1 | AI103: 2 | AJ103: 9 | AK103: 1 | AL103: 2 | AM103: 2 | AN103: 3 | AO103: 3 | AP103: 2 | AQ103: 2 | AR103: 2 | AS103: 1 | AT103: 3 | AU103: 1 | AV103: 5.880532986 | AW103: 2.48490665 | AX103: -2.834718116 | AY103: -0.9210781734 | AZ103: 0.6931471806 | BA103: 2.610804817 | BB103: 1.041547988 | BC103: 3.346389145 | BD103: 8.260492857 | BE103: 3.045814871 | BF103: 4.959454813 | BG103: =LN(#REF!) ->  | BH103: 1.098612289 | BI103: 10.1266311 | BJ103: 2.48490665 | BK103: 2.772588722 | BL103: 9.104979856 | BM103: 0 | BN103: 2.197224577
A104: BO2 | B104: 1.60716864 | C104: 100 | D104: 5.61 | E104: 98 | F104: 9 | G104: 0.05873508 | H104: 0.3980896 | I104: 2 | J104: 13.61 | K104: 2.8336 | L104: 28.4 | M104: 3868 | N104: 5.75603784 | O104: 39.0127808 | P104: 3 | Q104: 2 | R104: 25000 | S104: 12 | T104: 16 | U104: 2 | V104: 9000 | W104: 5 | X104: 1 | Y104: 1 | Z104: 3 | AA104: 1 | AB104: 1 | AC104: 0 | AD104: 2 | AE104: 0 | AF104: 0 | AG104: 4 | AH104: 1 | AI104: 2 | AJ104: 9 | AK104: 1 | AL104: 2 | AM104: 2 | AN104: 3 | AO104: 3 | AP104: 2 | AQ104: 2 | AR104: 2 | AS104: 1 | AT104: 3 | AU104: 1 | AV104: 4.584967479 | AW104: 2.197224577 | AX104: -2.834718116 | AY104: -0.9210781734 | AZ104: 0.6931471806 | BA104: 2.610804817 | BB104: 1.041547988 | BC104: 3.346389145 | BD104: 8.260492857 | BE104: 1.750249363 | BF104: 3.663889305 | BG104: =LN(#REF!) ->  | BH104: 1.098612289 | BI104: 10.1266311 | BJ104: 2.48490665 | BK104: 2.772588722 | BL104: 9.104979856 | BM104: 0 | BN104: 2.197224577
A105: BO3 | B105: 0.389127689 | C105: 100 | D105: 5.61 | E105: 365 | F105: 93 | G105: 0.05873508 | H105: 0.3980896 | I105: 2 | J105: 13.61 | K105: 2.8336 | L105: 28.4 | M105: 3868 | N105: 21.4383042 | O105: 145.302704 | P105: 3 | Q105: 2 | R105: 25000 | S105: 12 | T105: 16 | U105: 2 | V105: 9000 | W105: 5 | X105: 1 | Y105: 1 | Z105: 3 | AA105: 1 | AB105: 1 | AC105: 0 | AD105: 2 | AE105: 0 | AF105: 0 | AG105: 4 | AH105: 1 | AI105: 2 | AJ105: 9 | AK105: 1 | AL105: 2 | AM105: 2 | AN105: 3 | AO105: 3 | AP105: 2 | AQ105: 2 | AR105: 2 | AS105: 1 | AT105: 3 | AU105: 1 | AV105: 5.899897354 | AW105: 4.532599493 | AX105: -2.834718116 | AY105: -0.9210781734 | AZ105: 0.6931471806 | BA105: 2.610804817 | BB105: 1.041547988 | BC105: 3.346389145 | BD105: 8.260492857 | BE105: 3.065179238 | BF105: 4.97881918 | BG105: =LN(#REF!) ->  | BH105: 1.098612289 | BI105: 10.1266311 | BJ105: 2.48490665 | BK105: 2.772588722 | BL105: 9.104979856 | BM105: 0 | BN105: 2.197224577
A106: BO4 | B106: 1.13530297 | C106: 100 | D106: 5.61 | E106: 120 | F106: 30 | G106: 0.05873508 | H106: 0.3980896 | I106: 2 | J106: 13.61 | K106: 2.8336 | L106: 28.4 | M106: 3868 | N106: 7.0482096 | O106: 47.770752 | P106: 3 | Q106: 2 | R106: 25000 | S106: 12 | T106: 16 | U106: 2 | V106: 9000 | W106: 5 | X106: 1 | Y106: 1 | Z106: 3 | AA106: 1 | AB106: 1 | AC106: 0 | AD106: 2 | AE106: 0 | AF106: 0 | AG106: 4 | AH106: 1 | AI106: 2 | AJ106: 9 | AK106: 1 | AL106: 2 | AM106: 2 | AN106: 3 | AO106: 3 | AP106: 2 | AQ106: 2 | AR106: 2 | AS106: 1 | AT106: 3 | AU106: 1 | AV106: 4.787491743 | AW106: 3.401197382 | AX106: -2.834718116 | AY106: -0.9210781734 | AZ106: 0.6931471806 | BA106: 2.610804817 | BB106: 1.041547988 | BC106: 3.346389145 | BD106: 8.260492857 | BE106: 1.952773627 | BF106: 3.866413569 | BG106: =LN(#REF!) ->  | BH106: 1.098612289 | BI106: 10.1266311 | BJ106: 2.48490665 | BK106: 2.772588722 | BL106: 9.104979856 | BM106: 0 | BN106: 2.197224577
A107: BO5 | B107: 0.893605427 | C107: 100 | D107: 5.61 | E107: 95 | F107: 10 | G107: 0.05873508 | H107: 0.3980896 | I107: 2 | J107: 13.61 | K107: 2.8336 | L107: 28.4 | M107: 3868 | N107: 5.5798326 | O107: 37.818512 | P107: 3 | Q107: 2 | R107: 25000 | S107: 12 | T107: 16 | U107: 2 | V107: 9000 | W107: 5 | X107: 1 | Y107: 1 | Z107: 3 | AA107: 1 | AB107: 1 | AC107: 0 | AD107: 2 | AE107: 0 | AF107: 0 | AG107: 4 | AH107: 1 | AI107: 2 | AJ107: 9 | AK107: 1 | AL107: 2 | AM107: 2 | AN107: 3 | AO107: 3 | AP107: 2 | AQ107: 2 | AR107: 2 | AS107: 1 | AT107: 3 | AU107: 1 | AV107: 4.553876892 | AW107: 2.302585093 | AX107: -2.834718116 | AY107: -0.9210781734 | AZ107: 0.6931471806 | BA107: 2.610804817 | BB107: 1.041547988 | BC107: 3.346389145 | BD107: 8.260492857 | BE107: 1.719158776 | BF107: 3.632798718 | BG107: =LN(#REF!) ->  | BH107: 1.098612289 | BI107: 10.1266311 | BJ107: 2.48490665 | BK107: 2.772588722 | BL107: 9.104979856 | BM107: 0 | BN107: 2.197224577
A108: BO6 | B108: 1.049905308 | C108: 100 | D108: 5.61 | E108: 84 | F108: 20 | G108: 0.05873508 | H108: 0.3980896 | I108: 2 | J108: 13.61 | K108: 2.8336 | L108: 28.4 | M108: 3868 | N108: 4.93374672 | O108: 33.4395264 | P108: 3 | Q108: 2 | R108: 25000 | S108: 12 | T108: 16 | U108: 2 | V108: 9000 | W108: 5 | X108: 1 | Y108: 1 | Z108: 3 | AA108: 1 | AB108: 1 | AC108: 0 | AD108: 2 | AE108: 0 | AF108: 0 | AG108: 4 | AH108: 1 | AI108: 2 | AJ108: 9 | AK108: 1 | AL108: 2 | AM108: 2 | AN108: 3 | AO108: 3 | AP108: 2 | AQ108: 2 | AR108: 2 | AS108: 1 | AT108: 3 | AU108: 1 | AV108: 4.430816799 | AW108: 2.995732274 | AX108: -2.834718116 | AY108: -0.9210781734 | AZ108: 0.6931471806 | BA108: 2.610804817 | BB108: 1.041547988 | BC108: 3.346389145 | BD108: 8.260492857 | BE108: 1.596098683 | BF108: 3.509738625 | BG108: =LN(#REF!) ->  | BH108: 1.098612289 | BI108: 10.1266311 | BJ108: 2.48490665 | BK108: 2.772588722 | BL108: 9.104979856 | BM108: 0 | BN108: 2.197224577
A109: BO7 | B109: 1.019773183 | C109: 100 | D109: 5.61 | E109: 294 | F109: 14 | G109: 0.05873508 | H109: 0.3980896 | I109: 2 | J109: 13.61 | K109: 2.8336 | L109: 28.4 | M109: 3868 | N109: 17.26811352 | O109: 117.0383424 | P109: 3 | Q109: 2 | R109: 25000 | S109: 12 | T109: 16 | U109: 2 | V109: 9000 | W109: 5 | X109: 1 | Y109: 1 | Z109: 3 | AA109: 1 | AB109: 1 | AC109: 0 | AD109: 2 | AE109: 0 | AF109: 0 | AG109: 4 | AH109: 1 | AI109: 2 | AJ109: 9 | AK109: 1 | AL109: 2 | AM109: 2 | AN109: 3 | AO109: 3 | AP109: 2 | AQ109: 2 | AR109: 2 | AS109: 1 | AT109: 3 | AU109: 1 | AV109: 5.683579767 | AW109: 2.63905733 | AX109: -2.834718116 | AY109: -0.9210781734 | AZ109: 0.6931471806 | BA109: 2.610804817 | BB109: 1.041547988 | BC109: 3.346389145 | BD109: 8.260492857 | BE109: 2.848861652 | BF109: 4.762501594 | BG109: =LN(#REF!) ->  | BH109: 1.098612289 | BI109: 10.1266311 | BJ109: 2.48490665 | BK109: 2.772588722 | BL109: 9.104979856 | BM109: 0 | BN109: 2.197224577
A110: BO8 | B110: 1.182409022 | C110: 100 | D110: 5.61 | E110: 81 | F110: 0 | G110: 0.05873508 | H110: 0.3980896 | I110: 2 | J110: 13.61 | K110: 2.8336 | L110: 28.4 | M110: 3868 | N110: 4.75754148 | O110: 32.2452576 | P110: 3 | Q110: 2 | R110: 25000 | S110: 12 | T110: 16 | U110: 2 | V110: 9000 | W110: 5 | X110: 1 | Y110: 1 | Z110: 3 | AA110: 1 | AB110: 1 | AC110: 0 | AD110: 2 | AE110: 0 | AF110: 0 | AG110: 4 | AH110: 1 | AI110: 2 | AJ110: 9 | AK110: 1 | AL110: 2 | AM110: 2 | AN110: 3 | AO110: 3 | AP110: 2 | AQ110: 2 | AR110: 2 | AS110: 1 | AT110: 3 | AU110: 1 | AV110: 4.394449155 | AW110: 1 | AX110: -2.834718116 | AY110: -0.9210781734 | AZ110: 0.6931471806 | BA110: 2.610804817 | BB110: 1.041547988 | BC110: 3.346389145 | BD110: 8.260492857 | BE110: 1.559731039 | BF110: 3.473370981 | BG110: =LN(#REF!) ->  | BH110: 1.098612289 | BI110: 10.1266311 | BJ110: 2.48490665 | BK110: 2.772588722 | BL110: 9.104979856 | BM110: 0 | BN110: 2.197224577
A111: BO9 | B111: 0.742480265 | C111: 100 | D111: 5.61 | E111: 180 | F111: 32 | G111: 0.05873508 | H111: 0.3980896 | I111: 2 | J111: 13.61 | K111: 2.8336 | L111: 28.4 | M111: 3868 | N111: 10.5723144 | O111: 71.656128 | P111: 3 | Q111: 2 | R111: 25000 | S111: 12 | T111: 16 | U111: 2 | V111: 9000 | W111: 5 | X111: 1 | Y111: 1 | Z111: 3 | AA111: 1 | AB111: 1 | AC111: 0 | AD111: 2 | AE111: 0 | AF111: 0 | AG111: 4 | AH111: 1 | AI111: 2 | AJ111: 9 | AK111: 1 | AL111: 2 | AM111: 2 | AN111: 3 | AO111: 3 | AP111: 2 | AQ111: 2 | AR111: 2 | AS111: 1 | AT111: 3 | AU111: 1 | AV111: 5.192956851 | AW111: =LN(F111) -> 3.465735903 | AX111: -2.834718116 | AY111: -0.9210781734 | AZ111: 0.6931471806 | BA111: 2.610804817 | BB111: 1.041547988 | BC111: 3.346389145 | BD111: 8.260492857 | BE111: 2.358238735 | BF111: 4.271878677 | BG111: =LN(#REF!) ->  | BH111: 1.098612289 | BI111: 10.1266311 | BJ111: 2.48490665 | BK111: 2.772588722 | BL111: 9.104979856 | BM111: 0 | BN111: 2.197224577
A112: BO10 | B112: 0.239116284 | C112: 100 | D112: 5.61 | E112: 287 | F112: 88 | G112: 0.05873508 | H112: 0.3980896 | I112: 2 | J112: 13.61 | K112: 2.8336 | L112: 28.4 | M112: 3868 | N112: =G112*E112 -> 16.85696796 | O112: =H112*E112 -> 114.2517152 | P112: 3 | Q112: 2 | R112: 25000 | S112: 12 | T112: 16 | U112: 2 | V112: 9000 | W112: 5 | X112: 1 | Y112: 1 | Z112: 3 | AA112: 1 | AB112: 1 | AC112: 0 | AD112: 2 | AE112: 0 | AF112: 0 | AG112: 4 | AH112: 1 | AI112: 2 | AJ112: 9 | AK112: 1 | AL112: 2 | AM112: 2 | AN112: 3 | AO112: 3 | AP112: 2 | AQ112: 2 | AR112: 2 | AS112: 1 | AT112: 3 | AU112: 1 | AV112: 5.659482216 | AW112: 4.477336814 | AX112: -2.834718116 | AY112: -0.9210781734 | AZ112: 0.6931471806 | BA112: 2.610804817 | BB112: 1.041547988 | BC112: 3.346389145 | BD112: 8.260492857 | BE112: 2.8247641 | BF112: 4.738404042 | BG112: =LN(#REF!) ->  | BH112: 1.098612289 | BI112: 10.1266311 | BJ112: 2.48490665 | BK112: 2.772588722 | BL112: 9.104979856 | BM112: 0 | BN112: 2.197224577
A113: BO11 | B113: 1.017631782 | C113: 100 | D113: 5.61 | E113: 68 | F113: 12 | G113: 0.05873508 | H113: 0.3980896 | I113: 2 | J113: 13.61 | K113: 2.8336 | L113: 28.4 | M113: 3868 | N113: 3.99398544 | O113: 27.0700928 | P113: 3 | Q113: 2 | R113: 25000 | S113: 12 | T113: 16 | U113: 2 | V113: 9000 | W113: 5 | X113: 1 | Y113: 1 | Z113: 3 | AA113: 1 | AB113: 1 | AC113: 0 | AD113: 2 | AE113: 0 | AF113: 0 | AG113: 4 | AH113: 1 | AI113: 2 | AJ113: 9 | AK113: 1 | AL113: 2 | AM113: 2 | AN113: 3 | AO113: 3 | AP113: 2 | AQ113: 2 | AR113: 2 | AS113: 1 | AT113: 3 | AU113: 1 | AV113: 4.219507705 | AW113: 2.48490665 | AX113: -2.834718116 | AY113: -0.9210781734 | AZ113: 0.6931471806 | BA113: 2.610804817 | BB113: 1.041547988 | BC113: 3.346389145 | BD113: 8.260492857 | BE113: 1.38478959 | BF113: 3.298429532 | BG113: =LN(#REF!) ->  | BH113: 1.098612289 | BI113: 10.1266311 | BJ113: 2.48490665 | BK113: 2.772588722 | BL113: 9.104979856 | BM113: 0 | BN113: 2.197224577
A114: BO12 | B114: 0.961130191 | C114: 100 | D114: 5.61 | E114: 0 | F114: 4 | G114: 0.05873508 | H114: 0.3980896 | I114: 2 | J114: 13.61 | K114: 2.8336 | L114: 28.4 | M114: 3868 | N114: 0 | O114: 0 | P114: 3 | Q114: 2 | R114: 25000 | S114: 12 | T114: 16 | U114: 2 | V114: 9000 | W114: 5 | X114: 1 | Y114: 1 | Z114: 3 | AA114: 1 | AB114: 1 | AC114: 0 | AD114: 2 | AE114: 0 | AF114: 0 | AG114: 4 | AH114: 1 | AI114: 2 | AJ114: 9 | AK114: 1 | AL114: 2 | AM114: 2 | AN114: 3 | AO114: 3 | AP114: 2 | AQ114: 2 | AR114: 2 | AS114: 1 | AT114: 3 | AU114: 1 | AV114: 1 | AW114: 1.386294361 | AX114: -2.834718116 | AY114: -0.9210781734 | AZ114: 0.6931471806 | BA114: 2.610804817 | BB114: 1.041547988 | BC114: 3.346389145 | BD114: 8.260492857 | BE114: 0 | BF114: 0 | BG114: =LN(#REF!) ->  | BH114: 1.098612289 | BI114: 10.1266311 | BJ114: 2.48490665 | BK114: 2.772588722 | BL114: 9.104979856 | BM114: 0 | BN114: 2.197224577
A115: BO13 | B115: 0.495564751 | C115: 100 | D115: 5.61 | E115: 106 | F115: 28 | G115: 0.05873508 | H115: 0.3980896 | I115: 2 | J115: 13.61 | K115: 2.8336 | L115: 28.4 | M115: 3868 | N115: 6.22591848 | O115: 42.1974976 | P115: 3 | Q115: 2 | R115: 25000 | S115: 12 | T115: 16 | U115: 2 | V115: 9000 | W115: 5 | X115: 1 | Y115: 1 | Z115: 3 | AA115: 1 | AB115: 1 | AC115: 0 | AD115: 2 | AE115: 0 | AF115: 0 | AG115: 4 | AH115: 1 | AI115: 2 | AJ115: 9 | AK115: 1 | AL115: 2 | AM115: 2 | AN115: 3 | AO115: 3 | AP115: 2 | AQ115: 2 | AR115: 2 | AS115: 1 | AT115: 3 | AU115: 1 | AV115: =LN(E115) -> 4.663439094 | AW115: 3.33220451 | AX115: -2.834718116 | AY115: -0.9210781734 | AZ115: 0.6931471806 | BA115: 2.610804817 | BB115: 1.041547988 | BC115: 3.346389145 | BD115: 8.260492857 | BE115: =LN(N115) -> 1.828720978 | BF115: =LN(O115) -> 3.742360921 | BG115: =LN(#REF!) ->  | BH115: 1.098612289 | BI115: 10.1266311 | BJ115: 2.48490665 | BK115: 2.772588722 | BL115: 9.104979856 | BM115: 0 | BN115: 2.197224577
A116: BO14 | B116: 0.813919696 | C116: 100 | D116: 5.61 | E116: 195 | F116: 12 | G116: 0.05873508 | H116: 0.3980896 | I116: 2 | J116: 13.61 | K116: 2.8336 | L116: 28.4 | M116: 3868 | N116: 11.4533406 | O116: 77.627472 | P116: 3 | Q116: 2 | R116: 25000 | S116: 12 | T116: 16 | U116: 2 | V116: 9000 | W116: 5 | X116: 1 | Y116: 1 | Z116: 3 | AA116: 1 | AB116: 1 | AC116: 0 | AD116: 2 | AE116: 0 | AF116: 0 | AG116: 4 | AH116: 1 | AI116: 2 | AJ116: 9 | AK116: 1 | AL116: 2 | AM116: 2 | AN116: 3 | AO116: 3 | AP116: 2 | AQ116: 2 | AR116: 2 | AS116: 1 | AT116: 3 | AU116: 1 | AV116: 5.272999559 | AW116: 2.48490665 | AX116: -2.834718116 | AY116: -0.9210781734 | AZ116: 0.6931471806 | BA116: 2.610804817 | BB116: 1.041547988 | BC116: 3.346389145 | BD116: 8.260492857 | BE116: 2.438281443 | BF116: 4.351921385 | BG116: =LN(#REF!) ->  | BH116: 1.098612289 | BI116: 10.1266311 | BJ116: 2.48490665 | BK116: 2.772588722 | BL116: 9.104979856 | BM116: 0 | BN116: 2.197224577
A117: BO15 | B117: 0.684125548 | C117: 100 | D117: 5.61 | E117: 177 | F117: 21 | G117: 0.05873508 | H117: 0.3980896 | I117: 2 | J117: 13.61 | K117: 2.8336 | L117: 28.4 | M117: 3868 | N117: 10.39610916 | O117: 70.4618592 | P117: 3 | Q117: 2 | R117: 25000 | S117: 12 | T117: 16 | U117: 2 | V117: 9000 | W117: 5 | X117: 1 | Y117: 1 | Z117: 3 | AA117: 1 | AB117: 1 | AC117: 0 | AD117: 2 | AE117: 0 | AF117: 0 | AG117: 4 | AH117: 1 | AI117: 2 | AJ117: 9 | AK117: 1 | AL117: 2 | AM117: 2 | AN117: 3 | AO117: 3 | AP117: 2 | AQ117: 2 | AR117: 2 | AS117: 1 | AT117: 3 | AU117: 1 | AV117: 5.176149733 | AW117: 3.044522438 | AX117: -2.834718116 | AY117: -0.9210781734 | AZ117: 0.6931471806 | BA117: 2.610804817 | BB117: 1.041547988 | BC117: 3.346389145 | BD117: 8.260492857 | BE117: 2.341431617 | BF117: 4.255071559 | BG117: =LN(#REF!) ->  | BH117: 1.098612289 | BI117: 10.1266311 | BJ117: 2.48490665 | BK117: 2.772588722 | BL117: 9.104979856 | BM117: 0 | BN117: 2.197224577
A118: BO16 | B118: 2.055580593 | C118: 100 | D118: 5.61 | E118: 249 | F118: 48 | G118: 0.05873508 | H118: 0.3980896 | I118: 2 | J118: 13.61 | K118: 2.8336 | L118: 28.4 | M118: 3868 | N118: 14.62503492 | O118: 99.1243104 | P118: 3 | Q118: 2 | R118: 25000 | S118: 12 | T118: 16 | U118: 2 | V118: 9000 | W118: 5 | X118: 1 | Y118: 1 | Z118: 3 | AA118: 1 | AB118: 1 | AC118: 0 | AD118: 2 | AE118: 0 | AF118: 0 | AG118: 4 | AH118: 1 | AI118: 2 | AJ118: 9 | AK118: 1 | AL118: 2 | AM118: 2 | AN118: 3 | AO118: 3 | AP118: 2 | AQ118: 2 | AR118: 2 | AS118: 1 | AT118: 3 | AU118: 1 | AV118: 5.517452896 | AW118: 3.871201011 | AX118: -2.834718116 | AY118: -0.9210781734 | AZ118: 0.6931471806 | BA118: 2.610804817 | BB118: 1.041547988 | BC118: 3.346389145 | BD118: 8.260492857 | BE118: 2.682734781 | BF118: 4.596374723 | BG118: =LN(#REF!) ->  | BH118: 1.098612289 | BI118: 10.1266311 | BJ118: 2.48490665 | BK118: 2.772588722 | BL118: 9.104979856 | BM118: 0 | BN118: 2.197224577
A119: BO17 | B119: 1.438285802 | C119: 100 | D119: 5.61 | E119: 214 | F119: 0 | G119: 0.05873508 | H119: 0.3980896 | I119: 2 | J119: 13.61 | K119: 2.8336 | L119: 28.4 | M119: 3868 | N119: 12.56930712 | O119: 85.1911744 | P119: 3 | Q119: 2 | R119: 25000 | S119: 12 | T119: 16 | U119: 2 | V119: 9000 | W119: 5 | X119: 1 | Y119: 1 | Z119: 3 | AA119: 1 | AB119: 1 | AC119: 0 | AD119: 2 | AE119: 0 | AF119: 0 | AG119: 4 | AH119: 1 | AI119: 2 | AJ119: 9 | AK119: 1 | AL119: 2 | AM119: 2 | AN119: 3 | AO119: 3 | AP119: 2 | AQ119: 2 | AR119: 2 | AS119: 1 | AT119: 3 | AU119: 1 | AV119: 5.365976015 | AW119: 1 | AX119: -2.834718116 | AY119: -0.9210781734 | AZ119: 0.6931471806 | BA119: 2.610804817 | BB119: 1.041547988 | BC119: 3.346389145 | BD119: 8.260492857 | BE119: 2.531257899 | BF119: 4.444897842 | BG119: =LN(#REF!) ->  | BH119: 1.098612289 | BI119: 10.1266311 | BJ119: 2.48490665 | BK119: 2.772588722 | BL119: 9.104979856 | BM119: 0 | BN119: 2.197224577
A120: BO18 | B120: 2.252373114 | C120: 100 | D120: 5.61 | E120: 200 | F120: 0 | G120: 0.05873508 | H120: 0.3980896 | I120: 2 | J120: 13.61 | K120: 2.8336 | L120: 28.4 | M120: 3868 | N120: 11.747016 | O120: 79.61792 | P120: 3 | Q120: 2 | R120: 25000 | S120: 12 | T120: 16 | U120: 2 | V120: 9000 | W120: 5 | X120: 1 | Y120: 1 | Z120: 3 | AA120: 1 | AB120: 1 | AC120: 0 | AD120: 2 | AE120: 0 | AF120: 0 | AG120: 4 | AH120: 1 | AI120: 2 | AJ120: 9 | AK120: 1 | AL120: 2 | AM120: 2 | AN120: 3 | AO120: 3 | AP120: 2 | AQ120: 2 | AR120: 2 | AS120: 1 | AT120: 3 | AU120: 1 | AV120: 5.298317367 | AW120: 1 | AX120: -2.834718116 | AY120: -0.9210781734 | AZ120: 0.6931471806 | BA120: 2.610804817 | BB120: 1.041547988 | BC120: 3.346389145 | BD120: 8.260492857 | BE120: 2.463599251 | BF120: 4.377239193 | BG120: =LN(#REF!) ->  | BH120: 1.098612289 | BI120: 10.1266311 | BJ120: 2.48490665 | BK120: 2.772588722 | BL120: 9.104979856 | BM120: 0 | BN120: 2.197224577
A121: BO19 | B121: 1.984131064 | C121: 100 | D121: 5.61 | E121: 100 | F121: 102 | G121: 0.05873508 | H121: 0.3980896 | I121: 2 | J121: 13.61 | K121: 2.8336 | L121: 28.4 | M121: 3868 | N121: 5.873508 | O121: 39.80896 | P121: 3 | Q121: 2 | R121: 25000 | S121: 12 | T121: 16 | U121: 2 | V121: 9000 | W121: 5 | X121: 1 | Y121: 1 | Z121: 3 | AA121: 1 | AB121: 1 | AC121: 0 | AD121: 2 | AE121: 0 | AF121: 0 | AG121: 4 | AH121: 1 | AI121: 2 | AJ121: 9 | AK121: 1 | AL121: 2 | AM121: 2 | AN121: 3 | AO121: 3 | AP121: 2 | AQ121: 2 | AR121: 2 | AS121: 1 | AT121: 3 | AU121: 1 | AV121: 4.605170186 | AW121: =LN(F121) -> 4.624972813 | AX121: -2.834718116 | AY121: -0.9210781734 | AZ121: 0.6931471806 | BA121: 2.610804817 | BB121: 1.041547988 | BC121: 3.346389145 | BD121: 8.260492857 | BE121: 1.77045207 | BF121: 3.684092013 | BG121: =LN(#REF!) ->  | BH121: 1.098612289 | BI121: 10.1266311 | BJ121: 2.48490665 | BK121: 2.772588722 | BL121: 9.104979856 | BM121: 0 | BN121: 2.197224577
A122: BO20 | B122: 2.204808016 | C122: 100 | D122: 5.61 | E122: 289 | F122: 76 | G122: 0.05873508 | H122: 0.3980896 | I122: 2 | J122: 13.61 | K122: 2.8336 | L122: 28.4 | M122: 3868 | N122: 16.97443812 | O122: 115.0478944 | P122: 3 | Q122: 2 | R122: 25000 | S122: 12 | T122: 16 | U122: 2 | V122: 9000 | W122: 5 | X122: 1 | Y122: 1 | Z122: 3 | AA122: 1 | AB122: 1 | AC122: 0 | AD122: 2 | AE122: 0 | AF122: 0 | AG122: 4 | AH122: 1 | AI122: 2 | AJ122: 9 | AK122: 1 | AL122: 2 | AM122: 2 | AN122: 3 | AO122: 3 | AP122: 2 | AQ122: 2 | AR122: 2 | AS122: 1 | AT122: 3 | AU122: 1 | AV122: 5.666426688 | AW122: 4.33073334 | AX122: -2.834718116 | AY122: -0.9210781734 | AZ122: 0.6931471806 | BA122: 2.610804817 | BB122: 1.041547988 | BC122: 3.346389145 | BD122: 8.260492857 | BE122: 2.831708572 | BF122: 4.745348515 | BG122: =LN(#REF!) ->  | BH122: 1.098612289 | BI122: 10.1266311 | BJ122: 2.48490665 | BK122: 2.772588722 | BL122: 9.104979856 | BM122: 0 | BN122: 2.197224577
A123: HO1 | B123: 1.431171168 | C123: 100 | D123: 5.61 | E123: 89 | F123: 39 | G123: 0.077845 | H123: 0.454341 | I123: 2.1 | J123: 5.34 | K123: 2.945312 | L123: 28.9 | M123: 4364 | N123: 6.928205 | O123: 40.436349 | P123: 3 | Q123: 2 | R123: 23000 | S123: 12 | T123: 12 | U123: 2 | V123: 7000 | W123: 6 | X123: 1 | Y123: 1 | Z123: 3 | AA123: 1 | AB123: 1 | AC123: 0 | AD123: 2 | AE123: 0 | AF123: 0 | AG123: 4 | AH123: 1 | AI123: 2 | AJ123: 9 | AK123: 1 | AL123: 2 | AM123: 2 | AN123: 3 | AO123: 3 | AP123: 2 | AQ123: 2 | AR123: 2 | AS123: 1 | AT123: 3 | AU123: 1 | AV123: 4.48863637 | AW123: 3.663561646 | AX123: -2.553035609 | AY123: -0.7889072616 | AZ123: 0.7419373447 | BA123: 1.675225653 | BB123: 1.080214754 | BC123: 3.363841595 | BD123: 8.381144347 | BE123: 1.935600761 | BF123: 3.699729108 | BG123: =LN(#REF!) ->  | BH123: 1.098612289 | BI123: 10.04324949 | BJ123: 2.48490665 | BK123: 2.48490665 | BL123: 8.853665428 | BM123: 0 | BN123: 2.197224577
A124: HO2 | B124: 1.306005125 | C124: 100 | D124: 5.61 | E124: 387 | F124: 70 | G124: 0.077845 | H124: 0.454341 | I124: 2.1 | J124: 5.34 | K124: 2.945312 | L124: 28.9 | M124: 4364 | N124: 30.126015 | O124: 175.829967 | P124: 3 | Q124: 2 | R124: 23000 | S124: 12 | T124: 12 | U124: 2 | V124: 7000 | W124: 6 | X124: 1 | Y124: 1 | Z124: 3 | AA124: 1 | AB124: 1 | AC124: 0 | AD124: 2 | AE124: 0 | AF124: 0 | AG124: 4 | AH124: 1 | AI124: 2 | AJ124: 9 | AK124: 1 | AL124: 2 | AM124: 2 | AN124: 3 | AO124: 3 | AP124: 2 | AQ124: 2 | AR124: 2 | AS124: 1 | AT124: 3 | AU124: 1 | AV124: 5.958424693 | AW124: 4.248495242 | AX124: -2.553035609 | AY124: -0.7889072616 | AZ124: 0.7419373447 | BA124: 1.675225653 | BB124: 1.080214754 | BC124: 3.363841595 | BD124: 8.381144347 | BE124: 3.405389084 | BF124: 5.169517431 | BG124: =LN(#REF!) ->  | BH124: 1.098612289 | BI124: 10.04324949 | BJ124: 2.48490665 | BK124: 2.48490665 | BL124: 8.853665428 | BM124: 0 | BN124: 2.197224577
A125: HO3 | B125: 1.097465088 | C125: 100 | D125: 5.61 | E125: 304 | F125: 8 | G125: 0.077845 | H125: 0.454341 | I125: 2.1 | J125: 5.34 | K125: 2.945312 | L125: 28.9 | M125: 4364 | N125: 23.66488 | O125: 138.119664 | P125: 3 | Q125: 2 | R125: 23000 | S125: 12 | T125: 12 | U125: 2 | V125: 7000 | W125: 6 | X125: 1 | Y125: 1 | Z125: 3 | AA125: 1 | AB125: 1 | AC125: 0 | AD125: 2 | AE125: 0 | AF125: 0 | AG125: 4 | AH125: 1 | AI125: 2 | AJ125: 9 | AK125: 1 | AL125: 2 | AM125: 2 | AN125: 3 | AO125: 3 | AP125: 2 | AQ125: 2 | AR125: 2 | AS125: 1 | AT125: 3 | AU125: 1 | AV125: 5.717027701 | AW125: 2.079441542 | AX125: -2.553035609 | AY125: -0.7889072616 | AZ125: 0.7419373447 | BA125: 1.675225653 | BB125: 1.080214754 | BC125: 3.363841595 | BD125: 8.381144347 | BE125: 3.163992093 | BF125: 4.92812044 | BG125: =LN(#REF!) ->  | BH125: 1.098612289 | BI125: 10.04324949 | BJ125: 2.48490665 | BK125: 2.48490665 | BL125: 8.853665428 | BM125: 0 | BN125: 2.197224577
A126: HO4 | B126: 1.0805973 | C126: 100 | D126: 5.61 | E126: 51 | F126: 35 | G126: 0.077845 | H126: 0.454341 | I126: 2.1 | J126: 5.34 | K126: 2.945312 | L126: 28.9 | M126: 4364 | N126: 3.970095 | O126: 23.171391 | P126: 3 | Q126: 2 | R126: 23000 | S126: 12 | T126: 12 | U126: 2 | V126: 7000 | W126: 6 | X126: 1 | Y126: 1 | Z126: 3 | AA126: 1 | AB126: 1 | AC126: 0 | AD126: 2 | AE126: 0 | AF126: 0 | AG126: 4 | AH126: 1 | AI126: 2 | AJ126: 9 | AK126: 1 | AL126: 2 | AM126: 2 | AN126: 3 | AO126: 3 | AP126: 2 | AQ126: 2 | AR126: 2 | AS126: 1 | AT126: 3 | AU126: 1 | AV126: 3.931825633 | AW126: 3.555348061 | AX126: -2.553035609 | AY126: -0.7889072616 | AZ126: 0.7419373447 | BA126: 1.675225653 | BB126: 1.080214754 | BC126: 3.363841595 | BD126: 8.381144347 | BE126: 1.378790024 | BF126: 3.142918371 | BG126: =LN(#REF!) ->  | BH126: 1.098612289 | BI126: 10.04324949 | BJ126: 2.48490665 | BK126: 2.48490665 | BL126: 8.853665428 | BM126: 0 | BN126: 2.197224577
A127: HO5 | B127: 0.749195575 | C127: 100 | D127: 5.61 | E127: 430 | F127: 149 | G127: 0.077845 | H127: 0.454341 | I127: 2.1 | J127: 5.34 | K127: 2.945312 | L127: 28.9 | M127: 4364 | N127: 33.47335 | O127: 195.36663 | P127: 3 | Q127: 2 | R127: 23000 | S127: 12 | T127: 12 | U127: 2 | V127: 7000 | W127: 6 | X127: 1 | Y127: 1 | Z127: 3 | AA127: 1 | AB127: 1 | AC127: 0 | AD127: 2 | AE127: 0 | AF127: 0 | AG127: 4 | AH127: 1 | AI127: 2 | AJ127: 9 | AK127: 1 | AL127: 2 | AM127: 2 | AN127: 3 | AO127: 3 | AP127: 2 | AQ127: 2 | AR127: 2 | AS127: 1 | AT127: 3 | AU127: 1 | AV127: 6.063785209 | AW127: 5.003946306 | AX127: -2.553035609 | AY127: -0.7889072616 | AZ127: 0.7419373447 | BA127: 1.675225653 | BB127: 1.080214754 | BC127: 3.363841595 | BD127: 8.381144347 | BE127: 3.5107496 | BF127: 5.274877947 | BG127: =LN(#REF!) ->  | BH127: 1.098612289 | BI127: 10.04324949 | BJ127: 2.48490665 | BK127: 2.48490665 | BL127: 8.853665428 | BM127: 0 | BN127: 2.197224577
A128: HO6 | B128: 1.015840603 | C128: 100 | D128: 5.61 | E128: 356 | F128: 72 | G128: 0.077845 | H128: 0.454341 | I128: 2.1 | J128: 5.34 | K128: 2.945312 | L128: 28.9 | M128: 4364 | N128: 27.71282 | O128: 161.745396 | P128: 3 | Q128: 2 | R128: 23000 | S128: 12 | T128: 12 | U128: 2 | V128: 7000 | W128: 6 | X128: 1 | Y128: 1 | Z128: 3 | AA128: 1 | AB128: 1 | AC128: 0 | AD128: 2 | AE128: 0 | AF128: 0 | AG128: 4 | AH128: 1 | AI128: 2 | AJ128: 9 | AK128: 1 | AL128: 2 | AM128: 2 | AN128: 3 | AO128: 3 | AP128: 2 | AQ128: 2 | AR128: 2 | AS128: 1 | AT128: 3 | AU128: 1 | AV128: 5.874930731 | AW128: 4.276666119 | AX128: -2.553035609 | AY128: -0.7889072616 | AZ128: 0.7419373447 | BA128: 1.675225653 | BB128: 1.080214754 | BC128: 3.363841595 | BD128: 8.381144347 | BE128: 3.321895122 | BF128: 5.086023469 | BG128: =LN(#REF!) ->  | BH128: 1.098612289 | BI128: 10.04324949 | BJ128: 2.48490665 | BK128: 2.48490665 | BL128: 8.853665428 | BM128: 0 | BN128: 2.197224577
A129: HO7 | B129: 0.713566772 | C129: 100 | D129: 5.61 | E129: 350 | F129: 0 | G129: 0.077845 | H129: 0.454341 | I129: 2.1 | J129: 5.34 | K129: 2.945312 | L129: 28.9 | M129: 4364 | N129: 27.24575 | O129: 159.01935 | P129: 3 | Q129: 2 | R129: 23000 | S129: 12 | T129: 12 | U129: 2 | V129: 7000 | W129: 6 | X129: 1 | Y129: 1 | Z129: 3 | AA129: 1 | AB129: 1 | AC129: 0 | AD129: 2 | AE129: 0 | AF129: 0 | AG129: 4 | AH129: 1 | AI129: 2 | AJ129: 9 | AK129: 1 | AL129: 2 | AM129: 2 | AN129: 3 | AO129: 3 | AP129: 2 | AQ129: 2 | AR129: 2 | AS129: 1 | AT129: 3 | AU129: 1 | AV129: 5.857933154 | AW129: 1 | AX129: -2.553035609 | AY129: -0.7889072616 | AZ129: 0.7419373447 | BA129: 1.675225653 | BB129: 1.080214754 | BC129: 3.363841595 | BD129: 8.381144347 | BE129: 3.304897546 | BF129: 5.069025893 | BG129: =LN(#REF!) ->  | BH129: 1.098612289 | BI129: 10.04324949 | BJ129: 2.48490665 | BK129: 2.48490665 | BL129: 8.853665428 | BM129: 0 | BN129: 2.197224577
A130: HO8 | B130: 0.970563409 | C130: 100 | D130: 5.61 | E130: 197 | F130: 4 | G130: 0.077845 | H130: 0.454341 | I130: 2.1 | J130: 5.34 | K130: 2.945312 | L130: 28.9 | M130: 4364 | N130: 15.335465 | O130: 89.505177 | P130: 3 | Q130: 2 | R130: 23000 | S130: 12 | T130: 12 | U130: 2 | V130: 7000 | W130: 6 | X130: 1 | Y130: 1 | Z130: 3 | AA130: 1 | AB130: 1 | AC130: 0 | AD130: 2 | AE130: 0 | AF130: 0 | AG130: 4 | AH130: 1 | AI130: 2 | AJ130: 9 | AK130: 1 | AL130: 2 | AM130: 2 | AN130: 3 | AO130: 3 | AP130: 2 | AQ130: 2 | AR130: 2 | AS130: 1 | AT130: 3 | AU130: 1 | AV130: 5.283203729 | AW130: =LN(F130) -> 1.386294361 | AX130: =LN(G130) -> -2.553035609 | AY130: =LN(H130) -> -0.7889072616 | AZ130: =LN(I130) -> 0.7419373447 | BA130: =LN(J130) -> 1.675225653 | BB130: =LN(K130) -> 1.080214754 | BC130: =LN(L130) -> 3.363841595 | BD130: =LN(M130) -> 8.381144347 | BE130: 2.73016812 | BF130: 4.494296467 | BG130: =LN(#REF!) ->  | BH130: =LN(P130) -> 1.098612289 | BI130: 10.04324949 | BJ130: 2.48490665 | BK130: 2.48490665 | BL130: 8.853665428 | BM130: 0 | BN130: 2.197224577
A131: HO9 | B131: 0.787804114 | C131: 100 | D131: 5.61 | E131: 299 | F131: 18 | G131: 0.077845 | H131: 0.454341 | I131: 2.1 | J131: 5.34 | K131: 2.945312 | L131: 28.9 | M131: 4364 | N131: 23.275655 | O131: 135.847959 | P131: 3 | Q131: 2 | R131: 23000 | S131: 12 | T131: 12 | U131: 2 | V131: 7000 | W131: 6 | X131: 1 | Y131: 1 | Z131: 3 | AA131: 1 | AB131: 1 | AC131: 0 | AD131: 2 | AE131: 0 | AF131: 0 | AG131: 4 | AH131: 1 | AI131: 2 | AJ131: 9 | AK131: 1 | AL131: 2 | AM131: 2 | AN131: 3 | AO131: 3 | AP131: 2 | AQ131: 2 | AR131: 2 | AS131: 1 | AT131: 3 | AU131: 1 | AV131: 5.700443573 | AW131: 2.890371758 | AX131: -2.553035609 | AY131: -0.7889072616 | AZ131: 0.7419373447 | BA131: 1.675225653 | BB131: 1.080214754 | BC131: 3.363841595 | BD131: 8.381144347 | BE131: 3.147407965 | BF131: 4.911536312 | BG131: =LN(#REF!) ->  | BH131: 1.098612289 | BI131: =LN(R131) -> 10.04324949 | BJ131: =LN(S131) -> 2.48490665 | BK131: =LN(T131) -> 2.48490665 | BL131: =LN(V131) -> 8.853665428 | BM131: 0 | BN131: 2.197224577
A132: HO10 | B132: 0.75236496 | C132: 100 | D132: 5.61 | E132: 401 | F132: 127 | G132: 0.077845 | H132: 0.454341 | I132: 2.1 | J132: 5.34 | K132: 2.945312 | L132: 28.9 | M132: 4364 | N132: 31.215845 | O132: 182.190741 | P132: 3 | Q132: 2 | R132: 23000 | S132: 12 | T132: 12 | U132: 2 | V132: 7000 | W132: 6 | X132: 1 | Y132: 1 | Z132: 3 | AA132: 1 | AB132: 1 | AC132: 0 | AD132: 2 | AE132: 0 | AF132: 0 | AG132: 4 | AH132: 1 | AI132: 2 | AJ132: 9 | AK132: 1 | AL132: 2 | AM132: 2 | AN132: 3 | AO132: 3 | AP132: 2 | AQ132: 2 | AR132: 2 | AS132: 1 | AT132: 3 | AU132: 1 | AV132: 5.993961427 | AW132: 4.844187086 | AX132: -2.553035609 | AY132: -0.7889072616 | AZ132: 0.7419373447 | BA132: 1.675225653 | BB132: 1.080214754 | BC132: 3.363841595 | BD132: 8.381144347 | BE132: 3.440925818 | BF132: 5.205054166 | BG132: =LN(#REF!) ->  | BH132: 1.098612289 | BI132: 10.04324949 | BJ132: 2.48490665 | BK132: 2.48490665 | BL132: 8.853665428 | BM132: =LN(AH132) -> 0 | BN132: =LN(AJ132) -> 2.197224577
A133: HO11 | B133: 0.271619056 | C133: 100 | D133: 5.61 | E133: 423 | F133: 142 | G133: 0.077845 | H133: 0.454341 | I133: 2.1 | J133: 5.34 | K133: 2.945312 | L133: 28.9 | M133: 4364 | N133: 32.928435 | O133: 192.186243 | P133: 3 | Q133: 2 | R133: 23000 | S133: 12 | T133: 12 | U133: 2 | V133: 7000 | W133: 6 | X133: 1 | Y133: 1 | Z133: 3 | AA133: 1 | AB133: 1 | AC133: 0 | AD133: 2 | AE133: 0 | AF133: 0 | AG133: 4 | AH133: 1 | AI133: 2 | AJ133: 9 | AK133: 1 | AL133: 2 | AM133: 2 | AN133: 3 | AO133: 3 | AP133: 2 | AQ133: 2 | AR133: 2 | AS133: 1 | AT133: 3 | AU133: 1 | AV133: 6.047372179 | AW133: 4.955827058 | AX133: -2.553035609 | AY133: -0.7889072616 | AZ133: 0.7419373447 | BA133: 1.675225653 | BB133: 1.080214754 | BC133: 3.363841595 | BD133: 8.381144347 | BE133: 3.49433657 | BF133: 5.258464917 | BG133: =LN(#REF!) ->  | BH133: 1.098612289 | BI133: 10.04324949 | BJ133: 2.48490665 | BK133: 2.48490665 | BL133: 8.853665428 | BM133: 0 | BN133: 2.197224577
A134: HO12 | B134: 0.821734834 | C134: 100 | D134: 5.61 | E134: 199 | F134: 65 | G134: 0.077845 | H134: 0.454341 | I134: 2.1 | J134: 5.34 | K134: 2.945312 | L134: 28.9 | M134: 4364 | N134: 15.491155 | O134: 90.413859 | P134: 3 | Q134: 2 | R134: 23000 | S134: 12 | T134: 12 | U134: 2 | V134: 7000 | W134: 6 | X134: 1 | Y134: 1 | Z134: 3 | AA134: 1 | AB134: 1 | AC134: 0 | AD134: 2 | AE134: 0 | AF134: 0 | AG134: 4 | AH134: 1 | AI134: 2 | AJ134: 9 | AK134: 1 | AL134: 2 | AM134: 2 | AN134: 3 | AO134: 3 | AP134: 2 | AQ134: 2 | AR134: 2 | AS134: 1 | AT134: 3 | AU134: 1 | AV134: 5.293304825 | AW134: 4.17438727 | AX134: -2.553035609 | AY134: -0.7889072616 | AZ134: 0.7419373447 | BA134: 1.675225653 | BB134: 1.080214754 | BC134: 3.363841595 | BD134: 8.381144347 | BE134: 2.740269216 | BF134: 4.504397563 | BG134: =LN(#REF!) ->  | BH134: 1.098612289 | BI134: 10.04324949 | BJ134: 2.48490665 | BK134: 2.48490665 | BL134: 8.853665428 | BM134: 0 | BN134: 2.197224577
A135: HO13 | B135: 1.079259748 | C135: 100 | D135: 5.61 | E135: 14 | F135: 80 | G135: 0.077845 | H135: 0.454341 | I135: 2.1 | J135: 5.34 | K135: 2.945312 | L135: 28.9 | M135: 4364 | N135: 1.08983 | O135: 6.360774 | P135: 3 | Q135: 2 | R135: 23000 | S135: 12 | T135: 12 | U135: 2 | V135: 7000 | W135: 6 | X135: 1 | Y135: 1 | Z135: 3 | AA135: 1 | AB135: 1 | AC135: 0 | AD135: 2 | AE135: 0 | AF135: 0 | AG135: 4 | AH135: 1 | AI135: 2 | AJ135: 9 | AK135: 1 | AL135: 2 | AM135: 2 | AN135: 3 | AO135: 3 | AP135: 2 | AQ135: 2 | AR135: 2 | AS135: 1 | AT135: 3 | AU135: 1 | AV135: 2.63905733 | AW135: 4.382026635 | AX135: -2.553035609 | AY135: -0.7889072616 | AZ135: 0.7419373447 | BA135: 1.675225653 | BB135: 1.080214754 | BC135: 3.363841595 | BD135: 8.381144347 | BE135: 0.08602172077 | BF135: 1.850150068 | BG135: =LN(#REF!) ->  | BH135: 1.098612289 | BI135: 10.04324949 | BJ135: 2.48490665 | BK135: 2.48490665 | BL135: 8.853665428 | BM135: 0 | BN135: 2.197224577
A136: HO14 | B136: 1.484476988 | C136: 100 | D136: 5.61 | E136: 79 | F136: 6 | G136: 0.077845 | H136: 0.454341 | I136: 2.1 | J136: 5.34 | K136: 2.945312 | L136: 28.9 | M136: 4364 | N136: 6.149755 | O136: 35.892939 | P136: 3 | Q136: 2 | R136: 23000 | S136: 12 | T136: 12 | U136: 2 | V136: 7000 | W136: 6 | X136: 1 | Y136: 1 | Z136: 3 | AA136: 1 | AB136: 1 | AC136: 0 | AD136: 2 | AE136: 0 | AF136: 0 | AG136: 4 | AH136: 1 | AI136: 2 | AJ136: 9 | AK136: 1 | AL136: 2 | AM136: 2 | AN136: 3 | AO136: 3 | AP136: 2 | AQ136: 2 | AR136: 2 | AS136: 1 | AT136: 3 | AU136: 1 | AV136: 4.369447852 | AW136: 1.791759469 | AX136: -2.553035609 | AY136: -0.7889072616 | AZ136: 0.7419373447 | BA136: 1.675225653 | BB136: 1.080214754 | BC136: 3.363841595 | BD136: 8.381144347 | BE136: 1.816412244 | BF136: 3.580540591 | BG136: =LN(#REF!) ->  | BH136: 1.098612289 | BI136: 10.04324949 | BJ136: 2.48490665 | BK136: 2.48490665 | BL136: 8.853665428 | BM136: 0 | BN136: 2.197224577
A137: HO15 | B137: 1.463187348 | C137: 100 | D137: 5.61 | E137: 970 | F137: 111 | G137: 0.077845 | H137: 0.454341 | I137: 2.1 | J137: 5.34 | K137: 2.945312 | L137: 28.9 | M137: 4364 | N137: 75.50965 | O137: 440.71077 | P137: 3 | Q137: 2 | R137: 23000 | S137: 12 | T137: 12 | U137: 2 | V137: 7000 | W137: 6 | X137: 1 | Y137: 1 | Z137: 3 | AA137: 1 | AB137: 1 | AC137: 0 | AD137: 2 | AE137: 0 | AF137: 0 | AG137: 4 | AH137: 1 | AI137: 2 | AJ137: 9 | AK137: 1 | AL137: 2 | AM137: 2 | AN137: 3 | AO137: 3 | AP137: 2 | AQ137: 2 | AR137: 2 | AS137: 1 | AT137: 3 | AU137: 1 | AV137: 6.877296071 | AW137: 4.709530201 | AX137: -2.553035609 | AY137: -0.7889072616 | AZ137: 0.7419373447 | BA137: 1.675225653 | BB137: 1.080214754 | BC137: 3.363841595 | BD137: 8.381144347 | BE137: 4.324260463 | BF137: 6.08838881 | BG137: =LN(#REF!) ->  | BH137: 1.098612289 | BI137: 10.04324949 | BJ137: 2.48490665 | BK137: 2.48490665 | BL137: 8.853665428 | BM137: 0 | BN137: 2.197224577
A138: HO16 | B138: 2.14698424 | C138: 100 | D138: 5.61 | E138: 387 | F138: 2 | G138: 0.077845 | H138: 0.454341 | I138: 2.1 | J138: 5.34 | K138: 2.945312 | L138: 28.9 | M138: 4364 | N138: 30.126015 | O138: 175.829967 | P138: 3 | Q138: 2 | R138: 23000 | S138: 12 | T138: 12 | U138: 2 | V138: 7000 | W138: 6 | X138: 1 | Y138: 1 | Z138: 3 | AA138: 1 | AB138: 1 | AC138: 0 | AD138: 2 | AE138: 0 | AF138: 0 | AG138: 4 | AH138: 1 | AI138: 2 | AJ138: 9 | AK138: 1 | AL138: 2 | AM138: 2 | AN138: 3 | AO138: 3 | AP138: 2 | AQ138: 2 | AR138: 2 | AS138: 1 | AT138: 3 | AU138: 1 | AV138: 5.958424693 | AW138: 0.6931471806 | AX138: -2.553035609 | AY138: -0.7889072616 | AZ138: 0.7419373447 | BA138: 1.675225653 | BB138: 1.080214754 | BC138: 3.363841595 | BD138: 8.381144347 | BE138: 3.405389084 | BF138: 5.169517431 | BG138: =LN(#REF!) ->  | BH138: 1.098612289 | BI138: 10.04324949 | BJ138: 2.48490665 | BK138: 2.48490665 | BL138: 8.853665428 | BM138: 0 | BN138: 2.197224577
A139: HO17 | B139: 1.816059608 | C139: 100 | D139: 5.61 | E139: 399 | F139: 83 | G139: 0.077845 | H139: 0.454341 | I139: 2.1 | J139: 5.34 | K139: 2.945312 | L139: 28.9 | M139: 4364 | N139: 31.060155 | O139: 181.282059 | P139: 3 | Q139: 2 | R139: 23000 | S139: 12 | T139: 12 | U139: 2 | V139: 7000 | W139: 6 | X139: 1 | Y139: 1 | Z139: 3 | AA139: 1 | AB139: 1 | AC139: 0 | AD139: 2 | AE139: 0 | AF139: 0 | AG139: 4 | AH139: 1 | AI139: 2 | AJ139: 9 | AK139: 1 | AL139: 2 | AM139: 2 | AN139: 3 | AO139: 3 | AP139: 2 | AQ139: 2 | AR139: 2 | AS139: 1 | AT139: 3 | AU139: 1 | AV139: 5.988961417 | AW139: 4.418840608 | AX139: -2.553035609 | AY139: -0.7889072616 | AZ139: 0.7419373447 | BA139: 1.675225653 | BB139: 1.080214754 | BC139: 3.363841595 | BD139: 8.381144347 | BE139: 3.435925808 | BF139: 5.200054155 | BG139: =LN(#REF!) ->  | BH139: 1.098612289 | BI139: 10.04324949 | BJ139: 2.48490665 | BK139: 2.48490665 | BL139: 8.853665428 | BM139: 0 | BN139: 2.197224577
A140: HO18 | B140: 1.018692881 | C140: 100 | D140: 5.61 | E140: 118 | F140: 13 | G140: 0.077845 | H140: 0.454341 | I140: 2.1 | J140: 5.34 | K140: 2.945312 | L140: 28.9 | M140: 4364 | N140: 9.18571 | O140: 53.612238 | P140: 3 | Q140: 2 | R140: 23000 | S140: 12 | T140: 12 | U140: 2 | V140: 7000 | W140: 6 | X140: 1 | Y140: 1 | Z140: 3 | AA140: 1 | AB140: 1 | AC140: 0 | AD140: 2 | AE140: 0 | AF140: 0 | AG140: 4 | AH140: 1 | AI140: 2 | AJ140: 9 | AK140: 1 | AL140: 2 | AM140: 2 | AN140: 3 | AO140: 3 | AP140: 2 | AQ140: 2 | AR140: 2 | AS140: 1 | AT140: 3 | AU140: 1 | AV140: 4.770684624 | AW140: 2.564949357 | AX140: -2.553035609 | AY140: -0.7889072616 | AZ140: 0.7419373447 | BA140: 1.675225653 | BB140: 1.080214754 | BC140: 3.363841595 | BD140: 8.381144347 | BE140: 2.217649016 | BF140: 3.981777363 | BG140: =LN(#REF!) ->  | BH140: 1.098612289 | BI140: 10.04324949 | BJ140: 2.48490665 | BK140: 2.48490665 | BL140: 8.853665428 | BM140: 0 | BN140: 2.197224577
A141: HO19 | B141: 1.423885074 | C141: 100 | D141: 5.61 | E141: 0 | F141: 0 | G141: 0.077845 | H141: 0.454341 | I141: 2.1 | J141: 5.34 | K141: 2.945312 | L141: 28.9 | M141: 4364 | N141: 0 | O141: 0 | P141: 3 | Q141: 2 | R141: 23000 | S141: 12 | T141: 12 | U141: 2 | V141: 7000 | W141: 6 | X141: 1 | Y141: 1 | Z141: 3 | AA141: 1 | AB141: 1 | AC141: 0 | AD141: 2 | AE141: 0 | AF141: 0 | AG141: 4 | AH141: 1 | AI141: 2 | AJ141: 9 | AK141: 1 | AL141: 2 | AM141: 2 | AN141: 3 | AO141: 3 | AP141: 2 | AQ141: 2 | AR141: 2 | AS141: 1 | AT141: 3 | AU141: 1 | AV141: 1 | AW141: 1 | AX141: -2.553035609 | AY141: -0.7889072616 | AZ141: 0.7419373447 | BA141: 1.675225653 | BB141: 1.080214754 | BC141: 3.363841595 | BD141: 8.381144347 | BE141: 0 | BF141: 0 | BG141: =LN(#REF!) ->  | BH141: 1.098612289 | BI141: 10.04324949 | BJ141: 2.48490665 | BK141: 2.48490665 | BL141: 8.853665428 | BM141: 0 | BN141: 2.197224577
A142: HO20 | B142: 1.368512653 | C142: 100 | D142: 5.61 | E142: 18 | F142: 16 | G142: 0.077845 | H142: 0.454341 | I142: 2.1 | J142: 5.34 | K142: 2.945312 | L142: 28.9 | M142: 4364 | N142: 1.40121 | O142: 8.178138 | P142: 3 | Q142: 2 | R142: 23000 | S142: 12 | T142: 12 | U142: 2 | V142: 7000 | W142: 6 | X142: 1 | Y142: 1 | Z142: 3 | AA142: 1 | AB142: 1 | AC142: 0 | AD142: 2 | AE142: 0 | AF142: 0 | AG142: 4 | AH142: 1 | AI142: 2 | AJ142: 9 | AK142: 1 | AL142: 2 | AM142: 2 | AN142: 3 | AO142: 3 | AP142: 2 | AQ142: 2 | AR142: 2 | AS142: 1 | AT142: 3 | AU142: 1 | AV142: =LN(E142) -> 2.890371758 | AW142: =LN(F142) -> 2.772588722 | AX142: -2.553035609 | AY142: -0.7889072616 | AZ142: 0.7419373447 | BA142: 1.675225653 | BB142: 1.080214754 | BC142: 3.363841595 | BD142: 8.381144347 | BE142: =LN(N142) -> 0.3373361491 | BF142: =LN(O142) -> 2.101464496 | BG142: =LN(#REF!) ->  | BH142: 1.098612289 | BI142: 10.04324949 | BJ142: 2.48490665 | BK142: 2.48490665 | BL142: 8.853665428 | BM142: 0 | BN142: 2.197224577
A143: RAM1 | B143: 1.896842051 | C143: 19.23 | D143: 3.96 | E143: 8 | F143: 4 | G143: 1.91211 | H143: 2.345 | I143: 0.6 | J143: 5.8 | K143: 0.291221 | L143: 27.7 | M143: 1362 | N143: 15.29688 | O143: 18.76 | P143: 3 | Q143: 2 | R143: 500 | S143: 12 | T143: 12.7 | U143: 2 | V143: 1300 | W143: 1 | X143: 1 | Y143: 2 | Z143: 3 | AA143: 1 | AB143: 2 | AC143: 0 | AD143: 2 | AE143: 0 | AF143: 2 | AG143: 3 | AH143: 1 | AI143: 1 | AJ143: 2 | AK143: 2 | AL143: 1 | AM143: 2 | AN143: 3 | AO143: 1 | AP143: 1 | AQ143: 2 | AR143: 2 | AS143: 1 | AT143: 1 | AU143: 2 | AV143: 2.079441542 | AW143: 1.386294361 | AX143: 0.6482073444 | AY143: 0.8522854019 | AZ143: -0.5108256238 | BA143: 1.757857918 | BB143: -1.23367285 | BC143: 3.321432413 | BD143: 7.216709487 | BE143: 2.727648886 | BF143: 2.931726944 | BG143: =LN(#REF!) ->  | BH143: 1.098612289 | BI143: 6.214608098 | BJ143: 2.48490665 | BK143: 2.541601993 | BL143: 7.170119543 | BM143: 0 | BN143: 0.6931471806
A144: RAM2 | B144: 2.03148391 | C144: 19.23 | D144: 3.96 | E144: 32 | F144: 188 | G144: 1.91211 | H144: 2.345 | I144: 0.6 | J144: 5.8 | K144: 0.291221 | L144: 27.7 | M144: 1362 | N144: 61.18752 | O144: 75.04 | P144: 3 | Q144: 2 | R144: 500 | S144: 12 | T144: 12.7 | U144: 2 | V144: 1300 | W144: 1 | X144: 1 | Y144: 2 | Z144: 3 | AA144: 1 | AB144: 2 | AC144: 0 | AD144: 2 | AE144: 0 | AF144: 2 | AG144: 3 | AH144: 1 | AI144: 1 | AJ144: 2 | AK144: 2 | AL144: 1 | AM144: 2 | AN144: 3 | AO144: 1 | AP144: 1 | AQ144: 2 | AR144: 2 | AS144: 1 | AT144: 1 | AU144: 2 | AV144: 3.465735903 | AW144: 5.236441963 | AX144: 0.6482073444 | AY144: 0.8522854019 | AZ144: -0.5108256238 | BA144: 1.757857918 | BB144: -1.23367285 | BC144: 3.321432413 | BD144: 7.216709487 | BE144: 4.113943247 | BF144: 4.318021305 | BG144: =LN(#REF!) ->  | BH144: 1.098612289 | BI144: 6.214608098 | BJ144: 2.48490665 | BK144: 2.541601993 | BL144: 7.170119543 | BM144: 0 | BN144: 0.6931471806
A145: RAM3 | B145: 2.149458185 | C145: 19.23 | D145: 3.96 | E145: 48 | F145: 74 | G145: 1.91211 | H145: 2.345 | I145: 0.6 | J145: 5.8 | K145: 0.291221 | L145: 27.7 | M145: 1362 | N145: 91.78128 | O145: 112.56 | P145: 3 | Q145: 2 | R145: 500 | S145: 12 | T145: 12.7 | U145: 2 | V145: 1300 | W145: 1 | X145: 1 | Y145: 2 | Z145: 3 | AA145: 1 | AB145: 2 | AC145: 0 | AD145: 2 | AE145: 0 | AF145: 2 | AG145: 3 | AH145: 1 | AI145: 1 | AJ145: 2 | AK145: 2 | AL145: 1 | AM145: 2 | AN145: 3 | AO145: 1 | AP145: 1 | AQ145: 2 | AR145: 2 | AS145: 1 | AT145: 1 | AU145: 2 | AV145: 3.871201011 | AW145: 4.304065093 | AX145: 0.6482073444 | AY145: 0.8522854019 | AZ145: -0.5108256238 | BA145: 1.757857918 | BB145: -1.23367285 | BC145: 3.321432413 | BD145: 7.216709487 | BE145: 4.519408355 | BF145: 4.723486413 | BG145: =LN(#REF!) ->  | BH145: 1.098612289 | BI145: 6.214608098 | BJ145: 2.48490665 | BK145: 2.541601993 | BL145: 7.170119543 | BM145: 0 | BN145: 0.6931471806
A146: RAM4 | B146: 2.436123068 | C146: 19.23 | D146: 3.96 | E146: 44 | F146: 70 | G146: 1.91211 | H146: 2.345 | I146: 0.6 | J146: 5.8 | K146: 0.291221 | L146: 27.7 | M146: 1362 | N146: 84.13284 | O146: 103.18 | P146: 3 | Q146: 2 | R146: 500 | S146: 12 | T146: 12.7 | U146: 2 | V146: 1300 | W146: 1 | X146: 1 | Y146: 2 | Z146: 3 | AA146: 1 | AB146: 2 | AC146: 0 | AD146: 2 | AE146: 0 | AF146: 2 | AG146: 3 | AH146: 1 | AI146: 1 | AJ146: 2 | AK146: 2 | AL146: 1 | AM146: 2 | AN146: 3 | AO146: 1 | AP146: 1 | AQ146: 2 | AR146: 2 | AS146: 1 | AT146: 1 | AU146: 2 | AV146: 3.784189634 | AW146: 4.248495242 | AX146: 0.6482073444 | AY146: 0.8522854019 | AZ146: -0.5108256238 | BA146: 1.757857918 | BB146: -1.23367285 | BC146: 3.321432413 | BD146: 7.216709487 | BE146: 4.432396978 | BF146: 4.636475036 | BG146: =LN(#REF!) ->  | BH146: 1.098612289 | BI146: 6.214608098 | BJ146: 2.48490665 | BK146: 2.541601993 | BL146: 7.170119543 | BM146: 0 | BN146: 0.6931471806
A147: RAM5 | B147: 1.751073265 | C147: 19.23 | D147: 3.96 | E147: 67 | F147: 28 | G147: 1.91211 | H147: 2.345 | I147: 0.6 | J147: 5.8 | K147: 0.291221 | L147: 27.7 | M147: 1362 | N147: 128.11137 | O147: 157.115 | P147: 3 | Q147: 2 | R147: 500 | S147: 12 | T147: 12.7 | U147: 2 | V147: 1300 | W147: 1 | X147: 1 | Y147: 2 | Z147: 3 | AA147: 1 | AB147: 2 | AC147: 0 | AD147: 2 | AE147: 0 | AF147: 2 | AG147: 3 | AH147: 1 | AI147: 1 | AJ147: 2 | AK147: 2 | AL147: 1 | AM147: 2 | AN147: 3 | AO147: 1 | AP147: 1 | AQ147: 2 | AR147: 2 | AS147: 1 | AT147: 1 | AU147: 2 | AV147: 4.204692619 | AW147: 3.33220451 | AX147: 0.6482073444 | AY147: 0.8522854019 | AZ147: -0.5108256238 | BA147: 1.757857918 | BB147: -1.23367285 | BC147: 3.321432413 | BD147: 7.216709487 | BE147: 4.852899964 | BF147: 5.056978021 | BG147: =LN(#REF!) ->  | BH147: 1.098612289 | BI147: 6.214608098 | BJ147: 2.48490665 | BK147: 2.541601993 | BL147: 7.170119543 | BM147: 0 | BN147: 0.6931471806
A148: RAM6 | B148: 1.925911148 | C148: 19.23 | D148: 3.96 | E148: 14 | F148: 36 | G148: 1.91211 | H148: 2.345 | I148: 0.6 | J148: 5.8 | K148: 0.291221 | L148: 27.7 | M148: 1362 | N148: 26.76954 | O148: 32.83 | P148: 3 | Q148: 2 | R148: 500 | S148: 12 | T148: 12.7 | U148: 2 | V148: 1300 | W148: 1 | X148: 1 | Y148: 2 | Z148: 3 | AA148: 1 | AB148: 2 | AC148: 0 | AD148: 2 | AE148: 0 | AF148: 2 | AG148: 3 | AH148: 1 | AI148: 1 | AJ148: 2 | AK148: 2 | AL148: 1 | AM148: 2 | AN148: 3 | AO148: 1 | AP148: 1 | AQ148: 2 | AR148: 2 | AS148: 1 | AT148: 1 | AU148: 2 | AV148: 2.63905733 | AW148: 3.583518938 | AX148: 0.6482073444 | AY148: 0.8522854019 | AZ148: -0.5108256238 | BA148: 1.757857918 | BB148: -1.23367285 | BC148: 3.321432413 | BD148: 7.216709487 | BE148: 3.287264674 | BF148: 3.491342732 | BG148: =LN(#REF!) ->  | BH148: 1.098612289 | BI148: 6.214608098 | BJ148: 2.48490665 | BK148: 2.541601993 | BL148: 7.170119543 | BM148: 0 | BN148: 0.6931471806
A149: RAM7 | B149: 1.167743055 | C149: 19.23 | D149: 3.96 | E149: 44 | F149: 42 | G149: 1.91211 | H149: 2.345 | I149: 0.6 | J149: 5.8 | K149: 0.291221 | L149: 27.7 | M149: 1362 | N149: 84.13284 | O149: 103.18 | P149: 3 | Q149: 2 | R149: 500 | S149: 12 | T149: 12.7 | U149: 2 | V149: 1300 | W149: 1 | X149: 1 | Y149: 2 | Z149: 3 | AA149: 1 | AB149: 2 | AC149: 0 | AD149: 2 | AE149: 0 | AF149: 2 | AG149: 3 | AH149: 1 | AI149: 1 | AJ149: 2 | AK149: 2 | AL149: 1 | AM149: 2 | AN149: 3 | AO149: 1 | AP149: 1 | AQ149: 2 | AR149: 2 | AS149: 1 | AT149: 1 | AU149: 2 | AV149: 3.784189634 | AW149: 3.737669618 | AX149: 0.6482073444 | AY149: 0.8522854019 | AZ149: -0.5108256238 | BA149: 1.757857918 | BB149: -1.23367285 | BC149: 3.321432413 | BD149: 7.216709487 | BE149: 4.432396978 | BF149: 4.636475036 | BG149: =LN(#REF!) ->  | BH149: 1.098612289 | BI149: 6.214608098 | BJ149: 2.48490665 | BK149: 2.541601993 | BL149: 7.170119543 | BM149: 0 | BN149: 0.6931471806
A150: RAM8 | B150: 1.243270899 | C150: 19.23 | D150: 3.96 | E150: 89 | F150: 53 | G150: 1.91211 | H150: 2.345 | I150: 0.6 | J150: 5.8 | K150: 0.291221 | L150: 27.7 | M150: 1362 | N150: 170.17779 | O150: 208.705 | P150: 3 | Q150: 2 | R150: 500 | S150: 12 | T150: 12.7 | U150: 2 | V150: 1300 | W150: 1 | X150: 1 | Y150: 2 | Z150: 3 | AA150: 1 | AB150: 2 | AC150: 0 | AD150: 2 | AE150: 0 | AF150: 2 | AG150: 3 | AH150: 1 | AI150: 1 | AJ150: 2 | AK150: 2 | AL150: 1 | AM150: 2 | AN150: 3 | AO150: 1 | AP150: 1 | AQ150: 2 | AR150: 2 | AS150: 1 | AT150: 1 | AU150: 2 | AV150: 4.48863637 | AW150: 3.970291914 | AX150: 0.6482073444 | AY150: 0.8522854019 | AZ150: -0.5108256238 | BA150: 1.757857918 | BB150: -1.23367285 | BC150: 3.321432413 | BD150: 7.216709487 | BE150: 5.136843714 | BF150: 5.340921772 | BG150: =LN(#REF!) ->  | BH150: 1.098612289 | BI150: 6.214608098 | BJ150: 2.48490665 | BK150: 2.541601993 | BL150: 7.170119543 | BM150: 0 | BN150: 0.6931471806
A151: RAM9 | B151: 1.252724333 | C151: 19.23 | D151: 3.96 | E151: 108 | F151: 33 | G151: 1.91211 | H151: 2.345 | I151: 0.6 | J151: 5.8 | K151: 0.291221 | L151: 27.7 | M151: 1362 | N151: 206.50788 | O151: 253.26 | P151: 3 | Q151: 2 | R151: 500 | S151: 12 | T151: 12.7 | U151: 2 | V151: 1300 | W151: 1 | X151: 1 | Y151: 2 | Z151: 3 | AA151: 1 | AB151: 2 | AC151: 0 | AD151: 2 | AE151: 0 | AF151: 2 | AG151: 3 | AH151: 1 | AI151: 1 | AJ151: 2 | AK151: 2 | AL151: 1 | AM151: 2 | AN151: 3 | AO151: 1 | AP151: 1 | AQ151: 2 | AR151: 2 | AS151: 1 | AT151: 1 | AU151: 2 | AV151: 4.682131227 | AW151: 3.496507561 | AX151: 0.6482073444 | AY151: 0.8522854019 | AZ151: -0.5108256238 | BA151: 1.757857918 | BB151: -1.23367285 | BC151: 3.321432413 | BD151: 7.216709487 | BE151: 5.330338571 | BF151: 5.534416629 | BG151: =LN(#REF!) ->  | BH151: 1.098612289 | BI151: 6.214608098 | BJ151: 2.48490665 | BK151: 2.541601993 | BL151: 7.170119543 | BM151: 0 | BN151: 0.6931471806
A152: RAM10 | B152: 1.990051425 | C152: 19.23 | D152: 3.96 | E152: 6 | F152: 38 | G152: 1.91211 | H152: 2.345 | I152: 0.6 | J152: 5.8 | K152: 0.291221 | L152: 27.7 | M152: 1362 | N152: 11.47266 | O152: 14.07 | P152: 3 | Q152: 2 | R152: 500 | S152: 12 | T152: 12.7 | U152: 2 | V152: 1300 | W152: 1 | X152: 1 | Y152: 2 | Z152: 3 | AA152: 1 | AB152: 2 | AC152: 0 | AD152: 2 | AE152: 0 | AF152: 2 | AG152: 3 | AH152: 1 | AI152: 1 | AJ152: 2 | AK152: 2 | AL152: 1 | AM152: 2 | AN152: 3 | AO152: 1 | AP152: 1 | AQ152: 2 | AR152: 2 | AS152: 1 | AT152: 1 | AU152: 2 | AV152: 1.791759469 | AW152: 3.63758616 | AX152: 0.6482073444 | AY152: 0.8522854019 | AZ152: -0.5108256238 | BA152: 1.757857918 | BB152: -1.23367285 | BC152: 3.321432413 | BD152: 7.216709487 | BE152: 2.439966814 | BF152: 2.644044871 | BG152: =LN(#REF!) ->  | BH152: 1.098612289 | BI152: 6.214608098 | BJ152: 2.48490665 | BK152: 2.541601993 | BL152: 7.170119543 | BM152: 0 | BN152: 0.6931471806
A153: RAM11 | B153: 1.466826553 | C153: 19.23 | D153: 3.96 | E153: 10 | F153: 61 | G153: 1.91211 | H153: 2.345 | I153: 0.6 | J153: 5.8 | K153: 0.291221 | L153: 27.7 | M153: 1362 | N153: 19.1211 | O153: 23.45 | P153: 3 | Q153: 2 | R153: 500 | S153: 12 | T153: 12.7 | U153: 2 | V153: 1300 | W153: 1 | X153: 1 | Y153: 2 | Z153: 3 | AA153: 1 | AB153: 2 | AC153: 0 | AD153: 2 | AE153: 0 | AF153: 2 | AG153: 3 | AH153: 1 | AI153: 1 | AJ153: 2 | AK153: 2 | AL153: 1 | AM153: 2 | AN153: 3 | AO153: 1 | AP153: 1 | AQ153: 2 | AR153: 2 | AS153: 1 | AT153: 1 | AU153: 2 | AV153: 2.302585093 | AW153: 4.110873864 | AX153: 0.6482073444 | AY153: 0.8522854019 | AZ153: -0.5108256238 | BA153: 1.757857918 | BB153: -1.23367285 | BC153: 3.321432413 | BD153: 7.216709487 | BE153: 2.950792437 | BF153: 3.154870495 | BG153: =LN(#REF!) ->  | BH153: 1.098612289 | BI153: 6.214608098 | BJ153: 2.48490665 | BK153: 2.541601993 | BL153: 7.170119543 | BM153: 0 | BN153: 0.6931471806
A154: RAM12 | B154: 0.855339386 | C154: 19.23 | D154: 3.96 | E154: 6 | F154: 32 | G154: 1.91211 | H154: 2.345 | I154: 0.6 | J154: 5.8 | K154: 0.291221 | L154: 27.7 | M154: 1362 | N154: 11.47266 | O154: 14.07 | P154: 3 | Q154: 2 | R154: 500 | S154: 12 | T154: 12.7 | U154: 2 | V154: 1300 | W154: 1 | X154: 1 | Y154: 2 | Z154: 3 | AA154: 1 | AB154: 2 | AC154: 0 | AD154: 2 | AE154: 0 | AF154: 2 | AG154: 3 | AH154: 1 | AI154: 1 | AJ154: 2 | AK154: 2 | AL154: 1 | AM154: 2 | AN154: 3 | AO154: 1 | AP154: 1 | AQ154: 2 | AR154: 2 | AS154: 1 | AT154: 1 | AU154: 2 | AV154: 1.791759469 | AW154: 3.465735903 | AX154: 0.6482073444 | AY154: 0.8522854019 | AZ154: -0.5108256238 | BA154: 1.757857918 | BB154: -1.23367285 | BC154: 3.321432413 | BD154: 7.216709487 | BE154: 2.439966814 | BF154: 2.644044871 | BG154: =LN(#REF!) ->  | BH154: 1.098612289 | BI154: 6.214608098 | BJ154: 2.48490665 | BK154: 2.541601993 | BL154: 7.170119543 | BM154: 0 | BN154: 0.6931471806
A155: RAM13 | B155: 1.541739366 | C155: 19.23 | D155: 3.96 | E155: 12 | F155: 8 | G155: 1.91211 | H155: 2.345 | I155: 0.6 | J155: 5.8 | K155: 0.291221 | L155: 27.7 | M155: 1362 | N155: 22.94532 | O155: 28.14 | P155: 3 | Q155: 2 | R155: 500 | S155: 12 | T155: 12.7 | U155: 2 | V155: 1300 | W155: 1 | X155: 1 | Y155: 2 | Z155: 3 | AA155: 1 | AB155: 2 | AC155: 0 | AD155: 2 | AE155: 0 | AF155: 2 | AG155: 3 | AH155: 1 | AI155: 1 | AJ155: 2 | AK155: 2 | AL155: 1 | AM155: 2 | AN155: 3 | AO155: 1 | AP155: 1 | AQ155: 2 | AR155: 2 | AS155: 1 | AT155: 1 | AU155: 2 | AV155: 2.48490665 | AW155: 2.079441542 | AX155: 0.6482073444 | AY155: 0.8522854019 | AZ155: -0.5108256238 | BA155: 1.757857918 | BB155: -1.23367285 | BC155: 3.321432413 | BD155: 7.216709487 | BE155: 3.133113994 | BF155: 3.337192052 | BG155: =LN(#REF!) ->  | BH155: 1.098612289 | BI155: 6.214608098 | BJ155: 2.48490665 | BK155: 2.541601993 | BL155: 7.170119543 | BM155: 0 | BN155: 0.6931471806
A156: RAM14 | B156: 1.172425584 | C156: 19.23 | D156: 3.96 | E156: 54 | F156: 30 | G156: 1.91211 | H156: 2.345 | I156: 0.6 | J156: 5.8 | K156: 0.291221 | L156: 27.7 | M156: 1362 | N156: 103.25394 | O156: 126.63 | P156: 3 | Q156: 2 | R156: 500 | S156: 12 | T156: 12.7 | U156: 2 | V156: 1300 | W156: 1 | X156: 1 | Y156: 2 | Z156: 3 | AA156: 1 | AB156: 2 | AC156: 0 | AD156: 2 | AE156: 0 | AF156: 2 | AG156: 3 | AH156: 1 | AI156: 1 | AJ156: 2 | AK156: 2 | AL156: 1 | AM156: 2 | AN156: 3 | AO156: 1 | AP156: 1 | AQ156: 2 | AR156: 2 | AS156: 1 | AT156: 1 | AU156: 2 | AV156: 3.988984047 | AW156: 3.401197382 | AX156: 0.6482073444 | AY156: 0.8522854019 | AZ156: -0.5108256238 | BA156: 1.757857918 | BB156: -1.23367285 | BC156: 3.321432413 | BD156: 7.216709487 | BE156: 4.637191391 | BF156: 4.841269448 | BG156: =LN(#REF!) ->  | BH156: 1.098612289 | BI156: 6.214608098 | BJ156: 2.48490665 | BK156: 2.541601993 | BL156: 7.170119543 | BM156: 0 | BN156: 0.6931471806
A157: RAM15 | B157: 1.412025591 | C157: 19.23 | D157: 3.96 | E157: 6 | F157: 32 | G157: 1.91211 | H157: 2.345 | I157: 0.6 | J157: 5.8 | K157: 0.291221 | L157: 27.7 | M157: 1362 | N157: 11.47266 | O157: 14.07 | P157: 3 | Q157: 2 | R157: 500 | S157: 12 | T157: 12.7 | U157: 2 | V157: 1300 | W157: 1 | X157: 1 | Y157: 2 | Z157: 3 | AA157: 1 | AB157: 2 | AC157: 0 | AD157: 2 | AE157: 0 | AF157: 2 | AG157: 3 | AH157: 1 | AI157: 1 | AJ157: 2 | AK157: 2 | AL157: 1 | AM157: 2 | AN157: 3 | AO157: 1 | AP157: 1 | AQ157: 2 | AR157: 2 | AS157: 1 | AT157: 1 | AU157: 2 | AV157: 1.791759469 | AW157: 3.465735903 | AX157: 0.6482073444 | AY157: 0.8522854019 | AZ157: -0.5108256238 | BA157: 1.757857918 | BB157: -1.23367285 | BC157: 3.321432413 | BD157: 7.216709487 | BE157: 2.439966814 | BF157: 2.644044871 | BG157: =LN(#REF!) ->  | BH157: 1.098612289 | BI157: 6.214608098 | BJ157: 2.48490665 | BK157: 2.541601993 | BL157: 7.170119543 | BM157: 0 | BN157: 0.6931471806
A158: RAM16 | B158: 1.331848343 | C158: 19.23 | D158: 3.96 | E158: 0 | F158: 32 | G158: 1.91211 | H158: 2.345 | I158: 0.6 | J158: 5.8 | K158: 0.291221 | L158: 27.7 | M158: 1362 | N158: 0 | O158: 0 | P158: 3 | Q158: 2 | R158: 500 | S158: 12 | T158: 12.7 | U158: 2 | V158: 1300 | W158: 1 | X158: 1 | Y158: 2 | Z158: 3 | AA158: 1 | AB158: 2 | AC158: 0 | AD158: 2 | AE158: 0 | AF158: 2 | AG158: 3 | AH158: 1 | AI158: 1 | AJ158: 2 | AK158: 2 | AL158: 1 | AM158: 2 | AN158: 3 | AO158: 1 | AP158: 1 | AQ158: 2 | AR158: 2 | AS158: 1 | AT158: 1 | AU158: 2 | AV158: 1 | AW158: =LN(F158) -> 3.465735903 | AX158: 0.6482073444 | AY158: 0.8522854019 | AZ158: -0.5108256238 | BA158: 1.757857918 | BB158: -1.23367285 | BC158: 3.321432413 | BD158: 7.216709487 | BE158: 0 | BF158: 0 | BG158: =LN(#REF!) ->  | BH158: 1.098612289 | BI158: 6.214608098 | BJ158: 2.48490665 | BK158: 2.541601993 | BL158: 7.170119543 | BM158: 0 | BN158: 0.6931471806
A159: RAM17 | B159: 1.380922637 | C159: 19.23 | D159: 3.96 | E159: 46 | F159: 7 | G159: 1.91211 | H159: 2.345 | I159: 0.6 | J159: 5.8 | K159: 0.291221 | L159: 27.7 | M159: 1362 | N159: 87.95706 | O159: 107.87 | P159: 3 | Q159: 2 | R159: 500 | S159: 12 | T159: 12.7 | U159: 2 | V159: 1300 | W159: 1 | X159: 1 | Y159: 2 | Z159: 3 | AA159: 1 | AB159: 2 | AC159: 0 | AD159: 2 | AE159: 0 | AF159: 2 | AG159: 3 | AH159: 1 | AI159: 1 | AJ159: 2 | AK159: 2 | AL159: 1 | AM159: 2 | AN159: 3 | AO159: 1 | AP159: 1 | AQ159: 2 | AR159: 2 | AS159: 1 | AT159: 1 | AU159: 2 | AV159: =LN(E159) -> 3.828641396 | AW159: 1.945910149 | AX159: 0.6482073444 | AY159: 0.8522854019 | AZ159: -0.5108256238 | BA159: 1.757857918 | BB159: -1.23367285 | BC159: 3.321432413 | BD159: 7.216709487 | BE159: =LN(N159) -> 4.476848741 | BF159: =LN(O159) -> 4.680926798 | BG159: =LN(#REF!) ->  | BH159: 1.098612289 | BI159: 6.214608098 | BJ159: 2.48490665 | BK159: 2.541601993 | BL159: 7.170119543 | BM159: 0 | BN159: 0.6931471806
A160: RAM18 | B160: 1.296796913 | C160: 19.23 | D160: 3.96 | E160: 4 | F160: 8 | G160: 1.91211 | H160: 2.345 | I160: 0.6 | J160: 5.8 | K160: 0.291221 | L160: 27.7 | M160: 1362 | N160: 7.64844 | O160: 9.38 | P160: 3 | Q160: 2 | R160: 500 | S160: 12 | T160: 12.7 | U160: 2 | V160: 1300 | W160: 1 | X160: 1 | Y160: 2 | Z160: 3 | AA160: 1 | AB160: 2 | AC160: 0 | AD160: 2 | AE160: 0 | AF160: 2 | AG160: 3 | AH160: 1 | AI160: 1 | AJ160: 2 | AK160: 2 | AL160: 1 | AM160: 2 | AN160: 3 | AO160: 1 | AP160: 1 | AQ160: 2 | AR160: 2 | AS160: 1 | AT160: 1 | AU160: 2 | AV160: 1.386294361 | AW160: 2.079441542 | AX160: 0.6482073444 | AY160: 0.8522854019 | AZ160: -0.5108256238 | BA160: 1.757857918 | BB160: -1.23367285 | BC160: 3.321432413 | BD160: 7.216709487 | BE160: 2.034501705 | BF160: 2.238579763 | BG160: =LN(#REF!) ->  | BH160: 1.098612289 | BI160: 6.214608098 | BJ160: 2.48490665 | BK160: 2.541601993 | BL160: 7.170119543 | BM160: 0 | BN160: 0.6931471806
A161: RAM19 | B161: 0.912989446 | C161: 19.23 | D161: 3.96 | E161: 407 | F161: 108 | G161: 1.91211 | H161: 2.345 | I161: 0.6 | J161: 5.8 | K161: 0.291221 | L161: 27.7 | M161: 1362 | N161: 778.22877 | O161: 954.415 | P161: 3 | Q161: 2 | R161: 500 | S161: 12 | T161: 12.7 | U161: 2 | V161: 1300 | W161: 1 | X161: 1 | Y161: 2 | Z161: 3 | AA161: 1 | AB161: 2 | AC161: 0 | AD161: 2 | AE161: 0 | AF161: 2 | AG161: 3 | AH161: 1 | AI161: 1 | AJ161: 2 | AK161: 2 | AL161: 1 | AM161: 2 | AN161: 3 | AO161: 1 | AP161: 1 | AQ161: 2 | AR161: 2 | AS161: 1 | AT161: 1 | AU161: 2 | AV161: 6.008813185 | AW161: 4.682131227 | AX161: 0.6482073444 | AY161: 0.8522854019 | AZ161: -0.5108256238 | BA161: 1.757857918 | BB161: -1.23367285 | BC161: 3.321432413 | BD161: 7.216709487 | BE161: 6.65702053 | BF161: 6.861098587 | BG161: =LN(#REF!) ->  | BH161: 1.098612289 | BI161: 6.214608098 | BJ161: 2.48490665 | BK161: 2.541601993 | BL161: 7.170119543 | BM161: 0 | BN161: 0.6931471806
A162: RAM20 | B162: 1.175374169 | C162: 19.23 | D162: 3.96 | E162: 202 | F162: 138 | G162: 1.91211 | H162: 2.345 | I162: 0.6 | J162: 5.8 | K162: 0.291221 | L162: 27.7 | M162: 1362 | N162: 386.24622 | O162: 473.69 | P162: 3 | Q162: 2 | R162: 500 | S162: 12 | T162: 12.7 | U162: 2 | V162: 1300 | W162: 1 | X162: 1 | Y162: 2 | Z162: 3 | AA162: 1 | AB162: 2 | AC162: 0 | AD162: 2 | AE162: 0 | AF162: 2 | AG162: 3 | AH162: 1 | AI162: 1 | AJ162: 2 | AK162: 2 | AL162: 1 | AM162: 2 | AN162: 3 | AO162: 1 | AP162: 1 | AQ162: 2 | AR162: 2 | AS162: 1 | AT162: 1 | AU162: 2 | AV162: 5.308267697 | AW162: 4.927253685 | AX162: 0.6482073444 | AY162: 0.8522854019 | AZ162: -0.5108256238 | BA162: 1.757857918 | BB162: -1.23367285 | BC162: 3.321432413 | BD162: 7.216709487 | BE162: 5.956475042 | BF162: 6.160553099 | BG162: =LN(#REF!) ->  | BH162: 1.098612289 | BI162: 6.214608098 | BJ162: 2.48490665 | BK162: 2.541601993 | BL162: 7.170119543 | BM162: 0 | BN162: 0.6931471806
A163: SMI1 | B163: 0.558509598 | C163: 8.33 | D163: 3.12 | E163: 454 | F163: 758 | G163: 0.13168026 | H163: 9.467 | I163: 0.3 | J163: 8.77 | K163: 2.7416 | L163: 31.7 | M163: 1685 | N163: 59.78283804 | O163: 4298.018 | P163: 2.5 | Q163: 2 | R163: 300 | S163: 4 | T163: 12.7 | U163: 2 | V163: 3000 | W163: 6 | X163: 1 | Y163: 1 | Z163: 1 | AA163: 1 | AB163: 1 | AC163: 0 | AD163: 1 | AE163: 0 | AF163: 1 | AG163: 0 | AH163: 1 | AI163: 0 | AJ163: 1 | AK163: 1 | AL163: 1 | AM163: 2 | AN163: 1 | AO163: 2 | AP163: 2 | AQ163: 2 | AR163: 2 | AS163: 1 | AT163: 1 | AU163: 3 | AV163: 6.118097198 | AW163: 6.630683386 | AX163: -2.027378568 | AY163: 2.247812067 | AZ163: -1.203972804 | BA163: 2.171336806 | BB163: 1.008541692 | BC163: 3.456316681 | BD163: 7.429520843 | BE163: 4.09071863 | BF163: 8.365909265 | BG163: =LN(#REF!) ->  | BH163: 0.9162907319 | BI163: 5.703782475 | BJ163: 1.386294361 | BK163: 2.541601993 | BL163: 8.006367568 | BM163: 0 | BN163: 1
A164: SMI2 | B164: 0.827970149 | C164: 8.33 | D164: 3.12 | E164: 52 | F164: 2 | G164: 0.13168026 | H164: 9.467 | I164: 0.3 | J164: 8.77 | K164: 2.7416 | L164: 31.7 | M164: 1685 | N164: 6.84737352 | O164: 492.284 | P164: 2.5 | Q164: 2 | R164: 300 | S164: 4 | T164: 12.7 | U164: 2 | V164: 3000 | W164: 6 | X164: 1 | Y164: 1 | Z164: 1 | AA164: 1 | AB164: 1 | AC164: 0 | AD164: 1 | AE164: 0 | AF164: 1 | AG164: 0 | AH164: 1 | AI164: 0 | AJ164: 1 | AK164: 1 | AL164: 1 | AM164: 2 | AN164: 1 | AO164: 2 | AP164: 2 | AQ164: 2 | AR164: 2 | AS164: 1 | AT164: 1 | AU164: 3 | AV164: 3.951243719 | AW164: 0.6931471806 | AX164: -2.027378568 | AY164: 2.247812067 | AZ164: -1.203972804 | BA164: 2.171336806 | BB164: 1.008541692 | BC164: 3.456316681 | BD164: 7.429520843 | BE164: 1.923865151 | BF164: 6.199055786 | BG164: =LN(#REF!) ->  | BH164: 0.9162907319 | BI164: 5.703782475 | BJ164: 1.386294361 | BK164: 2.541601993 | BL164: 8.006367568 | BM164: 0 | BN164: 1
A165: SMI3 | B165: 0.736619903 | C165: 8.33 | D165: 3.12 | E165: 65 | F165: 72 | G165: 0.13168026 | H165: 9.467 | I165: 0.3 | J165: 8.77 | K165: 2.7416 | L165: 31.7 | M165: 1685 | N165: 8.5592169 | O165: 615.355 | P165: 2.5 | Q165: 2 | R165: 300 | S165: 4 | T165: 12.7 | U165: 2 | V165: 3000 | W165: 6 | X165: 1 | Y165: 1 | Z165: 1 | AA165: 1 | AB165: 1 | AC165: 0 | AD165: 1 | AE165: 0 | AF165: 1 | AG165: 0 | AH165: 1 | AI165: 0 | AJ165: 1 | AK165: 1 | AL165: 1 | AM165: 2 | AN165: 1 | AO165: 2 | AP165: 2 | AQ165: 2 | AR165: 2 | AS165: 1 | AT165: 1 | AU165: 3 | AV165: 4.17438727 | AW165: 4.276666119 | AX165: -2.027378568 | AY165: 2.247812067 | AZ165: -1.203972804 | BA165: 2.171336806 | BB165: 1.008541692 | BC165: 3.456316681 | BD165: 7.429520843 | BE165: 2.147008702 | BF165: 6.422199337 | BG165: =LN(#REF!) ->  | BH165: 0.9162907319 | BI165: 5.703782475 | BJ165: 1.386294361 | BK165: 2.541601993 | BL165: 8.006367568 | BM165: 0 | BN165: 1
A166: SMI4 | B166: 0.823190199 | C166: 8.33 | D166: 3.12 | E166: 296 | F166: 111 | G166: 0.13168026 | H166: 9.467 | I166: 0.3 | J166: 8.77 | K166: 2.7416 | L166: 31.7 | M166: 1685 | N166: 38.97735696 | O166: 2802.232 | P166: 2.5 | Q166: 2 | R166: 300 | S166: 4 | T166: 12.7 | U166: 2 | V166: 3000 | W166: 6 | X166: 1 | Y166: 1 | Z166: 1 | AA166: 1 | AB166: 1 | AC166: 0 | AD166: 1 | AE166: 0 | AF166: 1 | AG166: 0 | AH166: 1 | AI166: 0 | AJ166: 1 | AK166: 1 | AL166: 1 | AM166: 2 | AN166: 1 | AO166: 2 | AP166: 2 | AQ166: 2 | AR166: 2 | AS166: 1 | AT166: 1 | AU166: 3 | AV166: 5.690359454 | AW166: 4.709530201 | AX166: -2.027378568 | AY166: 2.247812067 | AZ166: -1.203972804 | BA166: 2.171336806 | BB166: 1.008541692 | BC166: 3.456316681 | BD166: 7.429520843 | BE166: 3.662980887 | BF166: 7.938171521 | BG166: =LN(#REF!) ->  | BH166: 0.9162907319 | BI166: 5.703782475 | BJ166: 1.386294361 | BK166: 2.541601993 | BL166: 8.006367568 | BM166: 0 | BN166: 1
A167: SMI5 | B167: 0.893752731 | C167: 8.33 | D167: 3.12 | E167: 558 | F167: 106 | G167: 0.13168026 | H167: 9.467 | I167: 0.3 | J167: 8.77 | K167: 2.7416 | L167: 31.7 | M167: 1685 | N167: 73.47758508 | O167: 5282.586 | P167: 2.5 | Q167: 2 | R167: 300 | S167: 4 | T167: 12.7 | U167: 2 | V167: 3000 | W167: 6 | X167: 1 | Y167: 1 | Z167: 1 | AA167: 1 | AB167: 1 | AC167: 0 | AD167: 1 | AE167: 0 | AF167: 1 | AG167: 0 | AH167: 1 | AI167: 0 | AJ167: 1 | AK167: 1 | AL167: 1 | AM167: 2 | AN167: 1 | AO167: 2 | AP167: 2 | AQ167: 2 | AR167: 2 | AS167: 1 | AT167: 1 | AU167: 3 | AV167: 6.324358962 | AW167: 4.663439094 | AX167: -2.027378568 | AY167: 2.247812067 | AZ167: -1.203972804 | BA167: 2.171336806 | BB167: 1.008541692 | BC167: 3.456316681 | BD167: 7.429520843 | BE167: 4.296980395 | BF167: 8.57217103 | BG167: =LN(#REF!) ->  | BH167: 0.9162907319 | BI167: 5.703782475 | BJ167: 1.386294361 | BK167: 2.541601993 | BL167: 8.006367568 | BM167: 0 | BN167: 1
A168: SMI6 | B168: 0.599444821 | C168: 8.33 | D168: 3.12 | E168: 241 | F168: 54 | G168: 0.13168026 | H168: 9.467 | I168: 0.3 | J168: 8.77 | K168: 2.7416 | L168: 31.7 | M168: 1685 | N168: 31.73494266 | O168: 2281.547 | P168: 2.5 | Q168: 2 | R168: 300 | S168: 4 | T168: 12.7 | U168: 2 | V168: 3000 | W168: 6 | X168: 1 | Y168: 1 | Z168: 1 | AA168: 1 | AB168: 1 | AC168: 0 | AD168: 1 | AE168: 0 | AF168: 1 | AG168: 0 | AH168: 1 | AI168: 0 | AJ168: 1 | AK168: 1 | AL168: 1 | AM168: 2 | AN168: 1 | AO168: 2 | AP168: 2 | AQ168: 2 | AR168: 2 | AS168: 1 | AT168: 1 | AU168: 3 | AV168: 5.484796933 | AW168: 3.988984047 | AX168: -2.027378568 | AY168: 2.247812067 | AZ168: -1.203972804 | BA168: 2.171336806 | BB168: 1.008541692 | BC168: 3.456316681 | BD168: 7.429520843 | BE168: 3.457418366 | BF168: 7.732609001 | BG168: =LN(#REF!) ->  | BH168: 0.9162907319 | BI168: 5.703782475 | BJ168: 1.386294361 | BK168: 2.541601993 | BL168: 8.006367568 | BM168: 0 | BN168: 1
A169: SMI7 | B169: 0.20823453 | C169: 8.33 | D169: 3.12 | E169: 602 | F169: 252 | G169: 0.13168026 | H169: 9.467 | I169: 0.3 | J169: 8.77 | K169: 2.7416 | L169: 31.7 | M169: 1685 | N169: 79.27151652 | O169: 5699.134 | P169: 2.5 | Q169: 2 | R169: 300 | S169: 4 | T169: 12.7 | U169: 2 | V169: 3000 | W169: 6 | X169: 1 | Y169: 1 | Z169: 1 | AA169: 1 | AB169: 1 | AC169: 0 | AD169: 1 | AE169: 0 | AF169: 1 | AG169: 0 | AH169: 1 | AI169: 0 | AJ169: 1 | AK169: 1 | AL169: 1 | AM169: 2 | AN169: 1 | AO169: 2 | AP169: 2 | AQ169: 2 | AR169: 2 | AS169: 1 | AT169: 1 | AU169: 3 | AV169: 6.400257445 | AW169: 5.529429088 | AX169: -2.027378568 | AY169: 2.247812067 | AZ169: -1.203972804 | BA169: 2.171336806 | BB169: 1.008541692 | BC169: 3.456316681 | BD169: 7.429520843 | BE169: 4.372878878 | BF169: 8.648069512 | BG169: =LN(#REF!) ->  | BH169: 0.9162907319 | BI169: 5.703782475 | BJ169: 1.386294361 | BK169: 2.541601993 | BL169: 8.006367568 | BM169: 0 | BN169: 1
A170: SMI8 | B170: 0.935846693 | C170: 8.33 | D170: 3.12 | E170: 416 | F170: 36 | G170: 0.13168026 | H170: 9.467 | I170: 0.3 | J170: 8.77 | K170: 2.7416 | L170: 31.7 | M170: 1685 | N170: 54.77898816 | O170: 3938.272 | P170: 2.5 | Q170: 2 | R170: 300 | S170: 4 | T170: 12.7 | U170: 2 | V170: 3000 | W170: 6 | X170: 1 | Y170: 1 | Z170: 1 | AA170: 1 | AB170: 1 | AC170: 0 | AD170: 1 | AE170: 0 | AF170: 1 | AG170: 0 | AH170: 1 | AI170: 0 | AJ170: 1 | AK170: 1 | AL170: 1 | AM170: 2 | AN170: 1 | AO170: 2 | AP170: 2 | AQ170: 2 | AR170: 2 | AS170: 1 | AT170: 1 | AU170: 3 | AV170: 6.03068526 | AW170: 3.583518938 | AX170: -2.027378568 | AY170: 2.247812067 | AZ170: -1.203972804 | BA170: 2.171336806 | BB170: 1.008541692 | BC170: 3.456316681 | BD170: 7.429520843 | BE170: 4.003306693 | BF170: 8.278497327 | BG170: =LN(#REF!) ->  | BH170: 0.9162907319 | BI170: 5.703782475 | BJ170: 1.386294361 | BK170: 2.541601993 | BL170: 8.006367568 | BM170: 0 | BN170: 1
A171: SMI9 | B171: 0.985956039 | C171: 8.33 | D171: 3.12 | E171: 76 | F171: 28 | G171: 0.13168026 | H171: 9.467 | I171: 0.3 | J171: 8.77 | K171: 2.7416 | L171: 31.7 | M171: 1685 | N171: 10.00769976 | O171: 719.492 | P171: 2.5 | Q171: 2 | R171: 300 | S171: 4 | T171: 12.7 | U171: 2 | V171: 3000 | W171: 6 | X171: 1 | Y171: 1 | Z171: 1 | AA171: 1 | AB171: 1 | AC171: 0 | AD171: 1 | AE171: 0 | AF171: 1 | AG171: 0 | AH171: 1 | AI171: 0 | AJ171: 1 | AK171: 1 | AL171: 1 | AM171: 2 | AN171: 1 | AO171: 2 | AP171: 2 | AQ171: 2 | AR171: 2 | AS171: 1 | AT171: 1 | AU171: 3 | AV171: 4.33073334 | AW171: 3.33220451 | AX171: -2.027378568 | AY171: 2.247812067 | AZ171: -1.203972804 | BA171: 2.171336806 | BB171: 1.008541692 | BC171: 3.456316681 | BD171: 7.429520843 | BE171: 2.303354773 | BF171: 6.578545407 | BG171: =LN(#REF!) ->  | BH171: 0.9162907319 | BI171: 5.703782475 | BJ171: 1.386294361 | BK171: 2.541601993 | BL171: 8.006367568 | BM171: 0 | BN171: 1
A172: SMI10 | B172: 0.536814367 | C172: 8.33 | D172: 3.12 | E172: 198 | F172: 30 | G172: 0.13168026 | H172: 9.467 | I172: 0.3 | J172: 8.77 | K172: 2.7416 | L172: 31.7 | M172: 1685 | N172: 26.07269148 | O172: 1874.466 | P172: 2.5 | Q172: 2 | R172: 300 | S172: 4 | T172: 12.7 | U172: 2 | V172: 3000 | W172: 6 | X172: 1 | Y172: 1 | Z172: 1 | AA172: 1 | AB172: 1 | AC172: 0 | AD172: 1 | AE172: 0 | AF172: 1 | AG172: 0 | AH172: 1 | AI172: 0 | AJ172: 1 | AK172: 1 | AL172: 1 | AM172: 2 | AN172: 1 | AO172: 2 | AP172: 2 | AQ172: 2 | AR172: 2 | AS172: 1 | AT172: 1 | AU172: 3 | AV172: 5.288267031 | AW172: 3.401197382 | AX172: -2.027378568 | AY172: 2.247812067 | AZ172: -1.203972804 | BA172: 2.171336806 | BB172: 1.008541692 | BC172: 3.456316681 | BD172: 7.429520843 | BE172: 3.260888463 | BF172: 7.536079098 | BG172: =LN(#REF!) ->  | BH172: 0.9162907319 | BI172: 5.703782475 | BJ172: 1.386294361 | BK172: 2.541601993 | BL172: 8.006367568 | BM172: 0 | BN172: 1
A173: SMI11 | B173: 0.782472974 | C173: 8.33 | D173: 3.12 | E173: 98 | F173: 778 | G173: 0.13168026 | H173: 9.467 | I173: 0.3 | J173: 8.77 | K173: 2.7416 | L173: 31.7 | M173: 1685 | N173: 12.90466548 | O173: 927.766 | P173: 2.5 | Q173: 2 | R173: 300 | S173: 4 | T173: 12.7 | U173: 2 | V173: 3000 | W173: 6 | X173: 1 | Y173: 1 | Z173: 1 | AA173: 1 | AB173: 1 | AC173: 0 | AD173: 1 | AE173: 0 | AF173: 1 | AG173: 0 | AH173: 1 | AI173: 0 | AJ173: 1 | AK173: 1 | AL173: 1 | AM173: 2 | AN173: 1 | AO173: 2 | AP173: 2 | AQ173: 2 | AR173: 2 | AS173: 1 | AT173: 1 | AU173: 3 | AV173: 4.584967479 | AW173: 6.656726524 | AX173: -2.027378568 | AY173: 2.247812067 | AZ173: -1.203972804 | BA173: 2.171336806 | BB173: 1.008541692 | BC173: 3.456316681 | BD173: 7.429520843 | BE173: 2.557588911 | BF173: 6.832779546 | BG173: =LN(#REF!) ->  | BH173: 0.9162907319 | BI173: 5.703782475 | BJ173: 1.386294361 | BK173: 2.541601993 | BL173: 8.006367568 | BM173: 0 | BN173: 1
A174: SMI12 | B174: 0.944980678 | C174: 8.33 | D174: 3.12 | E174: 96 | F174: 20 | G174: 0.13168026 | H174: 9.467 | I174: 0.3 | J174: 8.77 | K174: 2.7416 | L174: 31.7 | M174: 1685 | N174: 12.64130496 | O174: 908.832 | P174: 2.5 | Q174: 2 | R174: 300 | S174: 4 | T174: 12.7 | U174: 2 | V174: 3000 | W174: 6 | X174: 1 | Y174: 1 | Z174: 1 | AA174: 1 | AB174: 1 | AC174: 0 | AD174: 1 | AE174: 0 | AF174: 1 | AG174: 0 | AH174: 1 | AI174: 0 | AJ174: 1 | AK174: 1 | AL174: 1 | AM174: 2 | AN174: 1 | AO174: 2 | AP174: 2 | AQ174: 2 | AR174: 2 | AS174: 1 | AT174: 1 | AU174: 3 | AV174: 4.564348191 | AW174: 2.995732274 | AX174: -2.027378568 | AY174: 2.247812067 | AZ174: -1.203972804 | BA174: 2.171336806 | BB174: 1.008541692 | BC174: 3.456316681 | BD174: 7.429520843 | BE174: 2.536969624 | BF174: 6.812160259 | BG174: =LN(#REF!) ->  | BH174: 0.9162907319 | BI174: 5.703782475 | BJ174: 1.386294361 | BK174: 2.541601993 | BL174: 8.006367568 | BM174: 0 | BN174: 1
A175: SMI13 | B175: 0.845755318 | C175: 8.33 | D175: 3.12 | E175: 190 | F175: 28 | G175: 0.13168026 | H175: 9.467 | I175: 0.3 | J175: 8.77 | K175: 2.7416 | L175: 31.7 | M175: 1685 | N175: 25.0192494 | O175: 1798.73 | P175: 2.5 | Q175: 2 | R175: 300 | S175: 4 | T175: 12.7 | U175: 2 | V175: 3000 | W175: 6 | X175: 1 | Y175: 1 | Z175: 1 | AA175: 1 | AB175: 1 | AC175: 0 | AD175: 1 | AE175: 0 | AF175: 1 | AG175: 0 | AH175: 1 | AI175: 0 | AJ175: 1 | AK175: 1 | AL175: 1 | AM175: 2 | AN175: 1 | AO175: 2 | AP175: 2 | AQ175: 2 | AR175: 2 | AS175: 1 | AT175: 1 | AU175: 3 | AV175: 5.247024072 | AW175: 3.33220451 | AX175: -2.027378568 | AY175: 2.247812067 | AZ175: -1.203972804 | BA175: 2.171336806 | BB175: 1.008541692 | BC175: 3.456316681 | BD175: 7.429520843 | BE175: 3.219645505 | BF175: 7.494836139 | BG175: =LN(#REF!) ->  | BH175: 0.9162907319 | BI175: 5.703782475 | BJ175: 1.386294361 | BK175: 2.541601993 | BL175: 8.006367568 | BM175: 0 | BN175: 1
A176: SMI14 | B176: 0.795267551 | C176: 8.33 | D176: 3.12 | E176: 421 | F176: 187 | G176: 0.13168026 | H176: 9.467 | I176: 0.3 | J176: 8.77 | K176: 2.7416 | L176: 31.7 | M176: 1685 | N176: =G176*E176 -> 55.43738946 | O176: =H176*E176 -> 3985.607 | P176: 2.5 | Q176: 2 | R176: 300 | S176: 4 | T176: 12.7 | U176: 2 | V176: 3000 | W176: 6 | X176: 1 | Y176: 1 | Z176: 1 | AA176: 1 | AB176: 1 | AC176: 0 | AD176: 1 | AE176: 0 | AF176: 1 | AG176: 0 | AH176: 1 | AI176: 0 | AJ176: 1 | AK176: 1 | AL176: 1 | AM176: 2 | AN176: 1 | AO176: 2 | AP176: 2 | AQ176: 2 | AR176: 2 | AS176: 1 | AT176: 1 | AU176: 3 | AV176: 6.042632834 | AW176: 5.231108617 | AX176: -2.027378568 | AY176: 2.247812067 | AZ176: -1.203972804 | BA176: 2.171336806 | BB176: 1.008541692 | BC176: 3.456316681 | BD176: 7.429520843 | BE176: 4.015254266 | BF176: 8.290444901 | BG176: =LN(#REF!) ->  | BH176: 0.9162907319 | BI176: 5.703782475 | BJ176: 1.386294361 | BK176: 2.541601993 | BL176: 8.006367568 | BM176: 0 | BN176: 1
A177: SMI15 | B177: 0.731447264 | C177: 8.33 | D177: 3.12 | E177: 376 | F177: 364 | G177: 0.13168026 | H177: 9.467 | I177: 0.3 | J177: 8.77 | K177: 2.7416 | L177: 31.7 | M177: 1685 | N177: 49.51177776 | O177: 3559.592 | P177: 2.5 | Q177: 2 | R177: 300 | S177: 4 | T177: 12.7 | U177: 2 | V177: 3000 | W177: 6 | X177: 1 | Y177: 1 | Z177: 1 | AA177: 1 | AB177: 1 | AC177: 0 | AD177: 1 | AE177: 0 | AF177: 1 | AG177: 0 | AH177: 1 | AI177: 0 | AJ177: 1 | AK177: 1 | AL177: 1 | AM177: 2 | AN177: 1 | AO177: 2 | AP177: 2 | AQ177: 2 | AR177: 2 | AS177: 1 | AT177: 1 | AU177: 3 | AV177: 5.929589143 | AW177: 5.897153868 | AX177: -2.027378568 | AY177: 2.247812067 | AZ177: -1.203972804 | BA177: 2.171336806 | BB177: 1.008541692 | BC177: 3.456316681 | BD177: 7.429520843 | BE177: 3.902210576 | BF177: 8.177401211 | BG177: =LN(#REF!) ->  | BH177: 0.9162907319 | BI177: 5.703782475 | BJ177: 1.386294361 | BK177: 2.541601993 | BL177: 8.006367568 | BM177: 0 | BN177: 1
A178: SMI16 | B178: 0.852153082 | C178: 8.33 | D178: 3.12 | E178: 99 | F178: 154 | G178: 0.13168026 | H178: 9.467 | I178: 0.3 | J178: 8.77 | K178: 2.7416 | L178: 31.7 | M178: 1685 | N178: 13.03634574 | O178: 937.233 | P178: 2.5 | Q178: 2 | R178: 300 | S178: 4 | T178: 12.7 | U178: 2 | V178: 3000 | W178: 6 | X178: 1 | Y178: 1 | Z178: 1 | AA178: 1 | AB178: 1 | AC178: 0 | AD178: 1 | AE178: 0 | AF178: 1 | AG178: 0 | AH178: 1 | AI178: 0 | AJ178: 1 | AK178: 1 | AL178: 1 | AM178: 2 | AN178: 1 | AO178: 2 | AP178: 2 | AQ178: 2 | AR178: 2 | AS178: 1 | AT178: 1 | AU178: 3 | AV178: 4.59511985 | AW178: 5.036952602 | AX178: -2.027378568 | AY178: 2.247812067 | AZ178: -1.203972804 | BA178: 2.171336806 | BB178: 1.008541692 | BC178: 3.456316681 | BD178: 7.429520843 | BE178: 2.567741283 | BF178: 6.842931917 | BG178: =LN(#REF!) ->  | BH178: 0.9162907319 | BI178: 5.703782475 | BJ178: 1.386294361 | BK178: 2.541601993 | BL178: 8.006367568 | BM178: 0 | BN178: 1
A179: SMI17 | B179: 0.88642249 | C179: 8.33 | D179: 3.12 | E179: 460 | F179: 154 | G179: 0.13168026 | H179: 9.467 | I179: 0.3 | J179: 8.77 | K179: 2.7416 | L179: 31.7 | M179: 1685 | N179: 60.5729196 | O179: 4354.82 | P179: 2.5 | Q179: 2 | R179: 300 | S179: 4 | T179: 12.7 | U179: 2 | V179: 3000 | W179: 6 | X179: 1 | Y179: 1 | Z179: 1 | AA179: 1 | AB179: 1 | AC179: 0 | AD179: 1 | AE179: 0 | AF179: 1 | AG179: 0 | AH179: 1 | AI179: 0 | AJ179: 1 | AK179: 1 | AL179: 1 | AM179: 2 | AN179: 1 | AO179: 2 | AP179: 2 | AQ179: 2 | AR179: 2 | AS179: 1 | AT179: 1 | AU179: 3 | AV179: 6.131226489 | AW179: 5.036952602 | AX179: -2.027378568 | AY179: 2.247812067 | AZ179: -1.203972804 | BA179: 2.171336806 | BB179: 1.008541692 | BC179: 3.456316681 | BD179: 7.429520843 | BE179: 4.103847922 | BF179: 8.379038557 | BG179: =LN(#REF!) ->  | BH179: 0.9162907319 | BI179: 5.703782475 | BJ179: 1.386294361 | BK179: 2.541601993 | BL179: 8.006367568 | BM179: 0 | BN179: 1
A180: SMI18 | B180: 0.777212178 | C180: 8.33 | D180: 3.12 | E180: 27 | F180: 28 | G180: 0.13168026 | H180: 9.467 | I180: 0.3 | J180: 8.77 | K180: 2.7416 | L180: 31.7 | M180: 1685 | N180: 3.55536702 | O180: 255.609 | P180: 2.5 | Q180: 2 | R180: 300 | S180: 4 | T180: 12.7 | U180: 2 | V180: 3000 | W180: 6 | X180: 1 | Y180: 1 | Z180: 1 | AA180: 1 | AB180: 1 | AC180: 0 | AD180: 1 | AE180: 0 | AF180: 1 | AG180: 0 | AH180: 1 | AI180: 0 | AJ180: 1 | AK180: 1 | AL180: 1 | AM180: 2 | AN180: 1 | AO180: 2 | AP180: 2 | AQ180: 2 | AR180: 2 | AS180: 1 | AT180: 1 | AU180: 3 | AV180: 3.295836866 | AW180: 3.33220451 | AX180: -2.027378568 | AY180: 2.247812067 | AZ180: -1.203972804 | BA180: 2.171336806 | BB180: 1.008541692 | BC180: 3.456316681 | BD180: 7.429520843 | BE180: 1.268458298 | BF180: 5.543648933 | BG180: =LN(#REF!) ->  | BH180: 0.9162907319 | BI180: 5.703782475 | BJ180: 1.386294361 | BK180: 2.541601993 | BL180: 8.006367568 | BM180: 0 | BN180: 1
A181: SMI19 | B181: 1.653239196 | C181: 8.33 | D181: 3.12 | E181: 0 | F181: 20 | G181: 0.13168026 | H181: 9.467 | I181: 0.3 | J181: 8.77 | K181: 2.7416 | L181: 31.7 | M181: 1685 | N181: 0 | O181: 0 | P181: 2.5 | Q181: 2 | R181: 300 | S181: 4 | T181: 12.7 | U181: 2 | V181: 3000 | W181: 6 | X181: 1 | Y181: 1 | Z181: 1 | AA181: 1 | AB181: 1 | AC181: 0 | AD181: 1 | AE181: 0 | AF181: 1 | AG181: 0 | AH181: 1 | AI181: 0 | AJ181: 1 | AK181: 1 | AL181: 1 | AM181: 2 | AN181: 1 | AO181: 2 | AP181: 2 | AQ181: 2 | AR181: 2 | AS181: 1 | AT181: 1 | AU181: 3 | AV181: 1 | AW181: 2.995732274 | AX181: -2.027378568 | AY181: 2.247812067 | AZ181: -1.203972804 | BA181: 2.171336806 | BB181: 1.008541692 | BC181: 3.456316681 | BD181: 7.429520843 | BE181: 0 | BF181: 0 | BG181: =LN(#REF!) ->  | BH181: 0.9162907319 | BI181: 5.703782475 | BJ181: 1.386294361 | BK181: 2.541601993 | BL181: 8.006367568 | BM181: 0 | BN181: 1
A182: SMI20 | B182: 1.971540034 | C182: 8.33 | D182: 3.12 | E182: 234 | F182: 152 | G182: 0.13168026 | H182: 9.467 | I182: 0.3 | J182: 8.77 | K182: 2.7416 | L182: 31.7 | M182: 1685 | N182: 30.81318084 | O182: 2215.278 | P182: 2.5 | Q182: 2 | R182: 300 | S182: 4 | T182: 12.7 | U182: 2 | V182: 3000 | W182: 6 | X182: 1 | Y182: 1 | Z182: 1 | AA182: 1 | AB182: 1 | AC182: 0 | AD182: 1 | AE182: 0 | AF182: 1 | AG182: 0 | AH182: 1 | AI182: 0 | AJ182: 1 | AK182: 1 | AL182: 1 | AM182: 2 | AN182: 1 | AO182: 2 | AP182: 2 | AQ182: 2 | AR182: 2 | AS182: 1 | AT182: 1 | AU182: 3 | AV182: =LN(E182) -> 5.455321115 | AW182: 5.023880521 | AX182: -2.027378568 | AY182: 2.247812067 | AZ182: -1.203972804 | BA182: 2.171336806 | BB182: 1.008541692 | BC182: 3.456316681 | BD182: 7.429520843 | BE182: =LN(N182) -> 3.427942548 | BF182: =LN(O182) -> 7.703133183 | BG182: =LN(#REF!) ->  | BH182: 0.9162907319 | BI182: 5.703782475 | BJ182: 1.386294361 | BK182: 2.541601993 | BL182: 8.006367568 | BM182: 0 | BN182: 1
A183: CB1 | B183: 1.893101766 | C183: 2.5 | D183: 1.92 | E183: 58 | F183: 54 | G183: 2.026431 | H183: 7.579 | I183: 0.7 | J183: 11.96 | K183: 1.83512 | L183: 31.2 | M183: 1105 | N183: 117.532998 | O183: 439.582 | P183: 4 | Q183: 2 | R183: 300 | S183: 2 | T183: 4 | U183: 2 | V183: 1000 | W183: 1 | X183: 2 | Y183: 1 | Z183: 2 | AA183: 2 | AB183: 3 | AC183: 0 | AD183: 2 | AE183: 0 | AF183: 2 | AG183: 3 | AH183: 2 | AI183: 3 | AJ183: 5 | AK183: 2 | AL183: 1 | AM183: 2 | AN183: 1 | AO183: 5 | AP183: 2 | AQ183: 1 | AR183: 1 | AS183: 1 | AT183: 2 | AU183: 3 | AV183: 4.060443011 | AW183: 3.988984047 | AX183: 0.7062761177 | AY183: 2.025381265 | AZ183: -0.3566749439 | BA183: 2.481567749 | BB183: 0.6071098745 | BC183: 3.440418095 | BD183: 7.007600614 | BE183: 4.766719128 | BF183: 6.085824275 | BG183: =LN(#REF!) ->  | BH183: 1.386294361 | BI183: 5.703782475 | BJ183: 0.6931471806 | BK183: 1.386294361 | BL183: 6.907755279 | BM183: 0.6931471806 | BN183: 1.609437912
A184: CB2 | B184: 1.215463124 | C184: 2.5 | D184: 1.92 | E184: 99 | F184: 126 | G184: 2.026431 | H184: 7.579 | I184: 0.7 | J184: 11.96 | K184: 1.83512 | L184: 31.2 | M184: 1105 | N184: 200.616669 | O184: 750.321 | P184: 4 | Q184: 2 | R184: 300 | S184: 2 | T184: 4 | U184: 2 | V184: 1000 | W184: 1 | X184: 2 | Y184: 1 | Z184: 2 | AA184: 2 | AB184: 3 | AC184: 0 | AD184: 2 | AE184: 0 | AF184: 2 | AG184: 3 | AH184: 2 | AI184: 3 | AJ184: 5 | AK184: 2 | AL184: 1 | AM184: 2 | AN184: 1 | AO184: 5 | AP184: 2 | AQ184: 1 | AR184: 1 | AS184: 1 | AT184: 2 | AU184: 3 | AV184: 4.59511985 | AW184: 4.836281907 | AX184: 0.7062761177 | AY184: 2.025381265 | AZ184: -0.3566749439 | BA184: 2.481567749 | BB184: 0.6071098745 | BC184: 3.440418095 | BD184: 7.007600614 | BE184: 5.301395968 | BF184: 6.620501115 | BG184: =LN(#REF!) ->  | BH184: 1.386294361 | BI184: 5.703782475 | BJ184: 0.6931471806 | BK184: 1.386294361 | BL184: 6.907755279 | BM184: 0.6931471806 | BN184: 1.609437912
A185: CB3 | B185: 1.500267328 | C185: 2.5 | D185: 1.92 | E185: 92 | F185: 362 | G185: 2.026431 | H185: 7.579 | I185: 0.7 | J185: 11.96 | K185: 1.83512 | L185: 31.2 | M185: 1105 | N185: 186.431652 | O185: 697.268 | P185: 4 | Q185: 2 | R185: 300 | S185: 2 | T185: 4 | U185: 2 | V185: 1000 | W185: 1 | X185: 2 | Y185: 1 | Z185: 2 | AA185: 2 | AB185: 3 | AC185: 0 | AD185: 2 | AE185: 0 | AF185: 2 | AG185: 3 | AH185: 2 | AI185: 3 | AJ185: 5 | AK185: 2 | AL185: 1 | AM185: 2 | AN185: 1 | AO185: 5 | AP185: 2 | AQ185: 1 | AR185: 1 | AS185: 1 | AT185: 2 | AU185: 3 | AV185: 4.521788577 | AW185: 5.891644212 | AX185: 0.7062761177 | AY185: 2.025381265 | AZ185: -0.3566749439 | BA185: 2.481567749 | BB185: 0.6071098745 | BC185: 3.440418095 | BD185: 7.007600614 | BE185: 5.228064695 | BF185: 6.547169842 | BG185: =LN(#REF!) ->  | BH185: 1.386294361 | BI185: 5.703782475 | BJ185: 0.6931471806 | BK185: 1.386294361 | BL185: 6.907755279 | BM185: 0.6931471806 | BN185: 1.609437912
A186: CB4 | B186: 1.167469209 | C186: 2.5 | D186: 1.92 | E186: 93 | F186: 94 | G186: 2.026431 | H186: 7.579 | I186: 0.7 | J186: 11.96 | K186: 1.83512 | L186: 31.2 | M186: 1105 | N186: 188.458083 | O186: 704.847 | P186: 4 | Q186: 2 | R186: 300 | S186: 2 | T186: 4 | U186: 2 | V186: 1000 | W186: 1 | X186: 2 | Y186: 1 | Z186: 2 | AA186: 2 | AB186: 3 | AC186: 0 | AD186: 2 | AE186: 0 | AF186: 2 | AG186: 3 | AH186: 2 | AI186: 3 | AJ186: 5 | AK186: 2 | AL186: 1 | AM186: 2 | AN186: 1 | AO186: 5 | AP186: 2 | AQ186: 1 | AR186: 1 | AS186: 1 | AT186: 2 | AU186: 3 | AV186: 4.532599493 | AW186: 4.543294782 | AX186: 0.7062761177 | AY186: 2.025381265 | AZ186: -0.3566749439 | BA186: 2.481567749 | BB186: 0.6071098745 | BC186: 3.440418095 | BD186: 7.007600614 | BE186: 5.238875611 | BF186: 6.557980758 | BG186: =LN(#REF!) ->  | BH186: 1.386294361 | BI186: 5.703782475 | BJ186: 0.6931471806 | BK186: 1.386294361 | BL186: 6.907755279 | BM186: 0.6931471806 | BN186: 1.609437912
A187: CB5 | B187: 1.288356886 | C187: 2.5 | D187: 1.92 | E187: 98 | F187: 106 | G187: 2.026431 | H187: 7.579 | I187: 0.7 | J187: 11.96 | K187: 1.83512 | L187: 31.2 | M187: 1105 | N187: 198.590238 | O187: 742.742 | P187: 4 | Q187: 2 | R187: 300 | S187: 2 | T187: 4 | U187: 2 | V187: 1000 | W187: 1 | X187: 2 | Y187: 1 | Z187: 2 | AA187: 2 | AB187: 3 | AC187: 0 | AD187: 2 | AE187: 0 | AF187: 2 | AG187: 3 | AH187: 2 | AI187: 3 | AJ187: 5 | AK187: 2 | AL187: 1 | AM187: 2 | AN187: 1 | AO187: 5 | AP187: 2 | AQ187: 1 | AR187: 1 | AS187: 1 | AT187: 2 | AU187: 3 | AV187: 4.584967479 | AW187: 4.663439094 | AX187: 0.7062761177 | AY187: 2.025381265 | AZ187: -0.3566749439 | BA187: 2.481567749 | BB187: 0.6071098745 | BC187: 3.440418095 | BD187: 7.007600614 | BE187: 5.291243596 | BF187: 6.610348744 | BG187: =LN(#REF!) ->  | BH187: 1.386294361 | BI187: 5.703782475 | BJ187: 0.6931471806 | BK187: 1.386294361 | BL187: 6.907755279 | BM187: 0.6931471806 | BN187: 1.609437912
A188: CB6 | B188: 1.230039561 | C188: 2.5 | D188: 1.92 | E188: 16 | F188: 74 | G188: 2.026431 | H188: 7.579 | I188: 0.7 | J188: 11.96 | K188: 1.83512 | L188: 31.2 | M188: 1105 | N188: 32.422896 | O188: 121.264 | P188: 4 | Q188: 2 | R188: 300 | S188: 2 | T188: 4 | U188: 2 | V188: 1000 | W188: 1 | X188: 2 | Y188: 1 | Z188: 2 | AA188: 2 | AB188: 3 | AC188: 0 | AD188: 2 | AE188: 0 | AF188: 2 | AG188: 3 | AH188: 2 | AI188: 3 | AJ188: 5 | AK188: 2 | AL188: 1 | AM188: 2 | AN188: 1 | AO188: 5 | AP188: 2 | AQ188: 1 | AR188: 1 | AS188: 1 | AT188: 2 | AU188: 3 | AV188: 2.772588722 | AW188: 4.304065093 | AX188: 0.7062761177 | AY188: 2.025381265 | AZ188: -0.3566749439 | BA188: 2.481567749 | BB188: 0.6071098745 | BC188: 3.440418095 | BD188: 7.007600614 | BE188: 3.47886484 | BF188: 4.797969987 | BG188: =LN(#REF!) ->  | BH188: 1.386294361 | BI188: 5.703782475 | BJ188: 0.6931471806 | BK188: 1.386294361 | BL188: 6.907755279 | BM188: 0.6931471806 | BN188: 1.609437912
A189: CB7 | B189: 1.209477861 | C189: 2.5 | D189: 1.92 | E189: 14 | F189: 292 | G189: 2.026431 | H189: 7.579 | I189: 0.7 | J189: 11.96 | K189: 1.83512 | L189: 31.2 | M189: 1105 | N189: 28.370034 | O189: 106.106 | P189: 4 | Q189: 2 | R189: 300 | S189: 2 | T189: 4 | U189: 2 | V189: 1000 | W189: 1 | X189: 2 | Y189: 1 | Z189: 2 | AA189: 2 | AB189: 3 | AC189: 0 | AD189: 2 | AE189: 0 | AF189: 2 | AG189: 3 | AH189: 2 | AI189: 3 | AJ189: 5 | AK189: 2 | AL189: 1 | AM189: 2 | AN189: 1 | AO189: 5 | AP189: 2 | AQ189: 1 | AR189: 1 | AS189: 1 | AT189: 2 | AU189: 3 | AV189: 2.63905733 | AW189: 5.676753802 | AX189: 0.7062761177 | AY189: 2.025381265 | AZ189: -0.3566749439 | BA189: 2.481567749 | BB189: 0.6071098745 | BC189: 3.440418095 | BD189: 7.007600614 | BE189: 3.345333447 | BF189: 4.664438594 | BG189: =LN(#REF!) ->  | BH189: 1.386294361 | BI189: 5.703782475 | BJ189: 0.6931471806 | BK189: 1.386294361 | BL189: 6.907755279 | BM189: 0.6931471806 | BN189: 1.609437912
A190: CB8 | B190: 1.480018593 | C190: 2.5 | D190: 1.92 | E190: 16 | F190: 18 | G190: 2.026431 | H190: 7.579 | I190: 0.7 | J190: 11.96 | K190: 1.83512 | L190: 31.2 | M190: 1105 | N190: 32.422896 | O190: 121.264 | P190: 4 | Q190: 2 | R190: 300 | S190: 2 | T190: 4 | U190: 2 | V190: 1000 | W190: 1 | X190: 2 | Y190: 1 | Z190: 2 | AA190: 2 | AB190: 3 | AC190: 0 | AD190: 2 | AE190: 0 | AF190: 2 | AG190: 3 | AH190: 2 | AI190: 3 | AJ190: 5 | AK190: 2 | AL190: 1 | AM190: 2 | AN190: 1 | AO190: 5 | AP190: 2 | AQ190: 1 | AR190: 1 | AS190: 1 | AT190: 2 | AU190: 3 | AV190: 2.772588722 | AW190: 2.890371758 | AX190: 0.7062761177 | AY190: 2.025381265 | AZ190: -0.3566749439 | BA190: 2.481567749 | BB190: 0.6071098745 | BC190: 3.440418095 | BD190: 7.007600614 | BE190: 3.47886484 | BF190: 4.797969987 | BG190: =LN(#REF!) ->  | BH190: 1.386294361 | BI190: 5.703782475 | BJ190: 0.6931471806 | BK190: 1.386294361 | BL190: 6.907755279 | BM190: 0.6931471806 | BN190: 1.609437912
A191: CB9 | B191: 1.479379695 | C191: 2.5 | D191: 1.92 | E191: 14 | F191: 50 | G191: 2.026431 | H191: 7.579 | I191: 0.7 | J191: 11.96 | K191: 1.83512 | L191: 31.2 | M191: 1105 | N191: 28.370034 | O191: 106.106 | P191: 4 | Q191: 2 | R191: 300 | S191: 2 | T191: 4 | U191: 2 | V191: 1000 | W191: 1 | X191: 2 | Y191: 1 | Z191: 2 | AA191: 2 | AB191: 3 | AC191: 0 | AD191: 2 | AE191: 0 | AF191: 2 | AG191: 3 | AH191: 2 | AI191: 3 | AJ191: 5 | AK191: 2 | AL191: 1 | AM191: 2 | AN191: 1 | AO191: 5 | AP191: 2 | AQ191: 1 | AR191: 1 | AS191: 1 | AT191: 2 | AU191: 3 | AV191: 2.63905733 | AW191: 3.912023005 | AX191: 0.7062761177 | AY191: 2.025381265 | AZ191: -0.3566749439 | BA191: 2.481567749 | BB191: 0.6071098745 | BC191: 3.440418095 | BD191: 7.007600614 | BE191: 3.345333447 | BF191: 4.664438594 | BG191: =LN(#REF!) ->  | BH191: 1.386294361 | BI191: 5.703782475 | BJ191: 0.6931471806 | BK191: 1.386294361 | BL191: 6.907755279 | BM191: 0.6931471806 | BN191: 1.609437912
A192: CB10 | B192: 1.619893449 | C192: 2.5 | D192: 1.92 | E192: 78 | F192: 64 | G192: 2.026431 | H192: 7.579 | I192: 0.7 | J192: 11.96 | K192: 1.83512 | L192: 31.2 | M192: 1105 | N192: 158.061618 | O192: 591.162 | P192: 4 | Q192: 2 | R192: 300 | S192: 2 | T192: 4 | U192: 2 | V192: 1000 | W192: 1 | X192: 2 | Y192: 1 | Z192: 2 | AA192: 2 | AB192: 3 | AC192: 0 | AD192: 2 | AE192: 0 | AF192: 2 | AG192: 3 | AH192: 2 | AI192: 3 | AJ192: 5 | AK192: 2 | AL192: 1 | AM192: 2 | AN192: 1 | AO192: 5 | AP192: 2 | AQ192: 1 | AR192: 1 | AS192: 1 | AT192: 2 | AU192: 3 | AV192: 4.356708827 | AW192: 4.158883083 | AX192: 0.7062761177 | AY192: 2.025381265 | AZ192: -0.3566749439 | BA192: 2.481567749 | BB192: 0.6071098745 | BC192: 3.440418095 | BD192: 7.007600614 | BE192: 5.062984944 | BF192: 6.382090092 | BG192: =LN(#REF!) ->  | BH192: 1.386294361 | BI192: 5.703782475 | BJ192: 0.6931471806 | BK192: 1.386294361 | BL192: 6.907755279 | BM192: 0.6931471806 | BN192: 1.609437912
A193: CB11 | B193: 1.60131757 | C193: 2.5 | D193: 1.92 | E193: 24 | F193: 74 | G193: 2.026431 | H193: 7.579 | I193: 0.7 | J193: 11.96 | K193: 1.83512 | L193: 31.2 | M193: 1105 | N193: 48.634344 | O193: 181.896 | P193: 4 | Q193: 2 | R193: 300 | S193: 2 | T193: 4 | U193: 2 | V193: 1000 | W193: 1 | X193: 2 | Y193: 1 | Z193: 2 | AA193: 2 | AB193: 3 | AC193: 0 | AD193: 2 | AE193: 0 | AF193: 2 | AG193: 3 | AH193: 2 | AI193: 3 | AJ193: 5 | AK193: 2 | AL193: 1 | AM193: 2 | AN193: 1 | AO193: 5 | AP193: 2 | AQ193: 1 | AR193: 1 | AS193: 1 | AT193: 2 | AU193: 3 | AV193: 3.17805383 | AW193: 4.304065093 | AX193: 0.7062761177 | AY193: 2.025381265 | AZ193: -0.3566749439 | BA193: 2.481567749 | BB193: 0.6071098745 | BC193: 3.440418095 | BD193: 7.007600614 | BE193: 3.884329948 | BF193: 5.203435095 | BG193: =LN(#REF!) ->  | BH193: 1.386294361 | BI193: 5.703782475 | BJ193: 0.6931471806 | BK193: 1.386294361 | BL193: 6.907755279 | BM193: 0.6931471806 | BN193: 1.609437912
A194: CB12 | B194: 1.270890489 | C194: 2.5 | D194: 1.92 | E194: 30 | F194: 21 | G194: 2.026431 | H194: 7.579 | I194: 0.7 | J194: 11.96 | K194: 1.83512 | L194: 31.2 | M194: 1105 | N194: 60.79293 | O194: 227.37 | P194: 4 | Q194: 2 | R194: 300 | S194: 2 | T194: 4 | U194: 2 | V194: 1000 | W194: 1 | X194: 2 | Y194: 1 | Z194: 2 | AA194: 2 | AB194: 3 | AC194: 0 | AD194: 2 | AE194: 0 | AF194: 2 | AG194: 3 | AH194: 2 | AI194: 3 | AJ194: 5 | AK194: 2 | AL194: 1 | AM194: 2 | AN194: 1 | AO194: 5 | AP194: 2 | AQ194: 1 | AR194: 1 | AS194: 1 | AT194: 2 | AU194: 3 | AV194: 3.401197382 | AW194: 3.044522438 | AX194: =LN(G194) -> 0.7062761177 | AY194: =LN(H194) -> 2.025381265 | AZ194: =LN(I194) -> -0.3566749439 | BA194: =LN(J194) -> 2.481567749 | BB194: =LN(K194) -> 0.6071098745 | BC194: =LN(L194) -> 3.440418095 | BD194: =LN(M194) -> 7.007600614 | BE194: 4.107473499 | BF194: 5.426578646 | BG194: =LN(#REF!) ->  | BH194: =LN(P194) -> 1.386294361 | BI194: 5.703782475 | BJ194: 0.6931471806 | BK194: 1.386294361 | BL194: 6.907755279 | BM194: 0.6931471806 | BN194: 1.609437912
A195: CB13 | B195: 1.438372755 | C195: 2.5 | D195: 1.92 | E195: 104 | F195: 64 | G195: 2.026431 | H195: 7.579 | I195: 0.7 | J195: 11.96 | K195: 1.83512 | L195: 31.2 | M195: 1105 | N195: 210.748824 | O195: 788.216 | P195: 4 | Q195: 2 | R195: 300 | S195: 2 | T195: 4 | U195: 2 | V195: 1000 | W195: 1 | X195: 2 | Y195: 1 | Z195: 2 | AA195: 2 | AB195: 3 | AC195: 0 | AD195: 2 | AE195: 0 | AF195: 2 | AG195: 3 | AH195: 2 | AI195: 3 | AJ195: 5 | AK195: 2 | AL195: 1 | AM195: 2 | AN195: 1 | AO195: 5 | AP195: 2 | AQ195: 1 | AR195: 1 | AS195: 1 | AT195: 2 | AU195: 3 | AV195: 4.644390899 | AW195: 4.158883083 | AX195: 0.7062761177 | AY195: 2.025381265 | AZ195: -0.3566749439 | BA195: 2.481567749 | BB195: 0.6071098745 | BC195: 3.440418095 | BD195: 7.007600614 | BE195: 5.350667017 | BF195: 6.669772164 | BG195: =LN(#REF!) ->  | BH195: 1.386294361 | BI195: =LN(R195) -> 5.703782475 | BJ195: =LN(S195) -> 0.6931471806 | BK195: =LN(T195) -> 1.386294361 | BL195: =LN(V195) -> 6.907755279 | BM195: 0.6931471806 | BN195: 1.609437912
A196: CB14 | B196: 1.391671577 | C196: 2.5 | D196: 1.92 | E196: 28 | F196: 84 | G196: 2.026431 | H196: 7.579 | I196: 0.7 | J196: 11.96 | K196: 1.83512 | L196: 31.2 | M196: 1105 | N196: 56.740068 | O196: 212.212 | P196: 4 | Q196: 2 | R196: 300 | S196: 2 | T196: 4 | U196: 2 | V196: 1000 | W196: 1 | X196: 2 | Y196: 1 | Z196: 2 | AA196: 2 | AB196: 3 | AC196: 0 | AD196: 2 | AE196: 0 | AF196: 2 | AG196: 3 | AH196: 2 | AI196: 3 | AJ196: 5 | AK196: 2 | AL196: 1 | AM196: 2 | AN196: 1 | AO196: 5 | AP196: 2 | AQ196: 1 | AR196: 1 | AS196: 1 | AT196: 2 | AU196: 3 | AV196: 3.33220451 | AW196: 4.430816799 | AX196: 0.7062761177 | AY196: 2.025381265 | AZ196: -0.3566749439 | BA196: 2.481567749 | BB196: 0.6071098745 | BC196: 3.440418095 | BD196: 7.007600614 | BE196: 4.038480628 | BF196: 5.357585775 | BG196: =LN(#REF!) ->  | BH196: 1.386294361 | BI196: 5.703782475 | BJ196: 0.6931471806 | BK196: 1.386294361 | BL196: 6.907755279 | BM196: =LN(AH196) -> 0.6931471806 | BN196: =LN(AJ196) -> 1.609437912
A197: CB15 | B197: 1.189425963 | C197: 2.5 | D197: 1.92 | E197: 34 | F197: 30 | G197: 2.026431 | H197: 7.579 | I197: 0.7 | J197: 11.96 | K197: 1.83512 | L197: 31.2 | M197: 1105 | N197: 68.898654 | O197: 257.686 | P197: 4 | Q197: 2 | R197: 300 | S197: 2 | T197: 4 | U197: 2 | V197: 1000 | W197: 1 | X197: 2 | Y197: 1 | Z197: 2 | AA197: 2 | AB197: 3 | AC197: 0 | AD197: 2 | AE197: 0 | AF197: 2 | AG197: 3 | AH197: 2 | AI197: 3 | AJ197: 5 | AK197: 2 | AL197: 1 | AM197: 2 | AN197: 1 | AO197: 5 | AP197: 2 | AQ197: 1 | AR197: 1 | AS197: 1 | AT197: 2 | AU197: 3 | AV197: 3.526360525 | AW197: 3.401197382 | AX197: 0.7062761177 | AY197: 2.025381265 | AZ197: -0.3566749439 | BA197: 2.481567749 | BB197: 0.6071098745 | BC197: 3.440418095 | BD197: 7.007600614 | BE197: 4.232636642 | BF197: 5.551741789 | BG197: =LN(#REF!) ->  | BH197: 1.386294361 | BI197: 5.703782475 | BJ197: 0.6931471806 | BK197: 1.386294361 | BL197: 6.907755279 | BM197: 0.6931471806 | BN197: 1.609437912
A198: CB16 | B198: 1.114048809 | C198: 2.5 | D198: 1.92 | E198: 89 | F198: 16 | G198: 2.026431 | H198: 7.579 | I198: 0.7 | J198: 11.96 | K198: 1.83512 | L198: 31.2 | M198: 1105 | N198: 180.352359 | O198: 674.531 | P198: 4 | Q198: 2 | R198: 300 | S198: 2 | T198: 4 | U198: 2 | V198: 1000 | W198: 1 | X198: 2 | Y198: 1 | Z198: 2 | AA198: 2 | AB198: 3 | AC198: 0 | AD198: 2 | AE198: 0 | AF198: 2 | AG198: 3 | AH198: 2 | AI198: 3 | AJ198: 5 | AK198: 2 | AL198: 1 | AM198: 2 | AN198: 1 | AO198: 5 | AP198: 2 | AQ198: 1 | AR198: 1 | AS198: 1 | AT198: 2 | AU198: 3 | AV198: 4.48863637 | AW198: 2.772588722 | AX198: 0.7062761177 | AY198: 2.025381265 | AZ198: -0.3566749439 | BA198: 2.481567749 | BB198: 0.6071098745 | BC198: 3.440418095 | BD198: 7.007600614 | BE198: 5.194912487 | BF198: 6.514017635 | BG198: =LN(#REF!) ->  | BH198: 1.386294361 | BI198: 5.703782475 | BJ198: 0.6931471806 | BK198: 1.386294361 | BL198: 6.907755279 | BM198: 0.6931471806 | BN198: 1.609437912
A199: CB17 | B199: 1.309101953 | C199: 2.5 | D199: 1.92 | E199: 4 | F199: 22 | G199: 2.026431 | H199: 7.579 | I199: 0.7 | J199: 11.96 | K199: 1.83512 | L199: 31.2 | M199: 1105 | N199: 8.105724 | O199: 30.316 | P199: 4 | Q199: 2 | R199: 300 | S199: 2 | T199: 4 | U199: 2 | V199: 1000 | W199: 1 | X199: 2 | Y199: 1 | Z199: 2 | AA199: 2 | AB199: 3 | AC199: 0 | AD199: 2 | AE199: 0 | AF199: 2 | AG199: 3 | AH199: 2 | AI199: 3 | AJ199: 5 | AK199: 2 | AL199: 1 | AM199: 2 | AN199: 1 | AO199: 5 | AP199: 2 | AQ199: 1 | AR199: 1 | AS199: 1 | AT199: 2 | AU199: 3 | AV199: 1.386294361 | AW199: 3.091042453 | AX199: 0.7062761177 | AY199: 2.025381265 | AZ199: -0.3566749439 | BA199: 2.481567749 | BB199: 0.6071098745 | BC199: 3.440418095 | BD199: 7.007600614 | BE199: 2.092570479 | BF199: 3.411675626 | BG199: =LN(#REF!) ->  | BH199: 1.386294361 | BI199: 5.703782475 | BJ199: 0.6931471806 | BK199: 1.386294361 | BL199: 6.907755279 | BM199: 0.6931471806 | BN199: 1.609437912
A200: CB18 | B200: 1.777164657 | C200: 2.5 | D200: 1.92 | E200: 67 | F200: 38 | G200: 2.026431 | H200: 7.579 | I200: 0.7 | J200: 11.96 | K200: 1.83512 | L200: 31.2 | M200: 1105 | N200: 135.770877 | O200: 507.793 | P200: 4 | Q200: 2 | R200: 300 | S200: 2 | T200: 4 | U200: 2 | V200: 1000 | W200: 1 | X200: 2 | Y200: 1 | Z200: 2 | AA200: 2 | AB200: 3 | AC200: 0 | AD200: 2 | AE200: 0 | AF200: 2 | AG200: 3 | AH200: 2 | AI200: 3 | AJ200: 5 | AK200: 2 | AL200: 1 | AM200: 2 | AN200: 1 | AO200: 5 | AP200: 2 | AQ200: 1 | AR200: 1 | AS200: 1 | AT200: 2 | AU200: 3 | AV200: 4.204692619 | AW200: 3.63758616 | AX200: 0.7062761177 | AY200: 2.025381265 | AZ200: -0.3566749439 | BA200: 2.481567749 | BB200: 0.6071098745 | BC200: 3.440418095 | BD200: 7.007600614 | BE200: 4.910968737 | BF200: 6.230073884 | BG200: =LN(#REF!) ->  | BH200: 1.386294361 | BI200: 5.703782475 | BJ200: 0.6931471806 | BK200: 1.386294361 | BL200: 6.907755279 | BM200: 0.6931471806 | BN200: 1.609437912
... 201 more rows
